Body(T),Organisation Code,Service Label,Service Code,Organisation Unit,Expenditure Category,Expenditure Code,Narrative,Date,Transaction Number,Net Amount,Supplier Name
Ealing Council,http://opendatacommunities.org/id/london-borough-council/ealing,CAPITAL SCHEMES,K,SCHOOLS SERVICE,CAPITAL - CONTRACT PAYMENTS,7200,,20/07/2018,40813446,18530.99,MURRILL CONSTRUCTION LIMITED
Ealing Council,http://opendatacommunities.org/id/london-borough-council/ealing,CAPITAL SCHEMES,K,SCHOOLS SERVICE,CAPITAL - CONTRACT PAYMENTS,7200,,28/06/2018,40809782,450,PINDORIA ASSOCIATES LTD
Ealing Council,http://opendatacommunities.org/id/london-borough-council/ealing,CAPITAL SCHEMES,K,SCHOOLS SERVICE,CAPITAL - CONTRACT PAYMENTS,7200,,05/07/2018,40812257,41024.8,M P BUILDING LTD
Ealing Council,http://opendatacommunities.org/id/london-borough-council/ealing,REGENERATION AND HOUSING,2,COMMUNITY SAFETY,PAYMENTS TO CONTRACTORS,4000,,30/06/2018,40811908,301.35,AIDHOUR LIMITED
Ealing Council,http://opendatacommunities.org/id/london-borough-council/ealing,REGENERATION AND HOUSING,2,COMMUNITY SAFETY,EXTERNAL FUNDING / GOVERNMENT GRANTS,5020,,10/07/2018,40811879,7500,EALING MEDIATION SERVICE
Ealing Council,http://opendatacommunities.org/id/london-borough-council/ealing,REGENERATION AND HOUSING,2,COMMUNITY SAFETY,PAYMENTS TO CONTRACTORS,4000,,02/07/2018,40810437,26827.5,STANDING TOGETHER AGAINST DOMESTIC VIOLENCE
Ealing Council,http://opendatacommunities.org/id/london-borough-council/ealing,REGENERATION AND HOUSING,2,PROPERTY & REGENERATION,PAYMENTS TO CONTRACTORS,4000,,01/05/2018,40809515,1543,POLYDECTES LTD
Ealing Council,http://opendatacommunities.org/id/london-borough-council/ealing,REGENERATION AND HOUSING,2,PROPERTY & REGENERATION,PAYMENTS TO CONTRACTORS,4000,,05/07/2018,40811207,900,CORPORATE PRINT LTD T/A KALL KWIK EALING
Ealing Council,http://opendatacommunities.org/id/london-borough-council/ealing,REGENERATION AND HOUSING,2,PROPERTY & REGENERATION,CONFERENCE EXPENSES,3520,,27/06/2018,40811767,35000,PIPERS PROJECTS LTD
Ealing Council,http://opendatacommunities.org/id/london-borough-council/ealing,REGENERATION AND HOUSING,2,TRANSPORT,EXTERNAL TECHNICAL ADVICE,4060,,29/06/2018,40813806,1958.1,WSP UK LTD T/A WSP PARSONS BRINCKERHOFF
Ealing Council,http://opendatacommunities.org/id/london-borough-council/ealing,REGENERATION AND HOUSING,2,TRANSPORT,EXTERNAL TECHNICAL ADVICE,4060,,23/07/2018,40814884,22000,Cyclehoop Limited
Ealing Council,http://opendatacommunities.org/id/london-borough-council/ealing,REGENERATION AND HOUSING,2,HOUSING BUSINESS UNITS,REPAIR AND MAINTENANCE,1410,,26/07/2018,40814373,55977.04,MNM PROPERTY SERVICES LIMITED
Ealing Council,http://opendatacommunities.org/id/london-borough-council/ealing,REGENERATION AND HOUSING,2,HOUSING BUSINESS UNITS,REPAIR AND MAINTENANCE,1410,,26/07/2018,40814520,179066.96,T BROWN GROUP LIMITED
Ealing Council,http://opendatacommunities.org/id/london-borough-council/ealing,REGENERATION AND HOUSING,2,HOUSING BUSINESS UNITS,REPAIR AND MAINTENANCE,1410,,05/07/2018,40811058,2600.18,WG WIGGINTON LIMITED
Ealing Council,http://opendatacommunities.org/id/london-borough-council/ealing,REGENERATION AND HOUSING,2,HOUSING BUSINESS UNITS,REPAIR AND MAINTENANCE,1410,,05/07/2018,40811085,38731.93,T BROWN GROUP LIMITED
Ealing Council,http://opendatacommunities.org/id/london-borough-council/ealing,REGENERATION AND HOUSING,2,HOUSING BUSINESS UNITS,REPAIR AND MAINTENANCE,1410,,26/07/2018,40814428,17120.38,WG WIGGINTON LIMITED
Ealing Council,http://opendatacommunities.org/id/london-borough-council/ealing,REGENERATION AND HOUSING,2,HOUSING BUSINESS UNITS,REPAIR AND MAINTENANCE,1410,,26/07/2018,40814566,42000,ALPHATRACK SYSTEMS LTD
Ealing Council,http://opendatacommunities.org/id/london-borough-council/ealing,REGENERATION AND HOUSING,2,HOUSING BUSINESS UNITS,REPAIR AND MAINTENANCE,1410,,13/07/2018,40812478,22178.63,NULOGIC FIRE LIMITED
Ealing Council,http://opendatacommunities.org/id/london-borough-council/ealing,REGENERATION AND HOUSING,2,HOUSING BUSINESS UNITS,REPAIR AND MAINTENANCE,1410,,13/07/2018,40812608,1260,OWEN WHITE SOLICITORS
Ealing Council,http://opendatacommunities.org/id/london-borough-council/ealing,REGENERATION AND HOUSING,2,HOUSING BUSINESS UNITS,REPAIR AND MAINTENANCE,1410,,13/07/2018,40812608,670,OWEN WHITE SOLICITORS
Ealing Council,http://opendatacommunities.org/id/london-borough-council/ealing,REGENERATION AND HOUSING,2,HOUSING BUSINESS UNITS,REPAIR AND MAINTENANCE,1410,,12/07/2018,40812505,69065.34,MOUNTJOY LIMITED
Ealing Council,http://opendatacommunities.org/id/london-borough-council/ealing,REGENERATION AND HOUSING,2,HOUSING BUSINESS UNITS,REPAIR AND MAINTENANCE,1410,,26/07/2018,40814437,113850.2,T BROWN GROUP LIMITED
Ealing Council,http://opendatacommunities.org/id/london-borough-council/ealing,REGENERATION AND HOUSING,2,HOUSING BUSINESS UNITS,REPAIR AND MAINTENANCE,1410,,26/07/2018,40814565,126610.73,ALPHATRACK SYSTEMS LTD
Ealing Council,http://opendatacommunities.org/id/london-borough-council/ealing,REGENERATION AND HOUSING,2,HOUSING BUSINESS UNITS,REPAIR AND MAINTENANCE,1410,,02/07/2018,40810405,21088.65,PDERS KEY LIFTS
Ealing Council,http://opendatacommunities.org/id/london-borough-council/ealing,REGENERATION AND HOUSING,2,HOUSING BUSINESS UNITS,REPAIR AND MAINTENANCE,1410,,29/06/2018,40810442,32077.35,MEAD BUILDING SERVICES LTD
Ealing Council,http://opendatacommunities.org/id/london-borough-council/ealing,REGENERATION AND HOUSING,2,HOUSING BUSINESS UNITS,REPAIR AND MAINTENANCE,1410,,12/07/2018,40812382,80986.49,NIBLOCK (BUILDERS) LTD
Ealing Council,http://opendatacommunities.org/id/london-borough-council/ealing,REGENERATION AND HOUSING,2,HOUSING BUSINESS UNITS,REPAIR AND MAINTENANCE,1410,,12/07/2018,40812389,48767.75,MNM PROPERTY SERVICES LIMITED
Ealing Council,http://opendatacommunities.org/id/london-borough-council/ealing,REGENERATION AND HOUSING,2,HOUSING BUSINESS UNITS,REPAIR AND MAINTENANCE,1410,,19/07/2018,40813297,56985.18,MEAD BUILDING SERVICES LTD
Ealing Council,http://opendatacommunities.org/id/london-borough-council/ealing,REGENERATION AND HOUSING,2,HOUSING BUSINESS UNITS,REPAIR AND MAINTENANCE,1410,,19/07/2018,40813169,442.08,ALPHATRACK SYSTEMS LTD
Ealing Council,http://opendatacommunities.org/id/london-borough-council/ealing,REGENERATION AND HOUSING,2,HOUSING BUSINESS UNITS,REPAIR AND MAINTENANCE,1410,,19/07/2018,40813171,804.91,ALPHATRACK SYSTEMS LTD
Ealing Council,http://opendatacommunities.org/id/london-borough-council/ealing,REGENERATION AND HOUSING,2,HOUSING BUSINESS UNITS,REPAIR AND MAINTENANCE,1410,,19/07/2018,40813290,10453.51,T BROWN GROUP LIMITED
Ealing Council,http://opendatacommunities.org/id/london-borough-council/ealing,REGENERATION AND HOUSING,2,HOUSING BUSINESS UNITS,REPAIR AND MAINTENANCE,1410,,19/07/2018,40813294,2199.94,T BROWN GROUP LIMITED
Ealing Council,http://opendatacommunities.org/id/london-borough-council/ealing,REGENERATION AND HOUSING,2,HOUSING BUSINESS UNITS,REPAIR AND MAINTENANCE,1410,,06/07/2018,40811847,280,MOUNTJOY LIMITED
Ealing Council,http://opendatacommunities.org/id/london-borough-council/ealing,REGENERATION AND HOUSING,2,HOUSING BUSINESS UNITS,REPAIR AND MAINTENANCE,1410,,05/07/2018,40811189,16475.54,T BROWN GROUP LIMITED
Ealing Council,http://opendatacommunities.org/id/london-borough-council/ealing,REGENERATION AND HOUSING,2,HOUSING BUSINESS UNITS,REPAIR AND MAINTENANCE,1410,,05/07/2018,40811195,41729.36,MEAD BUILDING SERVICES LTD
Ealing Council,http://opendatacommunities.org/id/london-borough-council/ealing,REGENERATION AND HOUSING,2,HOUSING BUSINESS UNITS,REPAIR AND MAINTENANCE,1410,,13/07/2018,40812591,48493.34,MEAD BUILDING SERVICES LTD
Ealing Council,http://opendatacommunities.org/id/london-borough-council/ealing,REGENERATION AND HOUSING,2,HOUSING BUSINESS UNITS,REPAIR AND MAINTENANCE,1410,,19/07/2018,40813264,497.5,T BROWN GROUP LIMITED
Ealing Council,http://opendatacommunities.org/id/london-borough-council/ealing,REGENERATION AND HOUSING,2,HOUSING BUSINESS UNITS,REPAIR AND MAINTENANCE,1410,,13/07/2018,40813256,2350.99,PDERS KEY LIFTS
Ealing Council,http://opendatacommunities.org/id/london-borough-council/ealing,REGENERATION AND HOUSING,2,HOUSING BUSINESS UNITS,REPAIR AND MAINTENANCE,1410,,18/07/2018,40813170,42756.38,MNM PROPERTY SERVICES LIMITED
Ealing Council,http://opendatacommunities.org/id/london-borough-council/ealing,REGENERATION AND HOUSING,2,HOUSING BUSINESS UNITS,REPAIR AND MAINTENANCE,1410,,26/07/2018,40814568,142008.79,ALPHATRACK SYSTEMS LTD
Ealing Council,http://opendatacommunities.org/id/london-borough-council/ealing,REGENERATION AND HOUSING,2,HOUSING BUSINESS UNITS,REPAIR AND MAINTENANCE,1410,,26/07/2018,40814569,11671.76,ALPHATRACK SYSTEMS LTD
Ealing Council,http://opendatacommunities.org/id/london-borough-council/ealing,REGENERATION AND HOUSING,2,HOUSING BUSINESS UNITS,REPAIR AND MAINTENANCE,1410,,05/07/2018,40811192,8248.74,MOUNTJOY LIMITED
Ealing Council,http://opendatacommunities.org/id/london-borough-council/ealing,REGENERATION AND HOUSING,2,HOUSING BUSINESS UNITS,REPAIR AND MAINTENANCE,1410,,26/07/2018,40814612,2400.97,CAMPBELL & KENNEDY LIMITED
Ealing Council,http://opendatacommunities.org/id/london-borough-council/ealing,REGENERATION AND HOUSING,2,HOUSING BUSINESS UNITS,REPAIR AND MAINTENANCE,1410,,27/07/2018,40814739,17813.36,MEAD BUILDING SERVICES LTD
Ealing Council,http://opendatacommunities.org/id/london-borough-council/ealing,REGENERATION AND HOUSING,2,HOUSING BUSINESS UNITS,REPAIR AND MAINTENANCE,1410,,05/07/2018,40811184,31553.93,MNM PROPERTY SERVICES LIMITED
Ealing Council,http://opendatacommunities.org/id/london-borough-council/ealing,CAPITAL SCHEMES,K,CORPORATE RESOURCES,CAPITAL - CONTRACT PAYMENTS,7200,,26/01/2018,40814257,3336.32,SECURITY ELECTRONIC SYSTEMS LTD T/A SECURITY ENGINEERING
Ealing Council,http://opendatacommunities.org/id/london-borough-council/ealing,CAPITAL SCHEMES,K,CORPORATE RESOURCES,CAPITAL - CONTRACT PAYMENTS,7200,,18/09/2017,40812179,2523.37,EDMUNDSON ELECTRICAL LTD-T/A BENNETT & FOUNTAIN
Ealing Council,http://opendatacommunities.org/id/london-borough-council/ealing,CAPITAL SCHEMES,K,BUILT ENVIRONMENT,CTRL OR B/S HOME REPAIR GRANTS 1996 - INTERIM,6221,,28/06/2018,40813550,2650,APEX BUILD SOLUTIONS LTD
Ealing Council,http://opendatacommunities.org/id/london-borough-council/ealing,CAPITAL SCHEMES,K,BUILT ENVIRONMENT,CTRL OR B/S HOME REPAIR GRANTS 1996 - INTERIM,6221,,13/07/2018,40813556,6000,APEX BUILD SOLUTIONS LTD
Ealing Council,http://opendatacommunities.org/id/london-borough-council/ealing,CAPITAL SCHEMES,K,BUILT ENVIRONMENT,CTRL OR B/S HOME REPAIR GRANTS 1996 - INTERIM,6221,,28/05/2018,40810766,14660,A&R Builders Ltd
Ealing Council,http://opendatacommunities.org/id/london-borough-council/ealing,CAPITAL SCHEMES,K,BUILT ENVIRONMENT,CTRL OR B/S HOME REPAIR GRANTS 1996 - INTERIM,6221,,28/05/2018,40810766,8230,A&R Builders Ltd
Ealing Council,http://opendatacommunities.org/id/london-borough-council/ealing,CAPITAL SCHEMES,K,BUILT ENVIRONMENT,CTRL OR B/S HOME REPAIR GRANTS 1996 - INTERIM,6221,,29/06/2018,40811222,1799,Handicare Accessibility Ltd
Ealing Council,http://opendatacommunities.org/id/london-borough-council/ealing,CAPITAL SCHEMES,K,BUILT ENVIRONMENT,CTRL OR B/S HOME REPAIR GRANTS 1996 - INTERIM,6221,,05/07/2018,40811289,3892.83,ABBEY BUILDERS (LONDON) LTD
Ealing Council,http://opendatacommunities.org/id/london-borough-council/ealing,CAPITAL SCHEMES,K,BUILT ENVIRONMENT,CTRL OR B/S HOME REPAIR GRANTS 1996 - INTERIM,6221,,24/07/2018,40814259,4125,MULLIN & SONS LIMITED
Ealing Council,http://opendatacommunities.org/id/london-borough-council/ealing,CAPITAL SCHEMES,K,BUILT ENVIRONMENT,CTRL OR B/S HOME REPAIR GRANTS 1996 - INTERIM,6221,,29/05/2018,40814169,6866.35,ABBEY BUILDERS (LONDON) LTD
Ealing Council,http://opendatacommunities.org/id/london-borough-council/ealing,CAPITAL SCHEMES,K,BUILT ENVIRONMENT,CTRL OR B/S HOME REPAIR GRANTS 1996 - INTERIM,6221,,20/07/2018,40814196,5420,Handicare Accessibility Ltd
Ealing Council,http://opendatacommunities.org/id/london-borough-council/ealing,CAPITAL SCHEMES,K,BUILT ENVIRONMENT,CTRL OR B/S HOME REPAIR GRANTS 1996 - INTERIM,6221,,05/07/2018,40814316,1040,APEX BUILD SOLUTIONS LTD
Ealing Council,http://opendatacommunities.org/id/london-borough-council/ealing,CAPITAL SCHEMES,K,BUILT ENVIRONMENT,CTRL OR B/S HOME REPAIR GRANTS 1996 - INTERIM,6221,,28/06/2018,40810710,4960,APEX BUILD SOLUTIONS LTD
Ealing Council,http://opendatacommunities.org/id/london-borough-council/ealing,CAPITAL SCHEMES,K,BUILT ENVIRONMENT,CTRL OR B/S HOME REPAIR GRANTS 1996 - INTERIM,6221,,18/07/2018,40813435,950,KB GENERAL BUILDING
Ealing Council,http://opendatacommunities.org/id/london-borough-council/ealing,CAPITAL SCHEMES,K,BUILT ENVIRONMENT,CTRL OR B/S HOME REPAIR GRANTS 1996 - INTERIM,6221,,11/07/2018,40812450,4977.5,REB BUILDERS LTD
Ealing Council,http://opendatacommunities.org/id/london-borough-council/ealing,CAPITAL SCHEMES,K,BUILT ENVIRONMENT,CTRL OR B/S HOME REPAIR GRANTS 1996 - INTERIM,6221,,20/06/2018,40812506,419.35,THE ENTRYPHONE CO LTD
Ealing Council,http://opendatacommunities.org/id/london-borough-council/ealing,CAPITAL SCHEMES,K,BUILT ENVIRONMENT,CTRL OR B/S HOME REPAIR GRANTS 1996 - INTERIM,6221,,10/07/2018,40812991,1231,HILLROSE PROPERTY SERVICES
Ealing Council,http://opendatacommunities.org/id/london-borough-council/ealing,CAPITAL SCHEMES,K,BUILT ENVIRONMENT,CTRL OR B/S HOME REPAIR GRANTS 1996 - INTERIM,6221,,10/07/2018,40812993,1126,HILLROSE PROPERTY SERVICES
Ealing Council,http://opendatacommunities.org/id/london-borough-council/ealing,CAPITAL SCHEMES,K,BUILT ENVIRONMENT,CTRL OR B/S HOME REPAIR GRANTS 1996 - INTERIM,6221,,13/07/2018,40813013,2760,APEX BUILD SOLUTIONS LTD
Ealing Council,http://opendatacommunities.org/id/london-borough-council/ealing,CAPITAL SCHEMES,K,BUILT ENVIRONMENT,CTRL OR B/S HOME REPAIR GRANTS 1996 - INTERIM,6221,,28/06/2018,40810566,402.27,MULLIN & SONS LIMITED
Ealing Council,http://opendatacommunities.org/id/london-borough-council/ealing,CAPITAL SCHEMES,K,BUILT ENVIRONMENT,CTRL OR B/S HOME REPAIR GRANTS 1996 - INTERIM,6221,,26/03/2018,40800181,4597,Handicare Accessibility Ltd
Ealing Council,http://opendatacommunities.org/id/london-borough-council/ealing,CAPITAL SCHEMES,K,BUILT ENVIRONMENT,CTRL OR B/S HOME REPAIR GRANTS 1996 - INTERIM,6221,,08/06/2018,40808208,2292,Handicare Accessibility Ltd
Ealing Council,http://opendatacommunities.org/id/london-borough-council/ealing,CAPITAL SCHEMES,K,BUILT ENVIRONMENT,CTRL OR B/S HOME REPAIR GRANTS 1996 - INTERIM,6221,,22/06/2018,40809380,4050,TOTAL HYGIENE LTD
Ealing Council,http://opendatacommunities.org/id/london-borough-council/ealing,CAPITAL SCHEMES,K,BUILT ENVIRONMENT,CTRL OR B/S HOME REPAIR GRANTS 1996 - INTERIM,6221,,18/06/2018,40811205,1471,PREFERRED ACCESS RAMP SYSTEMS LTD
Ealing Council,http://opendatacommunities.org/id/london-borough-council/ealing,CAPITAL SCHEMES,K,BUILT ENVIRONMENT,CTRL OR B/S HOME REPAIR GRANTS 1996 - INTERIM,6221,,26/06/2018,40811217,4187,Handicare Accessibility Ltd
Ealing Council,http://opendatacommunities.org/id/london-borough-council/ealing,CAPITAL SCHEMES,K,BUILT ENVIRONMENT,CTRL OR B/S HOME REPAIR GRANTS 1996 - INTERIM,6221,,12/07/2018,40812414,2432,T&A BUILDING CONTRACTORS LIMITED
Ealing Council,http://opendatacommunities.org/id/london-borough-council/ealing,CAPITAL SCHEMES,K,BUILT ENVIRONMENT,CTRL OR B/S HOME REPAIR GRANTS 1996 - INTERIM,6221,,13/03/2018,40810430,18281.6,POLLOCK LIFTS LTD
Ealing Council,http://opendatacommunities.org/id/london-borough-council/ealing,CAPITAL SCHEMES,K,BUILT ENVIRONMENT,CTRL OR B/S HOME REPAIR GRANTS 1996 - INTERIM,6221,,25/05/2018,40810477,9260,GODFREY BUILDING SERVICES
Ealing Council,http://opendatacommunities.org/id/london-borough-council/ealing,CAPITAL SCHEMES,K,BUILT ENVIRONMENT,CTRL OR B/S HOME REPAIR GRANTS 1996 - INTERIM,6221,,29/06/2018,40810558,5356,KING ADAPTATIONS BUILDING SERVICES LTD
Ealing Council,http://opendatacommunities.org/id/london-borough-council/ealing,CAPITAL SCHEMES,K,BUILT ENVIRONMENT,CTRL OR B/S HOME REPAIR GRANTS 1996 - INTERIM,6221,,26/06/2018,40810665,9000,RAYLON CONSTRUCTION LTD
Ealing Council,http://opendatacommunities.org/id/london-borough-council/ealing,CAPITAL SCHEMES,K,BUILT ENVIRONMENT,CTRL OR B/S HOME REPAIR GRANTS 1996 - INTERIM,6221,,21/06/2018,40808484,2649,GHYLLSIDE LTD
Ealing Council,http://opendatacommunities.org/id/london-borough-council/ealing,CAPITAL SCHEMES,K,BUILT ENVIRONMENT,CTRL OR B/S HOME REPAIR GRANTS 1996 - INTERIM,6221,,22/06/2018,40811047,8690,REB BUILDERS LTD
Ealing Council,http://opendatacommunities.org/id/london-borough-council/ealing,CAPITAL SCHEMES,K,BUILT ENVIRONMENT,CTRL OR B/S HOME REPAIR GRANTS 1996 - INTERIM,6221,,26/06/2018,40813335,4295,ASCENDIT LIFTS LIMITED
Ealing Council,http://opendatacommunities.org/id/london-borough-council/ealing,CAPITAL SCHEMES,K,BUILT ENVIRONMENT,CTRL OR B/S HOME REPAIR GRANTS 1996 - INTERIM,6221,,30/07/2018,40815029,4112,NT BUILDING & MAINTENACE LTD
Ealing Council,http://opendatacommunities.org/id/london-borough-council/ealing,CAPITAL SCHEMES,K,BUILT ENVIRONMENT,CTRL OR B/S HOME REPAIR GRANTS 1996 - INTERIM,6221,,18/04/2018,40799761,4353,TOTAL HYGIENE LTD
Ealing Council,http://opendatacommunities.org/id/london-borough-council/ealing,CAPITAL SCHEMES,K,BUILT ENVIRONMENT,CTRL OR B/S HOME REPAIR GRANTS 1996 - INTERIM,6221,,26/06/2018,40813337,3390,ASCENDIT LIFTS LIMITED
Ealing Council,http://opendatacommunities.org/id/london-borough-council/ealing,CAPITAL SCHEMES,K,BUILT ENVIRONMENT,CTRL OR B/S HOME REPAIR GRANTS 1996 - INTERIM,6221,,20/06/2018,40813343,4200,ASCENDIT LIFTS LIMITED
Ealing Council,http://opendatacommunities.org/id/london-borough-council/ealing,CAPITAL SCHEMES,K,BUILT ENVIRONMENT,CTRL OR B/S HOME REPAIR GRANTS 1996 - INTERIM,6221,,29/06/2018,40810300,10000,RAYLON CONSTRUCTION LTD
Ealing Council,http://opendatacommunities.org/id/london-borough-council/ealing,CHILDREN & ADULTS,1,PUBLIC HEALTH ADMIN AND MANAGEMENT,PAYMENTS TO CONTRACTORS,4000,,19/07/2018,40813238,1000,DEBIGNO LTD - T/A PATHWAY ANALYTICS
Ealing Council,http://opendatacommunities.org/id/london-borough-council/ealing,CHILDREN & ADULTS,1,PUBLIC HEALTH SEXUAL HEALTH,PAYMENTS TO CONTRACTORS,4000,,02/07/2018,40810348,9352.5,LIVING WELL INTERNATIONAL CIC
Ealing Council,http://opendatacommunities.org/id/london-borough-council/ealing,CAPITAL SCHEMES,K,SCHOOLS SERVICE,CAPITAL - CONTRACT PAYMENTS,7200,,09/07/2018,40811487,1000,VSRW Limited
Ealing Council,http://opendatacommunities.org/id/london-borough-council/ealing,CAPITAL SCHEMES,K,SCHOOLS SERVICE,CAPITAL - CONTRACT PAYMENTS,7200,,30/06/2018,40810289,975,FRANKHAM CONSULTANCY GROUP LTD
Ealing Council,http://opendatacommunities.org/id/london-borough-council/ealing,REGENERATION AND HOUSING,2,COMMUNITY SAFETY,PAYMENTS TO CONTRACTORS,4000,,18/07/2018,40813079,21704.26,TYCO INTEGRATED SYSTEMS LTD
Ealing Council,http://opendatacommunities.org/id/london-borough-council/ealing,COUNCIL WIDE OTHER,9,BALANCE SHEET,CTRL OR B/S REFUNDS,6056,,07/06/2018,40810794,8487.21,Sundry Supplier - Regeneration & Housing
Ealing Council,http://opendatacommunities.org/id/london-borough-council/ealing,COUNCIL WIDE OTHER,9,BALANCE SHEET,CTRL OR B/S REFUNDS,6056,,07/06/2018,40810799,933.04,Sundry Supplier - Regeneration & Housing
Ealing Council,http://opendatacommunities.org/id/london-borough-council/ealing,COUNCIL WIDE OTHER,9,BALANCE SHEET,CTRL OR B/S REFUNDS,6056,,07/06/2018,40810801,2617.89,Sundry Supplier - Regeneration & Housing
Ealing Council,http://opendatacommunities.org/id/london-borough-council/ealing,COUNCIL WIDE OTHER,9,BALANCE SHEET,CTRL OR B/S REFUNDS,6056,,07/06/2018,40810809,964.48,Sundry Supplier - Regeneration & Housing
Ealing Council,http://opendatacommunities.org/id/london-borough-council/ealing,COUNCIL WIDE OTHER,9,BALANCE SHEET,CTRL OR B/S REFUNDS,6056,,07/06/2018,40810811,2808.6,Sundry Supplier - Regeneration & Housing
Ealing Council,http://opendatacommunities.org/id/london-borough-council/ealing,CHILDREN & ADULTS,1,SAFEGUARDING & SUPPORT - CIN,SECTION 17,4290,,30/06/2018,40811234,300,REDACTED SENSITIVE SUPPLIER
Ealing Council,http://opendatacommunities.org/id/london-borough-council/ealing,CHILDREN & ADULTS,1,SAFEGUARDING & SUPPORT - CIN,SECTION 17,4290,,03/07/2018,40814548,630,REDACTED SENSITIVE SUPPLIER
Ealing Council,http://opendatacommunities.org/id/london-borough-council/ealing,REGENERATION AND HOUSING,2,HOUSING  DEMAND,RENTS,1200,,25/07/2018,40814244,1225,Sundry Supplier - Regeneration & Housing
Ealing Council,http://opendatacommunities.org/id/london-borough-council/ealing,REGENERATION AND HOUSING,2,HOUSING  DEMAND,RENTS,1200,,25/07/2018,40814239,2287.5,Sundry Supplier - Regeneration & Housing
Ealing Council,http://opendatacommunities.org/id/london-borough-council/ealing,REGENERATION AND HOUSING,2,HOUSING  DEMAND,RENTS,1200,,12/07/2018,40812106,1050,Sundry Supplier - Regeneration & Housing
Ealing Council,http://opendatacommunities.org/id/london-borough-council/ealing,REGENERATION AND HOUSING,2,HOUSING  DEMAND,RENTS,1200,,12/07/2018,40812092,3000,Sundry Supplier - Regeneration & Housing
Ealing Council,http://opendatacommunities.org/id/london-borough-council/ealing,REGENERATION AND HOUSING,2,HOUSING  DEMAND,RENTS,1200,,12/07/2018,40812091,992,Sundry Supplier - Regeneration & Housing
Ealing Council,http://opendatacommunities.org/id/london-borough-council/ealing,REGENERATION AND HOUSING,2,HOUSING  DEMAND,RENTS,1200,,30/07/2018,40814887,2392.31,Sundry Supplier - Regeneration & Housing
Ealing Council,http://opendatacommunities.org/id/london-borough-council/ealing,REGENERATION AND HOUSING,2,HOUSING  DEMAND,RENTS,1200,,30/07/2018,40814890,300,Sundry Supplier - Regeneration & Housing
Ealing Council,http://opendatacommunities.org/id/london-borough-council/ealing,REGENERATION AND HOUSING,2,HOUSING  DEMAND,RENTS,1200,,18/07/2018,40813076,780,Sundry Supplier - Regeneration & Housing
Ealing Council,http://opendatacommunities.org/id/london-borough-council/ealing,REGENERATION AND HOUSING,2,HOUSING  DEMAND,RENTS,1200,,18/07/2018,40813081,1500,Sundry Supplier - Regeneration & Housing
Ealing Council,http://opendatacommunities.org/id/london-borough-council/ealing,REGENERATION AND HOUSING,2,HOUSING  DEMAND,MANAGEMENT CHARGES,2600,,03/07/2018,40813416,810.16,Sundry Supplier - Regeneration & Housing
Ealing Council,http://opendatacommunities.org/id/london-borough-council/ealing,REGENERATION AND HOUSING,2,HRA OTHER,COMPENSATION  PAYMENTS,2900,,04/07/2018,40810886,545.68,Sundry Supplier - Regeneration & Housing
Ealing Council,http://opendatacommunities.org/id/london-borough-council/ealing,REGENERATION AND HOUSING,2,HRA OTHER,COMPENSATION  PAYMENTS,2900,,29/06/2018,40810224,6100,Sundry Supplier - Regeneration & Housing
Ealing Council,http://opendatacommunities.org/id/london-borough-council/ealing,REGENERATION AND HOUSING,2,HRA OTHER,COMPENSATION  PAYMENTS,2900,,29/06/2018,40810226,6100,Sundry Supplier - Regeneration & Housing
Ealing Council,http://opendatacommunities.org/id/london-borough-council/ealing,REGENERATION AND HOUSING,2,HRA OTHER,COMPENSATION  PAYMENTS,2900,,29/06/2018,40810226,584,Sundry Supplier - Regeneration & Housing
Ealing Council,http://opendatacommunities.org/id/london-borough-council/ealing,REGENERATION AND HOUSING,2,HRA OTHER,REMOVALS,2680,,23/07/2018,40814204,960,MOVIVAN LTD
Ealing Council,http://opendatacommunities.org/id/london-borough-council/ealing,REGENERATION AND HOUSING,2,HRA OTHER,COMPENSATION  PAYMENTS,2900,,19/07/2018,40813103,606.99,Sundry Supplier - Regeneration & Housing
Ealing Council,http://opendatacommunities.org/id/london-borough-council/ealing,REGENERATION AND HOUSING,2,HRA OTHER,COMPENSATION  PAYMENTS,2900,,19/07/2018,40813103,6100,Sundry Supplier - Regeneration & Housing
Ealing Council,http://opendatacommunities.org/id/london-borough-council/ealing,ENVIRONMENT & CUSTOMER SERVICES,3,HIGHWAYS,CONTRACT PAYMENTS -HIGHWAYS,4005,,28/06/2018,40810445,677.06,SOUTHERN ELECTRIC CONTRACTING LTD
Ealing Council,http://opendatacommunities.org/id/london-borough-council/ealing,ENVIRONMENT & CUSTOMER SERVICES,3,HIGHWAYS,CONTRACT PAYMENTS -HIGHWAYS,4005,,04/06/2018,40813144,2837.34,SOUTHERN ELECTRIC CONTRACTING LTD
Ealing Council,http://opendatacommunities.org/id/london-borough-council/ealing,ENVIRONMENT & CUSTOMER SERVICES,3,LEISURE & PARKS,GROUNDS MAINTENANCE,1470,,09/07/2018,40811531,531.54,DRAYTON FENCING COMPANY
Ealing Council,http://opendatacommunities.org/id/london-borough-council/ealing,ENVIRONMENT & CUSTOMER SERVICES,3,LEISURE & PARKS,GROUNDS MAINTENANCE,1470,,09/07/2018,40811532,531.54,DRAYTON FENCING COMPANY
Ealing Council,http://opendatacommunities.org/id/london-borough-council/ealing,ENVIRONMENT & CUSTOMER SERVICES,3,LEISURE & PARKS,GROUNDS MAINTENANCE,1470,,06/05/2018,40811661,945,MULLIN & SONS LIMITED
Ealing Council,http://opendatacommunities.org/id/london-borough-council/ealing,ENVIRONMENT & CUSTOMER SERVICES,3,LEISURE & PARKS,GROUNDS MAINTENANCE,1470,,16/07/2018,40814097,1334.69,IDCC SERVICES LTD
Ealing Council,http://opendatacommunities.org/id/london-borough-council/ealing,ENVIRONMENT & CUSTOMER SERVICES,3,LEISURE & PARKS,ELECTRICITY,1120,,27/07/2017,40750044,1241.56,N POWER
Ealing Council,http://opendatacommunities.org/id/london-borough-council/ealing,ENVIRONMENT & CUSTOMER SERVICES,3,LEISURE & PARKS,ELECTRICITY,1120,,25/04/2017,40812223,1233.18,N POWER
Ealing Council,http://opendatacommunities.org/id/london-borough-council/ealing,ENVIRONMENT & CUSTOMER SERVICES,3,LEISURE & PARKS,WATER,1140,,05/02/2018,40805566,814.1,CASTLE WATER LIMITED
Ealing Council,http://opendatacommunities.org/id/london-borough-council/ealing,ENVIRONMENT & CUSTOMER SERVICES,3,STREET SERVICES,CONTRACT PAYMENTS -CLEAN & GREEN,4010,,20/07/2018,40814605,253.5,INITIAL WASHROOM SOLUTIONS
Ealing Council,http://opendatacommunities.org/id/london-borough-council/ealing,ENVIRONMENT & CUSTOMER SERVICES,3,STREET SERVICES,CONTRACT PAYMENTS -CLEAN & GREEN,4010,,11/07/2018,40812613,1599.96,MPM GRAFFITI SOLUTIONS
Ealing Council,http://opendatacommunities.org/id/london-borough-council/ealing,CAPITAL SCHEMES,K,BUILT ENVIRONMENT,CTRL OR B/S HOME REPAIR GRANTS 1996 - INTERIM,6221,,21/06/2018,40812083,15000,Sundry Supplier - Regeneration & Housing
Ealing Council,http://opendatacommunities.org/id/london-borough-council/ealing,CAPITAL SCHEMES,K,BUILT ENVIRONMENT,CTRL OR B/S HOME REPAIR GRANTS 1996 - INTERIM,6221,,14/06/2018,40812305,1835,REB BUILDERS LTD
Ealing Council,http://opendatacommunities.org/id/london-borough-council/ealing,CAPITAL SCHEMES,K,BUILT ENVIRONMENT,CTRL OR B/S HOME REPAIR GRANTS 1996 - INTERIM,6221,,09/07/2018,40812588,6532,MULLIN & SONS LIMITED
Ealing Council,http://opendatacommunities.org/id/london-borough-council/ealing,CAPITAL SCHEMES,K,BUILT ENVIRONMENT,CTRL OR B/S HOME REPAIR GRANTS 1996 - INTERIM,6221,,20/06/2018,40812595,4044,PREFERRED ACCESS RAMP SYSTEMS LTD
Ealing Council,http://opendatacommunities.org/id/london-borough-council/ealing,CAPITAL SCHEMES,K,BUILT ENVIRONMENT,CTRL OR B/S HOME REPAIR GRANTS 1996 - INTERIM,6221,,23/05/2018,40812471,-8738,MITRE CONSTRUCTION CO LTD
Ealing Council,http://opendatacommunities.org/id/london-borough-council/ealing,CAPITAL SCHEMES,K,BUILT ENVIRONMENT,CTRL OR B/S HOME REPAIR GRANTS 1996 - INTERIM,6221,,17/07/2018,40813110,5820,KING ADAPTATIONS BUILDING SERVICES LTD
Ealing Council,http://opendatacommunities.org/id/london-borough-council/ealing,CAPITAL SCHEMES,K,BUILT ENVIRONMENT,CTRL OR B/S HOME REPAIR GRANTS 1996 - INTERIM,6221,,19/06/2018,40813589,5050,ASCENDIT LIFTS LIMITED
Ealing Council,http://opendatacommunities.org/id/london-borough-council/ealing,CAPITAL SCHEMES,K,BUILT ENVIRONMENT,CTRL OR B/S HOME REPAIR GRANTS 1996 - INTERIM,6221,,19/07/2018,40813615,4660,RAYLON CONSTRUCTION LTD
Ealing Council,http://opendatacommunities.org/id/london-borough-council/ealing,CAPITAL SCHEMES,K,BUILT ENVIRONMENT,CTRL OR B/S HOME REPAIR GRANTS 1996 - INTERIM,6221,,05/07/2018,40811500,1080,APEX BUILD SOLUTIONS LTD
Ealing Council,http://opendatacommunities.org/id/london-borough-council/ealing,CAPITAL SCHEMES,K,BUILT ENVIRONMENT,CTRL OR B/S HOME REPAIR GRANTS 1996 - INTERIM,6221,,22/09/2017,40762531,1668.32,HILLROSE PROPERTY SERVICES
Ealing Council,http://opendatacommunities.org/id/london-borough-council/ealing,CAPITAL SCHEMES,K,BUILT ENVIRONMENT,CTRL OR B/S HOME REPAIR GRANTS 1996 - INTERIM,6221,,22/02/2018,40811863,4529,Handicare Accessibility Ltd
Ealing Council,http://opendatacommunities.org/id/london-borough-council/ealing,CAPITAL SCHEMES,K,BUILT ENVIRONMENT,CTRL OR B/S HOME REPAIR GRANTS 1996 - INTERIM,6221,,07/06/2018,40812031,352,STANNAH STAIRLIFTS LTD
Ealing Council,http://opendatacommunities.org/id/london-borough-council/ealing,CAPITAL SCHEMES,K,BUILT ENVIRONMENT,CTRL OR B/S HOME REPAIR GRANTS 1996 - INTERIM,6221,,22/06/2018,40809072,2304.99,IT BUTLER
Ealing Council,http://opendatacommunities.org/id/london-borough-council/ealing,CAPITAL SCHEMES,K,BUILT ENVIRONMENT,CTRL OR B/S HOME REPAIR GRANTS 1996 - INTERIM,6221,,24/05/2018,40806033,805,HILLROSE PROPERTY SERVICES
Ealing Council,http://opendatacommunities.org/id/london-borough-council/ealing,CAPITAL SCHEMES,K,BUILT ENVIRONMENT,CTRL OR B/S HOME REPAIR GRANTS 1996 - INTERIM,6221,,28/03/2018,40810329,1980.4,AGILITY ECO SERVICES LTD
Ealing Council,http://opendatacommunities.org/id/london-borough-council/ealing,CAPITAL SCHEMES,K,BUILT ENVIRONMENT,CTRL OR B/S HOME REPAIR GRANTS 1996 - INTERIM,6221,,29/06/2018,40811091,377.04,EMS STAIRLIFTS
Ealing Council,http://opendatacommunities.org/id/london-borough-council/ealing,CAPITAL SCHEMES,K,BUILT ENVIRONMENT,CTRL OR B/S HOME REPAIR GRANTS 1996 - INTERIM,6221,,10/07/2018,40812845,1315,HILLROSE PROPERTY SERVICES
Ealing Council,http://opendatacommunities.org/id/london-borough-council/ealing,CAPITAL SCHEMES,K,BUILT ENVIRONMENT,CTRL OR B/S HOME REPAIR GRANTS 1996 - INTERIM,6221,,19/07/2018,40813976,295,TOTAL HYGIENE LTD
Ealing Council,http://opendatacommunities.org/id/london-borough-council/ealing,CAPITAL SCHEMES,K,BUILT ENVIRONMENT,CTRL OR B/S HOME REPAIR GRANTS 1996 - INTERIM,6221,,19/06/2018,40808357,2015,MULLIN & SONS LIMITED
Ealing Council,http://opendatacommunities.org/id/london-borough-council/ealing,COUNCIL WIDE OTHER,9,BALANCE SHEET,CTRL OR B/S VEHICLES,6120,,30/06/2018,40810593,3675.5,CITY CAR CLUB LTD
Ealing Council,http://opendatacommunities.org/id/london-borough-council/ealing,REGENERATION AND HOUSING,2,HOUSING  DEMAND,RENTS,1200,,12/06/2018,40813348,1500,A&S PROPERTY LETTING AND MANAGEMENT LTD
Ealing Council,http://opendatacommunities.org/id/london-borough-council/ealing,REGENERATION AND HOUSING,2,HOUSING  DEMAND,RENTS,1200,,28/06/2018,40814539,4291.49,JACOB GRUNEWALD & ALAN GREENWOOD
Ealing Council,http://opendatacommunities.org/id/london-borough-council/ealing,REGENERATION AND HOUSING,2,HOUSING  DEMAND,RENTS,1200,,28/06/2018,40810781,6922.32,Sundry Supplier - Regeneration & Housing
Ealing Council,http://opendatacommunities.org/id/london-borough-council/ealing,REGENERATION AND HOUSING,2,HOUSING  DEMAND,RENTS,1200,,29/06/2018,40810778,3674.4,Sundry Supplier - Regeneration & Housing
Ealing Council,http://opendatacommunities.org/id/london-borough-council/ealing,REGENERATION AND HOUSING,2,HOUSING  DEMAND,RENTS,1200,,20/06/2018,40810777,4316.43,Sundry Supplier - Regeneration & Housing
Ealing Council,http://opendatacommunities.org/id/london-borough-council/ealing,REGENERATION AND HOUSING,2,HOUSING  DEMAND,RENTS,1200,,29/06/2018,40810229,4837.28,Sundry Supplier - Regeneration & Housing
Ealing Council,http://opendatacommunities.org/id/london-borough-council/ealing,REGENERATION AND HOUSING,2,HOUSING  DEMAND,RENTS,1200,,11/06/2018,40811504,3919.44,JACOB GRUNEWALD & ALAN GREENWOOD
Ealing Council,http://opendatacommunities.org/id/london-borough-council/ealing,REGENERATION AND HOUSING,2,HOUSING  DEMAND,RENTS,1200,,19/06/2018,40812098,250,Sundry Supplier - Regeneration & Housing
Ealing Council,http://opendatacommunities.org/id/london-borough-council/ealing,REGENERATION AND HOUSING,2,HOUSING  DEMAND,RENTS,1200,,24/04/2018,40811810,4471.2,Sundry Supplier - Regeneration & Housing
Ealing Council,http://opendatacommunities.org/id/london-borough-council/ealing,REGENERATION AND HOUSING,2,HOUSING  DEMAND,RENTS,1200,,20/06/2018,40813037,6080.3,Sundry Supplier - Regeneration & Housing
Ealing Council,http://opendatacommunities.org/id/london-borough-council/ealing,REGENERATION AND HOUSING,2,HOUSING  DEMAND,RENTS,1200,,16/07/2018,40813277,4253.52,Sundry Supplier - Regeneration & Housing
Ealing Council,http://opendatacommunities.org/id/london-borough-council/ealing,REGENERATION AND HOUSING,2,HOUSING  DEMAND,RENTS,1200,,16/07/2018,40813277,886.64,Sundry Supplier - Regeneration & Housing
Ealing Council,http://opendatacommunities.org/id/london-borough-council/ealing,REGENERATION AND HOUSING,2,HOUSING  DEMAND,RENTS,1200,,30/06/2018,40812927,14330.7,MEARS HOUSING MANAGEMENT LIMITED
Ealing Council,http://opendatacommunities.org/id/london-borough-council/ealing,REGENERATION AND HOUSING,2,HOUSING  DEMAND,RENTS,1200,,30/06/2018,40812927,2314.8,MEARS HOUSING MANAGEMENT LIMITED
Ealing Council,http://opendatacommunities.org/id/london-borough-council/ealing,REGENERATION AND HOUSING,2,HOUSING  DEMAND,RENTS,1200,,30/08/2018,40812931,39031.5,MEARS HOUSING MANAGEMENT LIMITED
Ealing Council,http://opendatacommunities.org/id/london-borough-council/ealing,REGENERATION AND HOUSING,2,HOUSING  DEMAND,RENTS,1200,,30/08/2018,40812931,2977.2,MEARS HOUSING MANAGEMENT LIMITED
Ealing Council,http://opendatacommunities.org/id/london-borough-council/ealing,REGENERATION AND HOUSING,2,HOUSING  DEMAND,RENTS,1200,,30/08/2018,40812947,8152.8,MEARS HOUSING MANAGEMENT LIMITED
Ealing Council,http://opendatacommunities.org/id/london-borough-council/ealing,REGENERATION AND HOUSING,2,HOUSING  DEMAND,RENTS,1200,,30/08/2018,40812947,835.8,MEARS HOUSING MANAGEMENT LIMITED
Ealing Council,http://opendatacommunities.org/id/london-borough-council/ealing,REGENERATION AND HOUSING,2,HOUSING  DEMAND,RENTS,1200,,13/07/2018,40812605,43026.98,SHEPHERDS BUSH HOUSING ASSOC
Ealing Council,http://opendatacommunities.org/id/london-borough-council/ealing,REGENERATION AND HOUSING,2,HOUSING  DEMAND,RENTS,1200,,13/07/2018,40812605,6010.72,SHEPHERDS BUSH HOUSING ASSOC
Ealing Council,http://opendatacommunities.org/id/london-borough-council/ealing,REGENERATION AND HOUSING,2,HOUSING  DEMAND,RENTS,1200,,04/07/2018,40810846,1054.62,BISHOP PROPERTY MANAGEMENT LTD
Ealing Council,http://opendatacommunities.org/id/london-borough-council/ealing,CHILDREN & ADULTS,1,PUBLIC HEALTH DRUGS AND ALCOHOL,PAYMENTS TO CONTRACTORS,4000,,30/06/2018,40810435,264850.92,CHANGE GROW LIVE
Ealing Council,http://opendatacommunities.org/id/london-borough-council/ealing,REGENERATION AND HOUSING,2,COMMUNITY SAFETY,EXTERNAL FUNDING / GOVERNMENT GRANTS,5020,,04/07/2018,40810800,4809.5,EALING MEDIATION SERVICE
Ealing Council,http://opendatacommunities.org/id/london-borough-council/ealing,REGENERATION AND HOUSING,2,COMMUNITY SAFETY,PAYMENTS TO CONTRACTORS,4000,,29/06/2018,40811507,75914.43,CHANGE GROW LIVE
Ealing Council,http://opendatacommunities.org/id/london-borough-council/ealing,REGENERATION AND HOUSING,2,COMMUNITY SAFETY,PAYMENTS TO CONTRACTORS,4000,,30/06/2018,40810475,53750,CHANGE GROW LIVE
Ealing Council,http://opendatacommunities.org/id/london-borough-council/ealing,REGENERATION AND HOUSING,2,COMMUNITY SAFETY,GRANTS,5010,,22/05/2018,40812860,6625,VICTIM SUPPORT
Ealing Council,http://opendatacommunities.org/id/london-borough-council/ealing,REGENERATION AND HOUSING,2,COMMUNITY SAFETY,PAYMENTS TO CONTRACTORS,4000,,29/06/2018,40810709,302.7,MR K P SMITH
Ealing Council,http://opendatacommunities.org/id/london-borough-council/ealing,REGENERATION AND HOUSING,2,COMMUNITY SAFETY,PAYMENTS TO CONTRACTORS,4000,,29/06/2018,40810711,2340,UKCT SUPPORT SERVICES LTD
Ealing Council,http://opendatacommunities.org/id/london-borough-council/ealing,CHIEF EXECUTIVE DIRECTORATE,5,West London Alliance,RESIDENTS PARTICIPATION,2550,,25/07/2018,40814326,23000,LONDON CYCLING CAMPAIGN
Ealing Council,http://opendatacommunities.org/id/london-borough-council/ealing,CHIEF EXECUTIVE DIRECTORATE,5,West London Alliance,CONFERENCE EXPENSES,3520,,26/07/2018,40814329,22000,LONDON CYCLING CAMPAIGN
Ealing Council,http://opendatacommunities.org/id/london-borough-council/ealing,CHIEF EXECUTIVE DIRECTORATE,5,West London Alliance,SERVICES CONTRACTS AGENCY INTERIM CONSULTANTS,2970,,29/06/2018,40812196,9000,PETER BRETT ASSOCIATES
Ealing Council,http://opendatacommunities.org/id/london-borough-council/ealing,CHIEF EXECUTIVE DIRECTORATE,5,West London Alliance,VEHICLE HIRE,2010,,07/06/2018,40810108,5466.56,Sundry Supplier - Chief Executives
Ealing Council,http://opendatacommunities.org/id/london-borough-council/ealing,CHIEF EXECUTIVE DIRECTORATE,5,West London Alliance,PRINTING,3850,,20/06/2018,40810861,3939.5,Sundry Supplier - Regeneration & Housing
Ealing Council,http://opendatacommunities.org/id/london-borough-council/ealing,CHIEF EXECUTIVE DIRECTORATE,5,West London Alliance,SPECIALIST TECHNICAL CONTRACTORS,4050,,24/07/2018,40814199,5000,IBASE SYSTEMS LTD
Ealing Council,http://opendatacommunities.org/id/london-borough-council/ealing,CHIEF EXECUTIVE DIRECTORATE,5,West London Alliance,ACTIVITIES,4196,,17/07/2018,40812962,3000,LONDON BIKE HUB
Ealing Council,http://opendatacommunities.org/id/london-borough-council/ealing,CAPITAL SCHEMES,K,CHILDREN & FAMILIES,CAPITAL - CONTRACT PAYMENTS,7200,,09/07/2018,40811466,4000,VSRW Limited
Ealing Council,http://opendatacommunities.org/id/london-borough-council/ealing,CAPITAL SCHEMES,K,CHILDREN & FAMILIES,CAPITAL - CONTRACT PAYMENTS,7200,,30/07/2018,40813748,960,PARAGON ACOUSTIC CONSULTANTS
Ealing Council,http://opendatacommunities.org/id/london-borough-council/ealing,REGENERATION AND HOUSING,2,HOUSING  DEMAND,BED & BREAKFAST PAYMENTS,5330,,24/06/2018,40811552,840,REDACTED SENSITIVE SUPPLIER
Ealing Council,http://opendatacommunities.org/id/london-borough-council/ealing,REGENERATION AND HOUSING,2,HOUSING  DEMAND,BED & BREAKFAST PAYMENTS,5330,,01/07/2018,40811554,630,REDACTED SENSITIVE SUPPLIER
Ealing Council,http://opendatacommunities.org/id/london-borough-council/ealing,REGENERATION AND HOUSING,2,HOUSING  DEMAND,BED & BREAKFAST PAYMENTS,5330,,01/07/2018,40811555,840,REDACTED SENSITIVE SUPPLIER
Ealing Council,http://opendatacommunities.org/id/london-borough-council/ealing,REGENERATION AND HOUSING,2,HOUSING  DEMAND,BED & BREAKFAST PAYMENTS,5330,,24/06/2018,40811549,924,REDACTED SENSITIVE SUPPLIER
Ealing Council,http://opendatacommunities.org/id/london-borough-council/ealing,REGENERATION AND HOUSING,2,HOUSING  DEMAND,BED & BREAKFAST PAYMENTS,5330,,24/06/2018,40811551,630,REDACTED SENSITIVE SUPPLIER
Ealing Council,http://opendatacommunities.org/id/london-borough-council/ealing,REGENERATION AND HOUSING,2,HOUSING  DEMAND,MEDICAL REPORTS,2560,,26/06/2018,40811865,1600,NOWMEDICAL
Ealing Council,http://opendatacommunities.org/id/london-borough-council/ealing,REGENERATION AND HOUSING,2,HOUSING  DEMAND,BED & BREAKFAST PAYMENTS,5330,,17/06/2018,40811544,630,REDACTED SENSITIVE SUPPLIER
Ealing Council,http://opendatacommunities.org/id/london-borough-council/ealing,REGENERATION AND HOUSING,2,HOUSING  DEMAND,BED & BREAKFAST PAYMENTS,5330,,17/06/2018,40811545,840,REDACTED SENSITIVE SUPPLIER
Ealing Council,http://opendatacommunities.org/id/london-borough-council/ealing,REGENERATION AND HOUSING,2,HOUSING  DEMAND,BED & BREAKFAST PAYMENTS,5330,,17/06/2018,40811547,924,REDACTED SENSITIVE SUPPLIER
Ealing Council,http://opendatacommunities.org/id/london-borough-council/ealing,REGENERATION AND HOUSING,2,HOUSING  DEMAND,BED & BREAKFAST PAYMENTS,5330,,27/05/2018,40811522,840,REDACTED SENSITIVE SUPPLIER
Ealing Council,http://opendatacommunities.org/id/london-borough-council/ealing,REGENERATION AND HOUSING,2,HOUSING  DEMAND,BED & BREAKFAST PAYMENTS,5330,,27/05/2018,40811524,630,REDACTED SENSITIVE SUPPLIER
Ealing Council,http://opendatacommunities.org/id/london-borough-council/ealing,REGENERATION AND HOUSING,2,HOUSING  DEMAND,BED & BREAKFAST PAYMENTS,5330,,27/05/2018,40811527,924,REDACTED SENSITIVE SUPPLIER
Ealing Council,http://opendatacommunities.org/id/london-borough-council/ealing,REGENERATION AND HOUSING,2,HOUSING  DEMAND,BED & BREAKFAST PAYMENTS,5330,,10/06/2018,40811530,630,REDACTED SENSITIVE SUPPLIER
Ealing Council,http://opendatacommunities.org/id/london-borough-council/ealing,REGENERATION AND HOUSING,2,HOUSING  DEMAND,BED & BREAKFAST PAYMENTS,5330,,10/06/2018,40811533,840,REDACTED SENSITIVE SUPPLIER
Ealing Council,http://opendatacommunities.org/id/london-borough-council/ealing,REGENERATION AND HOUSING,2,HOUSING  DEMAND,BED & BREAKFAST PAYMENTS,5330,,10/06/2018,40811535,924,REDACTED SENSITIVE SUPPLIER
Ealing Council,http://opendatacommunities.org/id/london-borough-council/ealing,REGENERATION AND HOUSING,2,HOUSING  DEMAND,BED & BREAKFAST PAYMENTS,5330,,10/06/2018,40811536,630,REDACTED SENSITIVE SUPPLIER
Ealing Council,http://opendatacommunities.org/id/london-borough-council/ealing,REGENERATION AND HOUSING,2,HOUSING  DEMAND,BED & BREAKFAST PAYMENTS,5330,,10/06/2018,40811540,840,REDACTED SENSITIVE SUPPLIER
Ealing Council,http://opendatacommunities.org/id/london-borough-council/ealing,REGENERATION AND HOUSING,2,HOUSING  DEMAND,BED & BREAKFAST PAYMENTS,5330,,10/06/2018,40811541,924,REDACTED SENSITIVE SUPPLIER
Ealing Council,http://opendatacommunities.org/id/london-borough-council/ealing,REGENERATION AND HOUSING,2,HRA MANAGEMENT,CLIENT EXPENSES,5810,,16/07/2018,40813017,548.86,TESCO STORES LIMITED
Ealing Council,http://opendatacommunities.org/id/london-borough-council/ealing,REGENERATION AND HOUSING,2,HRA MANAGEMENT,CLIENT EXPENSES,5810,,16/07/2018,40813017,375.95,TESCO STORES LIMITED
Ealing Council,http://opendatacommunities.org/id/london-borough-council/ealing,REGENERATION AND HOUSING,2,HRA MANAGEMENT,TRAINING,80,,29/06/2018,40810459,319,ALAN JOHN ASSOCIATES LTD
Ealing Council,http://opendatacommunities.org/id/london-borough-council/ealing,REGENERATION AND HOUSING,2,HRA MANAGEMENT,CLEANING CONTRACT,1300,,09/04/2018,40810105,4012.13,ACTON COMMUNITY FORUM
Ealing Council,http://opendatacommunities.org/id/london-borough-council/ealing,REGENERATION AND HOUSING,2,HRA MANAGEMENT,TRAINING,80,,03/07/2018,40810680,900,ACDA SKILS TRAINING
Ealing Council,http://opendatacommunities.org/id/london-borough-council/ealing,REGENERATION AND HOUSING,2,HRA MANAGEMENT,SPECIALIST TECHNICAL CONTRACTORS,4050,,30/06/2018,40810610,3461.36,TEAM ENERGY AUDITING AGENCY LTD
Ealing Council,http://opendatacommunities.org/id/london-borough-council/ealing,REGENERATION AND HOUSING,2,HOUSING  DEMAND,RENTS,1200,,01/08/2018,40812665,1685.16,ALTWOOD PROPERTIES LTD
Ealing Council,http://opendatacommunities.org/id/london-borough-council/ealing,REGENERATION AND HOUSING,2,HOUSING  DEMAND,RENTS,1200,,17/07/2018,40812878,38371.84,PARADIGM GROUP LIMITED
Ealing Council,http://opendatacommunities.org/id/london-borough-council/ealing,REGENERATION AND HOUSING,2,HOUSING  DEMAND,RENTS,1200,,29/06/2018,40810660,2507.14,NETWORK HOMES LIMITED T/A NETWORK STADIUM HOUSING ASSOCIATION LTD
Ealing Council,http://opendatacommunities.org/id/london-borough-council/ealing,REGENERATION AND HOUSING,2,HOUSING  DEMAND,RENTS,1200,,29/06/2018,40810660,17508.6,NETWORK HOMES LIMITED T/A NETWORK STADIUM HOUSING ASSOCIATION LTD
Ealing Council,http://opendatacommunities.org/id/london-borough-council/ealing,REGENERATION AND HOUSING,2,HOUSING  DEMAND,RENTS,1200,,29/06/2018,40810659,807.54,NETWORK HOMES LIMITED T/A NETWORK STADIUM HOUSING ASSOCIATION LTD
Ealing Council,http://opendatacommunities.org/id/london-borough-council/ealing,REGENERATION AND HOUSING,2,HOUSING  DEMAND,RENTS,1200,,29/06/2018,40810659,7883.57,NETWORK HOMES LIMITED T/A NETWORK STADIUM HOUSING ASSOCIATION LTD
Ealing Council,http://opendatacommunities.org/id/london-borough-council/ealing,REGENERATION AND HOUSING,2,HOUSING  DEMAND,RENTS,1200,,01/07/2018,40811331,5878.8,RHP LETTINGS LTD
Ealing Council,http://opendatacommunities.org/id/london-borough-council/ealing,REGENERATION AND HOUSING,2,HOUSING  DEMAND,RENTS,1200,,11/07/2018,40812073,33099.71,PARADIGM GROUP LIMITED
Ealing Council,http://opendatacommunities.org/id/london-borough-council/ealing,REGENERATION AND HOUSING,2,HOUSING  DEMAND,RENTS,1200,,02/07/2018,40811254,33610.5,GENESIS HOUSING ASSOCIATION LTD T/A GENESIS HOUSING ASSOCIATION
Ealing Council,http://opendatacommunities.org/id/london-borough-council/ealing,REGENERATION AND HOUSING,2,HOUSING  DEMAND,RENTS,1200,,02/07/2018,40811256,2781.3,GENESIS HOUSING ASSOCIATION LTD T/A GENESIS HOUSING ASSOCIATION
Ealing Council,http://opendatacommunities.org/id/london-borough-council/ealing,REGENERATION AND HOUSING,2,HOUSING  DEMAND,RENTS,1200,,27/06/2018,40810037,44467.86,SHEPHERDS BUSH HOUSING ASSOC
Ealing Council,http://opendatacommunities.org/id/london-borough-council/ealing,REGENERATION AND HOUSING,2,HOUSING  DEMAND,RENTS,1200,,27/06/2018,40810037,6204.43,SHEPHERDS BUSH HOUSING ASSOC
Ealing Council,http://opendatacommunities.org/id/london-borough-council/ealing,REGENERATION AND HOUSING,2,HOUSING  DEMAND,RENTS,1200,,02/07/2018,40811257,2874.01,GENESIS HOUSING ASSOCIATION LTD T/A GENESIS HOUSING ASSOCIATION
Ealing Council,http://opendatacommunities.org/id/london-borough-council/ealing,REGENERATION AND HOUSING,2,HOUSING  DEMAND,RENTS,1200,,02/07/2018,40811253,34730.85,GENESIS HOUSING ASSOCIATION LTD T/A GENESIS HOUSING ASSOCIATION
Ealing Council,http://opendatacommunities.org/id/london-borough-council/ealing,REGENERATION AND HOUSING,2,HRA MANAGEMENT,CONCIERGE,2763,,09/07/2018,40811782,1064.28,PREVENTION & DETECTION (HOLDINGS) LIMITED
Ealing Council,http://opendatacommunities.org/id/london-borough-council/ealing,REGENERATION AND HOUSING,2,HRA MANAGEMENT,CONCIERGE,2763,,16/07/2018,40812975,1064.28,PREVENTION & DETECTION (HOLDINGS) LIMITED
Ealing Council,http://opendatacommunities.org/id/london-borough-council/ealing,REGENERATION AND HOUSING,2,HRA MANAGEMENT,CONCIERGE,2763,,16/07/2018,40812983,1064.28,PREVENTION & DETECTION (HOLDINGS) LIMITED
Ealing Council,http://opendatacommunities.org/id/london-borough-council/ealing,REGENERATION AND HOUSING,2,HRA MANAGEMENT,CONCIERGE,2763,,23/07/2018,40813784,1064.28,PREVENTION & DETECTION (HOLDINGS) LIMITED
Ealing Council,http://opendatacommunities.org/id/london-borough-council/ealing,REGENERATION AND HOUSING,2,HRA MANAGEMENT,CONCIERGE,2763,,23/07/2018,40813786,1064.28,PREVENTION & DETECTION (HOLDINGS) LIMITED
Ealing Council,http://opendatacommunities.org/id/london-borough-council/ealing,REGENERATION AND HOUSING,2,HRA MANAGEMENT,CONCIERGE,2763,,02/07/2018,40810601,1064.28,PREVENTION & DETECTION (HOLDINGS) LIMITED
Ealing Council,http://opendatacommunities.org/id/london-borough-council/ealing,REGENERATION AND HOUSING,2,HRA MANAGEMENT,CLOTHING & UNIFORMS,3100,,09/07/2018,40812208,345,Personal Best
Ealing Council,http://opendatacommunities.org/id/london-borough-council/ealing,REGENERATION AND HOUSING,2,HRA MANAGEMENT,CONCIERGE,2763,,02/07/2018,40810603,1064.28,PREVENTION & DETECTION (HOLDINGS) LIMITED
Ealing Council,http://opendatacommunities.org/id/london-borough-council/ealing,REGENERATION AND HOUSING,2,HRA MANAGEMENT,CONCIERGE,2763,,09/07/2018,40811537,1064.28,PREVENTION & DETECTION (HOLDINGS) LIMITED
Ealing Council,http://opendatacommunities.org/id/london-borough-council/ealing,REGENERATION AND HOUSING,2,HRA OTHER,COMPENSATION  PAYMENTS,2900,,22/06/2018,40809153,6100,Sundry Supplier - Regeneration & Housing
Ealing Council,http://opendatacommunities.org/id/london-borough-council/ealing,ENVIRONMENT & CUSTOMER SERVICES,3,STREET SERVICES,PAYMENTS TO CONTRACTORS,4000,,30/06/2018,40810712,55454,Kingdom Security Limited
Ealing Council,http://opendatacommunities.org/id/london-borough-council/ealing,ENVIRONMENT & CUSTOMER SERVICES,3,STREET SERVICES,CONTRACT PAYMENTS -CLEAN & GREEN,4010,,13/07/2018,40812659,-6169.26,ENTERPRISE MANAGED SERVICES LTD (AMEY PLC)
Ealing Council,http://opendatacommunities.org/id/london-borough-council/ealing,ENVIRONMENT & CUSTOMER SERVICES,3,STREET SERVICES,CONTRACT PAYMENTS -CLEAN & GREEN,4010,,01/07/2018,40812047,6169.26,ENTERPRISE MANAGED SERVICES LTD (AMEY PLC)
Ealing Council,http://opendatacommunities.org/id/london-borough-council/ealing,ENVIRONMENT & CUSTOMER SERVICES,3,STREET SERVICES,CONTRACT PAYMENTS -CLEAN & GREEN,4010,,11/06/2018,40810862,6169.26,ENTERPRISE MANAGED SERVICES LTD (AMEY PLC)
Ealing Council,http://opendatacommunities.org/id/london-borough-council/ealing,ENVIRONMENT & CUSTOMER SERVICES,3,STREET SERVICES,CONTRACT PAYMENTS -CLEAN & GREEN,4010,,01/07/2018,40812047,6787.13,ENTERPRISE MANAGED SERVICES LTD (AMEY PLC)
Ealing Council,http://opendatacommunities.org/id/london-borough-council/ealing,ENVIRONMENT & CUSTOMER SERVICES,3,STREET SERVICES,CONTRACT PAYMENTS -CLEAN & GREEN,4010,,11/06/2018,40810862,6787.13,ENTERPRISE MANAGED SERVICES LTD (AMEY PLC)
Ealing Council,http://opendatacommunities.org/id/london-borough-council/ealing,ENVIRONMENT & CUSTOMER SERVICES,3,STREET SERVICES,CONTRACT PAYMENTS -CLEAN & GREEN,4010,,13/07/2018,40812659,-6787.13,ENTERPRISE MANAGED SERVICES LTD (AMEY PLC)
Ealing Council,http://opendatacommunities.org/id/london-borough-council/ealing,ENVIRONMENT & CUSTOMER SERVICES,3,PARKING- OFF STREET,REPAIR AND MAINTENANCE,1410,,31/05/2018,40811045,336.57,AV GROUP LIMITED
Ealing Council,http://opendatacommunities.org/id/london-borough-council/ealing,ENVIRONMENT & CUSTOMER SERVICES,3,PARKING- OFF STREET,REPAIR AND MAINTENANCE,1410,,30/04/2018,40811049,325.72,AV GROUP LIMITED
Ealing Council,http://opendatacommunities.org/id/london-borough-council/ealing,ENVIRONMENT & CUSTOMER SERVICES,3,PARKING- OFF STREET,WATER,1140,,09/07/2018,40812248,918.8,AFFINITY WATER LTD(FORMERLY VEOLIA WATER)
Ealing Council,http://opendatacommunities.org/id/london-borough-council/ealing,ENVIRONMENT & CUSTOMER SERVICES,3,PARKING- OFF STREET,REPAIR AND MAINTENANCE,1410,,03/07/2018,40810694,416.85,OFFICE DEPOT UK LTD
Ealing Council,http://opendatacommunities.org/id/london-borough-council/ealing,ENVIRONMENT & CUSTOMER SERVICES,3,PARKING- OFF STREET,REPAIR AND MAINTENANCE,1410,,22/03/2018,40810674,9990,R.O.D. DRAINTECH LIMITED
Ealing Council,http://opendatacommunities.org/id/london-borough-council/ealing,ENVIRONMENT & CUSTOMER SERVICES,3,PARKING- OFF STREET,CIS REPAIRS AND MAINTENANCE,1411,,19/07/2018,40813177,1435,FISCOL ENGINEERING
Ealing Council,http://opendatacommunities.org/id/london-borough-council/ealing,ENVIRONMENT & CUSTOMER SERVICES,3,PARKING- OFF STREET,REPAIR AND MAINTENANCE,1410,,18/07/2018,40813200,255.5,METRIC GROUP LTD
Ealing Council,http://opendatacommunities.org/id/london-borough-council/ealing,ENVIRONMENT & CUSTOMER SERVICES,3,PARKING- OFF STREET,REPAIR AND MAINTENANCE,1410,,29/06/2018,40810220,314.5,METRIC GROUP LTD
Ealing Council,http://opendatacommunities.org/id/london-borough-council/ealing,ENVIRONMENT & CUSTOMER SERVICES,3,PARKING- OFF STREET,REPAIR AND MAINTENANCE,1410,,10/07/2018,40811883,298.38,METRIC GROUP LTD
Ealing Council,http://opendatacommunities.org/id/london-borough-council/ealing,ENVIRONMENT & CUSTOMER SERVICES,3,PARKING CONTRIBUTION,PAYMENTS TO CONTRACTORS,4000,,13/07/2018,40813990,229743.9,NSL LIMITED
Ealing Council,http://opendatacommunities.org/id/london-borough-council/ealing,ENVIRONMENT & CUSTOMER SERVICES,3,PARKING CONTRIBUTION,PRINTING,3850,,16/07/2018,40812573,12000,Sundry Supplier - Environment & Customer Services
Ealing Council,http://opendatacommunities.org/id/london-borough-council/ealing,ENVIRONMENT & CUSTOMER SERVICES,3,E&CS MANAGEMENT,HEALTH & SAFETY,2880,,01/07/2018,40811799,1287,FIRST CARE LTD
Ealing Council,http://opendatacommunities.org/id/london-borough-council/ealing,REGENERATION AND HOUSING,2,HRA OTHER,COMPENSATION  PAYMENTS,2900,,22/06/2018,40809164,6878.05,Sundry Supplier - Regeneration & Housing
Ealing Council,http://opendatacommunities.org/id/london-borough-council/ealing,REGENERATION AND HOUSING,2,HRA OTHER,COMPENSATION  PAYMENTS,2900,,13/07/2018,40812115,6100,Sundry Supplier - Regeneration & Housing
Ealing Council,http://opendatacommunities.org/id/london-borough-council/ealing,REGENERATION AND HOUSING,2,HRA OTHER,REMOVALS,2680,,23/07/2018,40814287,900,MOVIVAN LTD
Ealing Council,http://opendatacommunities.org/id/london-borough-council/ealing,REGENERATION AND HOUSING,2,HRA OTHER,REMOVALS,2680,,23/07/2018,40814288,930,MOVIVAN LTD
Ealing Council,http://opendatacommunities.org/id/london-borough-council/ealing,REGENERATION AND HOUSING,2,HRA OTHER,REMOVALS,2680,,23/07/2018,40814289,1050,MOVIVAN LTD
Ealing Council,http://opendatacommunities.org/id/london-borough-council/ealing,REGENERATION AND HOUSING,2,HRA OTHER,SECURITY SERVICES,2760,,28/06/2018,40814359,280,VPS (UK) Ltd
Ealing Council,http://opendatacommunities.org/id/london-borough-council/ealing,ENVIRONMENT & CUSTOMER SERVICES,3,LEISURE & PARKS,HOSPITALITY/ENTERTAINMENT,3530,,27/07/2018,40814617,596,LISA JANE KING - TRADING AS LK FITNESS
Ealing Council,http://opendatacommunities.org/id/london-borough-council/ealing,ENVIRONMENT & CUSTOMER SERVICES,3,LEISURE & PARKS,MISCELLANEOUS,3720,,16/07/2017,40813743,1270.5,Sundry Supplier - Environment & Customer Services
Ealing Council,http://opendatacommunities.org/id/london-borough-council/ealing,ENVIRONMENT & CUSTOMER SERVICES,3,LEISURE & PARKS,GROUNDS MAINTENANCE,1470,,16/07/2018,40812746,488.5,MOJO BARRIERS UK
Ealing Council,http://opendatacommunities.org/id/london-borough-council/ealing,ENVIRONMENT & CUSTOMER SERVICES,3,LEISURE & PARKS,MISCELLANEOUS,3720,,24/06/2018,40805789,312.5,THAMES WATER UTILITIES LTD
Ealing Council,http://opendatacommunities.org/id/london-borough-council/ealing,ENVIRONMENT & CUSTOMER SERVICES,3,LEISURE & PARKS,MISCELLANEOUS,3720,,14/02/2018,40812938,392.89,CANAL & RIVER TRUST
Ealing Council,http://opendatacommunities.org/id/london-borough-council/ealing,ENVIRONMENT & CUSTOMER SERVICES,3,LEISURE & PARKS,TRAINING,80,,30/07/2018,22542287,-508.8,Sundry Supplier - Environment & Customer Services
Ealing Council,http://opendatacommunities.org/id/london-borough-council/ealing,ENVIRONMENT & CUSTOMER SERVICES,3,LEISURE & PARKS,MISCELLANEOUS,3720,,23/05/2018,40812410,880.39,CANAL & RIVER TRUST
Ealing Council,http://opendatacommunities.org/id/london-borough-council/ealing,ENVIRONMENT & CUSTOMER SERVICES,3,LEISURE & PARKS,MISCELLANEOUS,3720,,08/12/2017,40813807,312.5,THAMES WATER UTILITIES LTD
Ealing Council,http://opendatacommunities.org/id/london-borough-council/ealing,ENVIRONMENT & CUSTOMER SERVICES,3,LEISURE & PARKS,MISCELLANEOUS,3720,,09/03/2018,40813808,312.5,THAMES WATER UTILITIES LTD
Ealing Council,http://opendatacommunities.org/id/london-borough-council/ealing,ENVIRONMENT & CUSTOMER SERVICES,3,LEISURE & PARKS,DIRECT TRANSPORT COSTS,2000,,02/07/2018,40814035,1007.74,REDACTED SENSITIVE SUPPLIER
Ealing Council,http://opendatacommunities.org/id/london-borough-council/ealing,ENVIRONMENT & CUSTOMER SERVICES,3,LEISURE & PARKS,DIRECT TRANSPORT COSTS,2000,,16/07/2018,40814036,496.5,REDACTED SENSITIVE SUPPLIER
Ealing Council,http://opendatacommunities.org/id/london-borough-council/ealing,ENVIRONMENT & CUSTOMER SERVICES,3,LEISURE & PARKS,DIRECT TRANSPORT COSTS,2000,,16/04/2018,40814020,496.5,REDACTED SENSITIVE SUPPLIER
Ealing Council,http://opendatacommunities.org/id/london-borough-council/ealing,ENVIRONMENT & CUSTOMER SERVICES,3,LEISURE & PARKS,DIRECT TRANSPORT COSTS,2000,,02/05/2018,40814011,1246.16,REDACTED SENSITIVE SUPPLIER
Ealing Council,http://opendatacommunities.org/id/london-borough-council/ealing,ENVIRONMENT & CUSTOMER SERVICES,3,LEISURE & PARKS,DIRECT TRANSPORT COSTS,2000,,16/05/2018,40814012,496.5,REDACTED SENSITIVE SUPPLIER
Ealing Council,http://opendatacommunities.org/id/london-borough-council/ealing,ENVIRONMENT & CUSTOMER SERVICES,3,LEISURE & PARKS,DIRECT TRANSPORT COSTS,2000,,03/04/2018,40814018,1007.74,REDACTED SENSITIVE SUPPLIER
Ealing Council,http://opendatacommunities.org/id/london-borough-council/ealing,ENVIRONMENT & CUSTOMER SERVICES,3,LEISURE & PARKS,DIRECT TRANSPORT COSTS,2000,,17/06/2018,40814023,496.5,REDACTED SENSITIVE SUPPLIER
Ealing Council,http://opendatacommunities.org/id/london-borough-council/ealing,ENVIRONMENT & CUSTOMER SERVICES,3,LEISURE & PARKS,DIRECT TRANSPORT COSTS,2000,,03/06/2018,40814030,1246.16,REDACTED SENSITIVE SUPPLIER
Ealing Council,http://opendatacommunities.org/id/london-borough-council/ealing,ENVIRONMENT & CUSTOMER SERVICES,3,LEISURE & PARKS,DIRECT TRANSPORT COSTS,2000,,16/05/2018,40814032,4865.76,REDACTED SENSITIVE SUPPLIER
Ealing Council,http://opendatacommunities.org/id/london-borough-council/ealing,ENVIRONMENT & CUSTOMER SERVICES,3,LEISURE & PARKS,CONTRACT PAYMENTS -PARKS GROUNDS MAINTENANCE,4040,,04/07/2018,40810705,112270.67,ENTERPRISE MANAGED SERVICES LTD (AMEY PLC)
Ealing Council,http://opendatacommunities.org/id/london-borough-council/ealing,ENVIRONMENT & CUSTOMER SERVICES,3,MAJOR PROJECTS,MISCELLANEOUS,3720,,21/06/2018,40810683,1175,Sundry Supplier - Environment & Customer Services
Ealing Council,http://opendatacommunities.org/id/london-borough-council/ealing,ENVIRONMENT & CUSTOMER SERVICES,3,MAJOR PROJECTS,MISCELLANEOUS,3720,,28/06/2018,40810240,400,Sundry Supplier - Environment & Customer Services
Ealing Council,http://opendatacommunities.org/id/london-borough-council/ealing,ENVIRONMENT & CUSTOMER SERVICES,3,E&CS MANAGEMENT,GRANTS,5010,,04/07/2018,40811619,2000,Sundry Supplier - Environment & Customer Services
Ealing Council,http://opendatacommunities.org/id/london-borough-council/ealing,ENVIRONMENT & CUSTOMER SERVICES,3,E&CS MANAGEMENT,GRANTS,5010,,21/05/2018,40810795,700,Sundry Supplier - Environment & Customer Services
Ealing Council,http://opendatacommunities.org/id/london-borough-council/ealing,ENVIRONMENT & CUSTOMER SERVICES,3,E&CS MANAGEMENT,GRANTS,5010,,21/05/2018,40810795,700,Sundry Supplier - Environment & Customer Services
Ealing Council,http://opendatacommunities.org/id/london-borough-council/ealing,ENVIRONMENT & CUSTOMER SERVICES,3,E&CS MANAGEMENT,GROUNDS MAINTENANCE,1470,,18/06/2018,40809815,3844.4,WINDOWFLOWERS LTD
Ealing Council,http://opendatacommunities.org/id/london-borough-council/ealing,ENVIRONMENT & CUSTOMER SERVICES,3,E&CS MANAGEMENT,GRANTS,5010,,25/07/2018,40814192,2500,ACTON HOMELESS CONCERN
Ealing Council,http://opendatacommunities.org/id/london-borough-council/ealing,ENVIRONMENT & CUSTOMER SERVICES,3,"ARTS, HERITAGE AND LIBRARIES",COMP SOFTWARE,3210,,10/05/2018,40813586,1558.35,TIMICO LIMITED
Ealing Council,http://opendatacommunities.org/id/london-borough-council/ealing,ENVIRONMENT & CUSTOMER SERVICES,3,"ARTS, HERITAGE AND LIBRARIES",BOOKS,3330,,01/03/2018,40811243,712.5,ZIPTALES UK LTD
Ealing Council,http://opendatacommunities.org/id/london-borough-council/ealing,ENVIRONMENT & CUSTOMER SERVICES,3,"ARTS, HERITAGE AND LIBRARIES",COMP OUTSOURCED SERVICES,3220,,10/05/2018,40811790,1741.67,Sundry Supplier - Environment & Customer Services
Ealing Council,http://opendatacommunities.org/id/london-borough-council/ealing,ENVIRONMENT & CUSTOMER SERVICES,3,"ARTS, HERITAGE AND LIBRARIES",BOOKS,3330,,30/04/2018,40812121,720,CITYSPRINT UK LTD
Ealing Council,http://opendatacommunities.org/id/london-borough-council/ealing,ENVIRONMENT & CUSTOMER SERVICES,3,"ARTS, HERITAGE AND LIBRARIES",BOOKS,3330,,31/05/2018,40812122,576,CITYSPRINT UK LTD
Ealing Council,http://opendatacommunities.org/id/london-borough-council/ealing,ENVIRONMENT & CUSTOMER SERVICES,3,"ARTS, HERITAGE AND LIBRARIES",BOOKS,3330,,30/06/2018,40812123,576,CITYSPRINT UK LTD
Ealing Council,http://opendatacommunities.org/id/london-borough-council/ealing,ENVIRONMENT & CUSTOMER SERVICES,3,"ARTS, HERITAGE AND LIBRARIES",LICENCES,2710,,23/07/2018,40813285,2107,TV LICENSING
Ealing Council,http://opendatacommunities.org/id/london-borough-council/ealing,ENVIRONMENT & CUSTOMER SERVICES,3,"ARTS, HERITAGE AND LIBRARIES",BOOKS,3330,,12/07/2018,40812412,328.97,BOOKS ASIA LTD
Ealing Council,http://opendatacommunities.org/id/london-borough-council/ealing,ENVIRONMENT & CUSTOMER SERVICES,3,"ARTS, HERITAGE AND LIBRARIES",BOOKS,3330,,25/06/2018,40809109,367.14,BOOKS ASIA LTD
Ealing Council,http://opendatacommunities.org/id/london-borough-council/ealing,ENVIRONMENT & CUSTOMER SERVICES,3,"ARTS, HERITAGE AND LIBRARIES",WATER,1140,,13/06/2018,40807605,405.45,CASTLE WATER LIMITED
Ealing Council,http://opendatacommunities.org/id/london-borough-council/ealing,ENVIRONMENT & CUSTOMER SERVICES,3,"ARTS, HERITAGE AND LIBRARIES",WATER,1140,,30/11/2016,40810210,6639.57,THAMES WATER UTILITIES LTD
Ealing Council,http://opendatacommunities.org/id/london-borough-council/ealing,CHILDREN & ADULTS,1,STRATEGIC COMMISSIONING,GRANTS,5010,,28/06/2018,40809978,34853.25,THE ASIAN HEALTH AGENCY
Ealing Council,http://opendatacommunities.org/id/london-borough-council/ealing,CHILDREN & ADULTS,1,STRATEGIC COMMISSIONING,GRANTS,5010,,28/06/2018,40809979,40000,COMMUNITY ACTIVITIES PROJECT EALING (CAPE)
Ealing Council,http://opendatacommunities.org/id/london-borough-council/ealing,CHILDREN & ADULTS,1,STRATEGIC COMMISSIONING,GRANTS,5010,,28/06/2018,40809980,93009.25,DEMENTIA CONCERN
Ealing Council,http://opendatacommunities.org/id/london-borough-council/ealing,CHILDREN & ADULTS,1,STRATEGIC COMMISSIONING,GRANTS,5010,,28/06/2018,40809981,37500,EALING ABBEY COUNSELLING SERV
Ealing Council,http://opendatacommunities.org/id/london-borough-council/ealing,CHILDREN & ADULTS,1,STRATEGIC COMMISSIONING,GRANTS,5010,,28/06/2018,40809982,56250,EALING MENCAP
Ealing Council,http://opendatacommunities.org/id/london-borough-council/ealing,CHILDREN & ADULTS,1,STRATEGIC COMMISSIONING,GRANTS,5010,,28/06/2018,40809983,1900,EALING MENCAP
Ealing Council,http://opendatacommunities.org/id/london-borough-council/ealing,CHILDREN & ADULTS,1,STRATEGIC COMMISSIONING,GRANTS,5010,,28/06/2018,40809990,12500,SUPPORT FOR LIVING LTD
Ealing Council,http://opendatacommunities.org/id/london-borough-council/ealing,CHILDREN & ADULTS,1,STRATEGIC COMMISSIONING,GRANTS,5010,,28/06/2018,40809991,20000,SUPPORT FOR LIVING LTD
Ealing Council,http://opendatacommunities.org/id/london-borough-council/ealing,CHILDREN & ADULTS,1,STRATEGIC COMMISSIONING,GRANTS,5010,,28/06/2018,40810418,12112.5,NEIGHBOURLY CARE SOUTHALL
Ealing Council,http://opendatacommunities.org/id/london-borough-council/ealing,CHILDREN & ADULTS,1,STRATEGIC COMMISSIONING,GRANTS,5010,,28/06/2018,40809984,40126.5,EALING MENCAP
Ealing Council,http://opendatacommunities.org/id/london-borough-council/ealing,CHILDREN & ADULTS,1,STRATEGIC COMMISSIONING,GRANTS,5010,,28/06/2018,40809985,3100,THE NATIONAL AUTISTIC SOCIETY
Ealing Council,http://opendatacommunities.org/id/london-borough-council/ealing,CHILDREN & ADULTS,1,STRATEGIC COMMISSIONING,GRANTS,5010,,28/06/2018,40809986,72500,NEIGHBOURLY CARE SOUTHALL
Ealing Council,http://opendatacommunities.org/id/london-borough-council/ealing,CHILDREN & ADULTS,1,STRATEGIC COMMISSIONING,GRANTS,5010,,28/06/2018,40809987,15000,SOUTHALL COMMUNITY ALLIANCE
Ealing Council,http://opendatacommunities.org/id/london-borough-council/ealing,CHILDREN & ADULTS,1,STRATEGIC COMMISSIONING,GRANTS,5010,,28/06/2018,40809988,30000,SOUTHALL DAY CENTRE
Ealing Council,http://opendatacommunities.org/id/london-borough-council/ealing,CHILDREN & ADULTS,1,STRATEGIC COMMISSIONING,GRANTS,5010,,28/06/2018,40809989,10000,SUPPORT FOR LIVING LTD
Ealing Council,http://opendatacommunities.org/id/london-borough-council/ealing,REGENERATION AND HOUSING,2,COMMUNITY SAFETY,PAYMENTS TO CONTRACTORS,4000,,16/07/2018,40812850,75396,METROPOLITAN POLICE AUTHORITY T/A MOPC
Ealing Council,http://opendatacommunities.org/id/london-borough-council/ealing,COUNCIL WIDE OTHER,9,BALANCE SHEET,CTRL OR B/S REFUNDS,6056,,18/07/2018,40814567,459,Sundry Supplier - Corporate Resources
Ealing Council,http://opendatacommunities.org/id/london-borough-council/ealing,COUNCIL WIDE OTHER,9,BALANCE SHEET,CTRL OR B/S REFUNDS,6056,,27/06/2018,40811174,1386.68,Sundry Supplier - Corporate Resources
Ealing Council,http://opendatacommunities.org/id/london-borough-council/ealing,COUNCIL WIDE OTHER,9,BALANCE SHEET,CTRL OR B/S REFUNDS,6056,,19/07/2018,40813145,292.44,Sundry Supplier - Corporate Resources
Ealing Council,http://opendatacommunities.org/id/london-borough-council/ealing,COUNCIL WIDE OTHER,9,BALANCE SHEET,CTRL OR B/S REFUNDS,6056,,17/07/2018,40813052,374.74,Sundry Supplier - Corporate Resources
Ealing Council,http://opendatacommunities.org/id/london-borough-council/ealing,CHILDREN & ADULTS,1,SAFEGUARDING & SUPPORT - CIN,SECTION 17 INTENTIONALLY HOMELESS FROM HOUSING,4299,,01/07/2018,40814067,540,SD BUILDERS LIMITED
Ealing Council,http://opendatacommunities.org/id/london-borough-council/ealing,CHILDREN & ADULTS,1,SAFEGUARDING & SUPPORT - CIN,SECTION 17 INTENTIONALLY HOMELESS FROM HOUSING,4299,,01/06/2018,40810400,1080,SD BUILDERS LIMITED
Ealing Council,http://opendatacommunities.org/id/london-borough-council/ealing,CHILDREN & ADULTS,1,SAFEGUARDING & SUPPORT - CIN,SECTION 17 INTENTIONALLY HOMELESS FROM HOUSING,4299,,01/06/2018,40810401,1620,SD BUILDERS LIMITED
Ealing Council,http://opendatacommunities.org/id/london-borough-council/ealing,CHILDREN & ADULTS,1,SAFEGUARDING & SUPPORT - CIN,SECTION 17 INTENTIONALLY HOMELESS FROM HOUSING,4299,,01/07/2018,40814066,810,SD BUILDERS LIMITED
Ealing Council,http://opendatacommunities.org/id/london-borough-council/ealing,REGENERATION AND HOUSING,2,HRA MANAGEMENT,RESIDENTS PARTICIPATION,2550,,05/07/2018,40811176,1000,Sundry Supplier - Regeneration & Housing
Ealing Council,http://opendatacommunities.org/id/london-borough-council/ealing,REGENERATION AND HOUSING,2,HRA MANAGEMENT,RESIDENTS PARTICIPATION,2550,,04/07/2018,40810959,750,CHALFONT COACHES OF HARROW LTD
Ealing Council,http://opendatacommunities.org/id/london-borough-council/ealing,REGENERATION AND HOUSING,2,HRA MANAGEMENT,RESIDENTS PARTICIPATION,2550,,04/07/2018,40810962,750,CHALFONT COACHES OF HARROW LTD
Ealing Council,http://opendatacommunities.org/id/london-borough-council/ealing,REGENERATION AND HOUSING,2,HRA MANAGEMENT,PAYMENTS TO CONTRACTORS,4000,,06/07/2018,40812518,3508,KINGSTON LANDSCAPE GROUP LTD
Ealing Council,http://opendatacommunities.org/id/london-borough-council/ealing,REGENERATION AND HOUSING,2,HRA MANAGEMENT,PAYMENTS TO CONTRACTORS,4000,,06/07/2018,40812519,13461,KINGSTON LANDSCAPE GROUP LTD
Ealing Council,http://opendatacommunities.org/id/london-borough-council/ealing,REGENERATION AND HOUSING,2,HRA MANAGEMENT,RESIDENTS PARTICIPATION,2550,,18/07/2018,40813028,1000,Sundry Supplier - Regeneration & Housing
Ealing Council,http://opendatacommunities.org/id/london-borough-council/ealing,REGENERATION AND HOUSING,2,HRA OTHER,SECURITY SERVICES,2760,,28/05/2018,40810323,280,ORBIS PROTECT LIMITED
Ealing Council,http://opendatacommunities.org/id/london-borough-council/ealing,REGENERATION AND HOUSING,2,HRA OTHER,COMPENSATION  PAYMENTS,2900,,20/07/2018,40813258,810.48,Sundry Supplier - Regeneration & Housing
Ealing Council,http://opendatacommunities.org/id/london-borough-council/ealing,ENVIRONMENT & CUSTOMER SERVICES,3,HIGHWAYS,SPECIALIST TECHNICAL CONTRACTORS,4050,,25/07/2018,40814251,15111.7,METIS CONSULTANTS LTD
Ealing Council,http://opendatacommunities.org/id/london-borough-council/ealing,ENVIRONMENT & CUSTOMER SERVICES,3,HIGHWAYS,SPECIALIST TECHNICAL CONTRACTORS,4050,,25/07/2018,40814251,-2518.62,METIS CONSULTANTS LTD
Ealing Council,http://opendatacommunities.org/id/london-borough-council/ealing,ENVIRONMENT & CUSTOMER SERVICES,3,HIGHWAYS,SPECIALIST TECHNICAL CONTRACTORS,4050,,25/07/2018,40814253,24563.67,METIS CONSULTANTS LTD
Ealing Council,http://opendatacommunities.org/id/london-borough-council/ealing,ENVIRONMENT & CUSTOMER SERVICES,3,HIGHWAYS,SPECIALIST TECHNICAL CONTRACTORS,4050,,24/07/2018,40814255,8900,METIS CONSULTANTS LTD
Ealing Council,http://opendatacommunities.org/id/london-borough-council/ealing,ENVIRONMENT & CUSTOMER SERVICES,3,HIGHWAYS,SPECIALIST TECHNICAL CONTRACTORS,4050,,25/07/2018,40814247,12736.51,METIS CONSULTANTS LTD
Ealing Council,http://opendatacommunities.org/id/london-borough-council/ealing,ENVIRONMENT & CUSTOMER SERVICES,3,HIGHWAYS,SPECIALIST TECHNICAL CONTRACTORS,4050,,25/07/2018,40814247,-2122.75,METIS CONSULTANTS LTD
Ealing Council,http://opendatacommunities.org/id/london-borough-council/ealing,ENVIRONMENT & CUSTOMER SERVICES,3,HIGHWAYS,SPECIALIST TECHNICAL CONTRACTORS,4050,,25/07/2018,40814250,12689.05,METIS CONSULTANTS LTD
Ealing Council,http://opendatacommunities.org/id/london-borough-council/ealing,ENVIRONMENT & CUSTOMER SERVICES,3,HIGHWAYS,SPECIALIST TECHNICAL CONTRACTORS,4050,,25/07/2018,40814250,-2114.84,METIS CONSULTANTS LTD
Ealing Council,http://opendatacommunities.org/id/london-borough-council/ealing,ENVIRONMENT & CUSTOMER SERVICES,3,LEISURE & PARKS,EQUIPMENT RENTAL,3335,,09/07/2018,40811807,1268.85,STEELDECK RENTALS LTD
Ealing Council,http://opendatacommunities.org/id/london-borough-council/ealing,ENVIRONMENT & CUSTOMER SERVICES,3,"ARTS, HERITAGE AND LIBRARIES",WATER,1140,,06/02/2017,40810212,4583.87,THAMES WATER UTILITIES LTD
Ealing Council,http://opendatacommunities.org/id/london-borough-council/ealing,ENVIRONMENT & CUSTOMER SERVICES,3,"ARTS, HERITAGE AND LIBRARIES",WATER,1140,,23/05/2018,40810214,15691.36,CASTLE WATER LIMITED
Ealing Council,http://opendatacommunities.org/id/london-borough-council/ealing,ENVIRONMENT & CUSTOMER SERVICES,3,"ARTS, HERITAGE AND LIBRARIES",BOOKS,3330,,11/07/2018,40812268,794.21,ASKEWS LIBRARY SERVICES LIMITED
Ealing Council,http://opendatacommunities.org/id/london-borough-council/ealing,ENVIRONMENT & CUSTOMER SERVICES,3,"ARTS, HERITAGE AND LIBRARIES",BOOKS,3330,,28/02/2018,40812119,576,CITYSPRINT UK LTD
Ealing Council,http://opendatacommunities.org/id/london-borough-council/ealing,ENVIRONMENT & CUSTOMER SERVICES,3,"ARTS, HERITAGE AND LIBRARIES",BOOKS,3330,,31/03/2018,40812120,576,CITYSPRINT UK LTD
Ealing Council,http://opendatacommunities.org/id/london-borough-council/ealing,ENVIRONMENT & CUSTOMER SERVICES,3,"ARTS, HERITAGE AND LIBRARIES",BOOKS,3330,,11/07/2018,40812266,874.44,ASKEWS LIBRARY SERVICES LIMITED
Ealing Council,http://opendatacommunities.org/id/london-borough-council/ealing,ENVIRONMENT & CUSTOMER SERVICES,3,"ARTS, HERITAGE AND LIBRARIES",BOOKS,3330,,16/07/2018,40812687,2630,OCLC (UK) LIMITED
Ealing Council,http://opendatacommunities.org/id/london-borough-council/ealing,ENVIRONMENT & CUSTOMER SERVICES,3,"ARTS, HERITAGE AND LIBRARIES",COMP SOFTWARE,3210,,30/07/2018,40814967,400,AXIELL LIMITED
Ealing Council,http://opendatacommunities.org/id/london-borough-council/ealing,ENVIRONMENT & CUSTOMER SERVICES,3,"ARTS, HERITAGE AND LIBRARIES",BOOKS,3330,,29/06/2018,40810086,400,AXIELL LIMITED
Ealing Council,http://opendatacommunities.org/id/london-borough-council/ealing,ENVIRONMENT & CUSTOMER SERVICES,3,"ARTS, HERITAGE AND LIBRARIES",PAYMENTS TO CONTRACTORS,4000,,03/07/2018,40814154,3150,Sundry Supplier - Environment & Customer Services
Ealing Council,http://opendatacommunities.org/id/london-borough-council/ealing,ENVIRONMENT & CUSTOMER SERVICES,3,"ARTS, HERITAGE AND LIBRARIES",PAYMENTS TO CONTRACTORS,4000,,15/06/2018,40809621,1689.2,ASSESSMENT SERVICES LIMITED
Ealing Council,http://opendatacommunities.org/id/london-borough-council/ealing,ENVIRONMENT & CUSTOMER SERVICES,3,CUSTOMER SERVICES OPERATIONS,COMPUTER  HARDWARE,3200,,24/07/2018,40814187,2144,Sundry Supplier - Environment & Customer Services
Ealing Council,http://opendatacommunities.org/id/london-borough-council/ealing,ENVIRONMENT & CUSTOMER SERVICES,3,BENEFITS OPERATIONS,POSTAGE,3800,,19/07/2018,40813801,1827.58,ROYAL MAIL GROUP LTD
Ealing Council,http://opendatacommunities.org/id/london-borough-council/ealing,ENVIRONMENT & CUSTOMER SERVICES,3,BENEFITS OPERATIONS,COMP SOFTWARE,3210,,30/04/2018,40807709,19500,CALLCREDIT LIMITED
Ealing Council,http://opendatacommunities.org/id/london-borough-council/ealing,ENVIRONMENT & CUSTOMER SERVICES,3,BENEFITS OPERATIONS,COMP SOFTWARE,3210,,06/07/2018,40811288,2047,IEG4 LIMITED
Ealing Council,http://opendatacommunities.org/id/london-borough-council/ealing,ENVIRONMENT & CUSTOMER SERVICES,3,BENEFITS OPERATIONS,POSTAGE,3800,,21/06/2018,40809325,1049.7,ROYAL MAIL GROUP LTD
Ealing Council,http://opendatacommunities.org/id/london-borough-council/ealing,ENVIRONMENT & CUSTOMER SERVICES,3,BENEFITS OPERATIONS,POSTAGE,3800,,05/07/2018,40811576,2139.67,ROYAL MAIL GROUP LTD
Ealing Council,http://opendatacommunities.org/id/london-borough-council/ealing,CAPITAL SCHEMES,K,ENVIRONMENT & LEISURE,CAPITAL - CONTRACT PAYMENTS,7200,,20/07/2018,40813405,44000,MURRILL CONSTRUCTION LIMITED
Ealing Council,http://opendatacommunities.org/id/london-borough-council/ealing,CAPITAL SCHEMES,K,ENVIRONMENT & LEISURE,CAPITAL - CONTRACT PAYMENTS,7200,,19/07/2018,40813295,32780,MURRILL CONSTRUCTION LIMITED
Ealing Council,http://opendatacommunities.org/id/london-borough-council/ealing,CAPITAL SCHEMES,K,ENVIRONMENT & LEISURE,CAPITAL - CONTRACT PAYMENTS,7200,,19/07/2018,40813296,25200,MURRILL CONSTRUCTION LIMITED
Ealing Council,http://opendatacommunities.org/id/london-borough-council/ealing,CAPITAL SCHEMES,K,ENVIRONMENT & LEISURE,CAPITAL - CONTRACT PAYMENTS,7200,,19/07/2018,40813298,31600,MURRILL CONSTRUCTION LIMITED
Ealing Council,http://opendatacommunities.org/id/london-borough-council/ealing,CAPITAL SCHEMES,K,ENVIRONMENT & LEISURE,CAPITAL - CONTRACT PAYMENTS,7200,,19/07/2018,40813301,24800,MURRILL CONSTRUCTION LIMITED
Ealing Council,http://opendatacommunities.org/id/london-borough-council/ealing,CAPITAL SCHEMES,K,ENVIRONMENT & LEISURE,CAPITAL - CONTRACT PAYMENTS,7200,,19/07/2018,40813303,4400,MURRILL CONSTRUCTION LIMITED
Ealing Council,http://opendatacommunities.org/id/london-borough-council/ealing,CAPITAL SCHEMES,K,ENVIRONMENT & LEISURE,CAPITAL - CONTRACT PAYMENTS,7200,,19/07/2018,40813366,9200,MURRILL CONSTRUCTION LIMITED
Ealing Council,http://opendatacommunities.org/id/london-borough-council/ealing,CAPITAL SCHEMES,K,ENVIRONMENT & LEISURE,CAPITAL - CONTRACT PAYMENTS,7200,,19/07/2018,40813367,38400,MURRILL CONSTRUCTION LIMITED
Ealing Council,http://opendatacommunities.org/id/london-borough-council/ealing,CAPITAL SCHEMES,K,ENVIRONMENT & LEISURE,CAPITAL - CONTRACT PAYMENTS,7200,,19/07/2018,40813368,43600,MURRILL CONSTRUCTION LIMITED
Ealing Council,http://opendatacommunities.org/id/london-borough-council/ealing,CAPITAL SCHEMES,K,ENVIRONMENT & LEISURE,CAPITAL - CONTRACT PAYMENTS,7200,,19/07/2018,40813369,37600,MURRILL CONSTRUCTION LIMITED
Ealing Council,http://opendatacommunities.org/id/london-borough-council/ealing,CAPITAL SCHEMES,K,ENVIRONMENT & LEISURE,CAPITAL - CONTRACT PAYMENTS,7200,,19/07/2018,40813370,18000,MURRILL CONSTRUCTION LIMITED
Ealing Council,http://opendatacommunities.org/id/london-borough-council/ealing,CAPITAL SCHEMES,K,ENVIRONMENT & LEISURE,CAPITAL - CONTRACT PAYMENTS,7200,,19/07/2018,40813352,1200,MURRILL CONSTRUCTION LIMITED
Ealing Council,http://opendatacommunities.org/id/london-borough-council/ealing,CAPITAL SCHEMES,K,ENVIRONMENT & LEISURE,CAPITAL - CONTRACT PAYMENTS,7200,,19/07/2018,40813355,8400,MURRILL CONSTRUCTION LIMITED
Ealing Council,http://opendatacommunities.org/id/london-borough-council/ealing,CAPITAL SCHEMES,K,ENVIRONMENT & LEISURE,CAPITAL - CONTRACT PAYMENTS,7200,,19/07/2018,40813356,11200,MURRILL CONSTRUCTION LIMITED
Ealing Council,http://opendatacommunities.org/id/london-borough-council/ealing,CAPITAL SCHEMES,K,ENVIRONMENT & LEISURE,CAPITAL - CONTRACT PAYMENTS,7200,,19/07/2018,40813357,31600,MURRILL CONSTRUCTION LIMITED
Ealing Council,http://opendatacommunities.org/id/london-borough-council/ealing,CAPITAL SCHEMES,K,ENVIRONMENT & LEISURE,CAPITAL - CONTRACT PAYMENTS,7200,,19/07/2018,40813361,27600,MURRILL CONSTRUCTION LIMITED
Ealing Council,http://opendatacommunities.org/id/london-borough-council/ealing,CAPITAL SCHEMES,K,ENVIRONMENT & LEISURE,CAPITAL - CONTRACT PAYMENTS,7200,,19/07/2018,40813365,35200,MURRILL CONSTRUCTION LIMITED
Ealing Council,http://opendatacommunities.org/id/london-borough-council/ealing,CAPITAL SCHEMES,K,ENVIRONMENT & LEISURE,CAPITAL - CONTRACT PAYMENTS,7200,,19/07/2018,40813320,2800,MURRILL CONSTRUCTION LIMITED
Ealing Council,http://opendatacommunities.org/id/london-borough-council/ealing,CAPITAL SCHEMES,K,ENVIRONMENT & LEISURE,CAPITAL - CONTRACT PAYMENTS,7200,,19/07/2018,40813321,8800,MURRILL CONSTRUCTION LIMITED
Ealing Council,http://opendatacommunities.org/id/london-borough-council/ealing,CAPITAL SCHEMES,K,ENVIRONMENT & LEISURE,CAPITAL - CONTRACT PAYMENTS,7200,,19/07/2018,40813323,5338.46,MURRILL CONSTRUCTION LIMITED
Ealing Council,http://opendatacommunities.org/id/london-borough-council/ealing,CAPITAL SCHEMES,K,ENVIRONMENT & LEISURE,CAPITAL - CONTRACT PAYMENTS,7200,,19/07/2018,40813339,2400,MURRILL CONSTRUCTION LIMITED
Ealing Council,http://opendatacommunities.org/id/london-borough-council/ealing,CAPITAL SCHEMES,K,ENVIRONMENT & LEISURE,CAPITAL - CONTRACT PAYMENTS,7200,,19/07/2018,40813344,4000,MURRILL CONSTRUCTION LIMITED
Ealing Council,http://opendatacommunities.org/id/london-borough-council/ealing,CAPITAL SCHEMES,K,ENVIRONMENT & LEISURE,CAPITAL - CONTRACT PAYMENTS,7200,,19/07/2018,40813349,6800,MURRILL CONSTRUCTION LIMITED
Ealing Council,http://opendatacommunities.org/id/london-borough-council/ealing,CAPITAL SCHEMES,K,ENVIRONMENT & LEISURE,CAPITAL - CONTRACT PAYMENTS,7200,,19/07/2018,40813305,28000,MURRILL CONSTRUCTION LIMITED
Ealing Council,http://opendatacommunities.org/id/london-borough-council/ealing,CAPITAL SCHEMES,K,ENVIRONMENT & LEISURE,CAPITAL - CONTRACT PAYMENTS,7200,,19/07/2018,40813308,48800,MURRILL CONSTRUCTION LIMITED
Ealing Council,http://opendatacommunities.org/id/london-borough-council/ealing,CHILDREN & ADULTS,1,PUBLIC HEALTH MENTAL HEALTH,PAYMENTS TO CONTRACTORS,4000,,02/07/2018,40810758,8465.8,EALING LIVE AT HOME SCHEME
Ealing Council,http://opendatacommunities.org/id/london-borough-council/ealing,CHILDREN & ADULTS,1,PUBLIC HEALTH SEXUAL HEALTH,PAYMENTS TO CONTRACTORS,4000,,28/06/2018,40810048,9313.75,THE RIVER HOUSE TRUST
Ealing Council,http://opendatacommunities.org/id/london-borough-council/ealing,REGENERATION AND HOUSING,2,PROPERTY & REGENERATION,TELEPHONE,3230,,05/07/2018,40812191,855.39,BRITISH TELECOM
Ealing Council,http://opendatacommunities.org/id/london-borough-council/ealing,REGENERATION AND HOUSING,2,PROPERTY & REGENERATION,SERVICES CONTRACTS AGENCY INTERIM CONSULTANTS,2970,,12/05/2018,40811252,3532.09,Sundry Supplier - Regeneration & Housing
Ealing Council,http://opendatacommunities.org/id/london-borough-council/ealing,REGENERATION AND HOUSING,2,BUILDING CONTROL,SUBSCRIPTIONS,3600,,08/03/2018,40813159,2756.99,DISTRICT SURVEYORS ASSOCN LTD-T/A LABC
Ealing Council,http://opendatacommunities.org/id/london-borough-council/ealing,CAPITAL SCHEMES,K,HOUSING (GENERAL FUND),CAPITAL - EMPLOYEE FEES,7590,,30/06/2018,40811408,2500,ALAN CONISBEE AND ASSOCIATES
Ealing Council,http://opendatacommunities.org/id/london-borough-council/ealing,COUNCIL WIDE OTHER,9,BALANCE SHEET,CTRL OR B/S VAT PAYMENTS AT STANDARD RATE,6019,,11/04/2017,40811178,311.2,P DUTSON ASSOCIATES LTD
Ealing Council,http://opendatacommunities.org/id/london-borough-council/ealing,COUNCIL WIDE OTHER,9,BALANCE SHEET,CTRL OR B/S VAT PAYMENTS AT STANDARD RATE,6019,,10/08/2011,40811428,469.6,P DUTSON ASSOCIATES LTD
Ealing Council,http://opendatacommunities.org/id/london-borough-council/ealing,COUNCIL WIDE OTHER,9,BALANCE SHEET,CTRL OR B/S VAT PAYMENTS AT STANDARD RATE,6019,,31/01/2018,40796070,376.8,BROWNE JACOBSON LLP
Ealing Council,http://opendatacommunities.org/id/london-borough-council/ealing,COUNCIL WIDE OTHER,9,BALANCE SHEET,CTRL OR B/S VAT PAYMENTS AT STANDARD RATE,6019,,31/01/2018,40784216,492,DAC BEACHCROFT
Ealing Council,http://opendatacommunities.org/id/london-borough-council/ealing,COUNCIL WIDE OTHER,9,BALANCE SHEET,CTRL OR B/S VAT PAYMENTS AT STANDARD RATE,6019,,29/11/2017,40784218,255,DAC BEACHCROFT
Ealing Council,http://opendatacommunities.org/id/london-borough-council/ealing,CHILDREN & ADULTS,1,SAFEGUARDING & SUPPORT - CIC,CHILDRENS SERVICES REGULATION 38 OTHER PAYMENTS,4386,,24/07/2018,22532233,256.9,REDACTED SENSITIVE SUPPLIER
Ealing Council,http://opendatacommunities.org/id/london-borough-council/ealing,CHILDREN & ADULTS,1,SAFEGUARDING & SUPPORT - CIC,CHILDRENS SERVICES REGULATION 38 OTHER PAYMENTS,4386,,03/07/2018,22526100,2184.05,REDACTED SENSITIVE SUPPLIER
Ealing Council,http://opendatacommunities.org/id/london-borough-council/ealing,CHILDREN & ADULTS,1,SAFEGUARDING & SUPPORT - CIC,CHILDRENS SERVICES REGULATION 38 OTHER PAYMENTS,4386,,03/07/2018,22526112,253.1,REDACTED SENSITIVE SUPPLIER
Ealing Council,http://opendatacommunities.org/id/london-borough-council/ealing,CHILDREN & ADULTS,1,SAFEGUARDING & SUPPORT - CIC,CHILDRENS SERVICES REGULATION 38 OTHER PAYMENTS,4386,,17/07/2018,22528657,2854.37,REDACTED SENSITIVE SUPPLIER
Ealing Council,http://opendatacommunities.org/id/london-borough-council/ealing,CHILDREN & ADULTS,1,SAFEGUARDING & SUPPORT - CIC,CHILDRENS SERVICES REGULATION 38 OTHER PAYMENTS,4386,,17/07/2018,22528657,2281.11,REDACTED SENSITIVE SUPPLIER
Ealing Council,http://opendatacommunities.org/id/london-borough-council/ealing,CHILDREN & ADULTS,1,SAFEGUARDING & SUPPORT - CIC,CHILDRENS SERVICES REGULATION 38 OTHER PAYMENTS,4386,,17/07/2018,22528857,1002.06,REDACTED SENSITIVE SUPPLIER
Ealing Council,http://opendatacommunities.org/id/london-borough-council/ealing,CHILDREN & ADULTS,1,SAFEGUARDING & SUPPORT - CIC,CHILDRENS SERVICES REGULATION 38 OTHER PAYMENTS,4386,,17/07/2018,22528857,800.81,REDACTED SENSITIVE SUPPLIER
Ealing Council,http://opendatacommunities.org/id/london-borough-council/ealing,CHILDREN & ADULTS,1,SAFEGUARDING & SUPPORT - CIC,CHILDRENS SERVICES REGULATION 38 OTHER PAYMENTS,4386,,17/07/2018,22528857,800.81,REDACTED SENSITIVE SUPPLIER
Ealing Council,http://opendatacommunities.org/id/london-borough-council/ealing,CHILDREN & ADULTS,1,SAFEGUARDING & SUPPORT - CIC,CHILDRENS SERVICES REGULATION 38 OTHER PAYMENTS,4386,,17/07/2018,22528857,1002.06,REDACTED SENSITIVE SUPPLIER
Ealing Council,http://opendatacommunities.org/id/london-borough-council/ealing,REGENERATION AND HOUSING,2,HOUSING  DEMAND,RENTS,1200,,30/07/2018,40814911,16926,SAI PROPERTY DEV LTD T/A THE  PROPERTY BANK
Ealing Council,http://opendatacommunities.org/id/london-borough-council/ealing,REGENERATION AND HOUSING,2,HOUSING  DEMAND,RENTS,1200,,26/07/2018,40814611,38061.38,EALING HOUSING LIMITED
Ealing Council,http://opendatacommunities.org/id/london-borough-council/ealing,REGENERATION AND HOUSING,2,HOUSING  DEMAND,RENTS,1200,,27/07/2018,40814624,12245,STAINES DEVELOPMENTS NO2 LIMITED
Ealing Council,http://opendatacommunities.org/id/london-borough-council/ealing,REGENERATION AND HOUSING,2,HOUSING  DEMAND,RENTS,1200,,23/07/2018,40813762,5812.5,iPROPERTIES LTD
Ealing Council,http://opendatacommunities.org/id/london-borough-council/ealing,REGENERATION AND HOUSING,2,HOUSING  DEMAND,RENTS,1200,,30/06/2018,40811574,30825,RHP LETTINGS LTD
Ealing Council,http://opendatacommunities.org/id/london-borough-council/ealing,REGENERATION AND HOUSING,2,HOUSING  DEMAND,RENTS,1200,,01/07/2018,40811572,1350,SUNWIN PROPERTIES LTD - T/A HOMELINK
Ealing Council,http://opendatacommunities.org/id/london-borough-council/ealing,REGENERATION AND HOUSING,2,HOUSING  DEMAND,RENTS,1200,,04/07/2018,40810688,9660,PSL LEASING LIMITED
Ealing Council,http://opendatacommunities.org/id/london-borough-council/ealing,REGENERATION AND HOUSING,2,HOUSING  DEMAND,RENTS,1200,,04/07/2018,40810864,15540,REGIONS LTD - T/A REGIONS ESTATES
Ealing Council,http://opendatacommunities.org/id/london-borough-council/ealing,REGENERATION AND HOUSING,2,HOUSING  DEMAND,RENTS,1200,,04/07/2018,40810875,19500,HOMELINK ESTATE AGENTS LTD
Ealing Council,http://opendatacommunities.org/id/london-borough-council/ealing,REGENERATION AND HOUSING,2,HOUSING  DEMAND,RENTS,1200,,02/07/2018,40812203,43830,ASHBURN RENTALS LTD
Ealing Council,http://opendatacommunities.org/id/london-borough-council/ealing,REGENERATION AND HOUSING,2,HOUSING  DEMAND,RENTS,1200,,13/07/2018,40812499,1890,CASTLE RESIDENTIAL HOUSING LTD
Ealing Council,http://opendatacommunities.org/id/london-borough-council/ealing,REGENERATION AND HOUSING,2,HOUSING  DEMAND,RENTS,1200,,30/06/2018,40810963,23520,APEX HOUSING SOLUTIONS LTD
Ealing Council,http://opendatacommunities.org/id/london-borough-council/ealing,REGENERATION AND HOUSING,2,HOUSING  DEMAND,RENTS,1200,,02/07/2018,40810382,16580,SAI PROPERTY DEV LTD T/A THE  PROPERTY BANK
Ealing Council,http://opendatacommunities.org/id/london-borough-council/ealing,REGENERATION AND HOUSING,2,HOUSING  DEMAND,RENTS,1200,,01/07/2018,40810394,3870,RENT CONNECT HOUSING LTD T/A RENT CONNECT
Ealing Council,http://opendatacommunities.org/id/london-borough-council/ealing,REGENERATION AND HOUSING,2,HOUSING  DEMAND,RENTS,1200,,02/07/2018,40810426,69966,LETTING INTERNATIONAL LIMITED
Ealing Council,http://opendatacommunities.org/id/london-borough-council/ealing,REGENERATION AND HOUSING,2,HOUSING  DEMAND,RENTS,1200,,02/07/2018,40810428,3750,LINK ESTATES LIMITED
Ealing Council,http://opendatacommunities.org/id/london-borough-council/ealing,REGENERATION AND HOUSING,2,HOUSING  DEMAND,RENTS,1200,,01/07/2018,40810666,10290,MIDOS MANAGEMENT COMPANY LTD
Ealing Council,http://opendatacommunities.org/id/london-borough-council/ealing,REGENERATION AND HOUSING,2,HOUSING  DEMAND,RENTS,1200,,29/06/2018,40810682,2490,VESTURE MANAGEMENT LTD - T/A VESTURE LONDON
Ealing Council,http://opendatacommunities.org/id/london-borough-council/ealing,CHILDREN & ADULTS,1,PUBLIC HEALTH DRUGS AND ALCOHOL,PAYMENTS TO CONTRACTORS,4000,,21/05/2018,40809838,5000,Sundry Supplier - Children and Adults
Ealing Council,http://opendatacommunities.org/id/london-borough-council/ealing,REGENERATION AND HOUSING,2,PROPERTY & REGENERATION,PAYMENTS TO CONTRACTORS,4000,,16/03/2017,40810645,2909.24,COSECTOR LTD - UNIVERSITY OF LONDON
Ealing Council,http://opendatacommunities.org/id/london-borough-council/ealing,REGENERATION AND HOUSING,2,PROPERTY & REGENERATION,PAYMENTS TO CONTRACTORS,4000,,03/04/2017,40810652,1818.72,COSECTOR LTD - UNIVERSITY OF LONDON
Ealing Council,http://opendatacommunities.org/id/london-borough-council/ealing,REGENERATION AND HOUSING,2,PROPERTY & REGENERATION,PAYMENTS TO OTHER LA'S,4260,,03/04/2017,40810643,1830.31,COSECTOR LTD - UNIVERSITY OF LONDON
Ealing Council,http://opendatacommunities.org/id/london-borough-council/ealing,REGENERATION AND HOUSING,2,PROPERTY & REGENERATION,PAYMENTS TO OTHER LA'S,4260,,05/01/2018,40810651,1717.35,COSECTOR LTD - UNIVERSITY OF LONDON
Ealing Council,http://opendatacommunities.org/id/london-borough-council/ealing,REGENERATION AND HOUSING,2,PROPERTY & REGENERATION,FEES & CHARGES (NON VATABLE),8211,,06/07/2018,40811616,5775,Sundry Supplier - Regeneration & Housing
Ealing Council,http://opendatacommunities.org/id/london-borough-council/ealing,REGENERATION AND HOUSING,2,PROPERTY & REGENERATION,FEES & CHARGES (NON VATABLE),8211,,10/07/2018,40811667,924,Sundry Supplier - Regeneration & Housing
Ealing Council,http://opendatacommunities.org/id/london-borough-council/ealing,REGENERATION AND HOUSING,2,PROPERTY & REGENERATION,FEES & CHARGES (NON VATABLE),8211,,19/07/2018,40813093,256,Sundry Supplier - Regeneration & Housing
Ealing Council,http://opendatacommunities.org/id/london-borough-council/ealing,REGENERATION AND HOUSING,2,PROPERTY & REGENERATION,PAYMENTS TO OTHER LA'S,4260,,03/04/2017,40810646,1830.31,COSECTOR LTD - UNIVERSITY OF LONDON
Ealing Council,http://opendatacommunities.org/id/london-borough-council/ealing,REGENERATION AND HOUSING,2,PROPERTY & REGENERATION,SUBSCRIPTIONS,3600,,01/07/2018,40812985,400,PLANNING OFFICERS SOCIETY
Ealing Council,http://opendatacommunities.org/id/london-borough-council/ealing,REGENERATION AND HOUSING,2,PROPERTY & REGENERATION,VEHICLE HIRE,2010,,20/07/2018,40813453,320,THE IMPACT GROUP LIMITED
Ealing Council,http://opendatacommunities.org/id/london-borough-council/ealing,REGENERATION AND HOUSING,2,PROPERTY & REGENERATION,PAYMENTS TO OTHER LA'S,4260,,16/03/2017,40810647,2545.62,COSECTOR LTD - UNIVERSITY OF LONDON
Ealing Council,http://opendatacommunities.org/id/london-borough-council/ealing,REGENERATION AND HOUSING,2,PROPERTY & REGENERATION,PAYMENTS TO OTHER LA'S,4260,,16/03/2017,40810649,2545.62,COSECTOR LTD - UNIVERSITY OF LONDON
Ealing Council,http://opendatacommunities.org/id/london-borough-council/ealing,REGENERATION AND HOUSING,2,PROPERTY & REGENERATION,PAYMENTS TO OTHER LA'S,4260,,09/02/2018,40810650,1288.01,COSECTOR LTD - UNIVERSITY OF LONDON
Ealing Council,http://opendatacommunities.org/id/london-borough-council/ealing,REGENERATION AND HOUSING,2,PROPERTY & REGENERATION,MINOR EQUIP PURCHASE,3320,,08/06/2018,40811034,730,REDACTED SENSITIVE SUPPLIER
Ealing Council,http://opendatacommunities.org/id/london-borough-council/ealing,REGENERATION AND HOUSING,2,PROPERTY & REGENERATION,SPECIALIST TECHNICAL CONTRACTORS,4050,,17/07/2018,40812864,3258.39,EDGEPLAN LTD
Ealing Council,http://opendatacommunities.org/id/london-borough-council/ealing,REGENERATION AND HOUSING,2,PROPERTY & REGENERATION,SPECIALIST TECHNICAL CONTRACTORS,4050,,17/07/2018,40812869,2617.1,EDGEPLAN LTD
Ealing Council,http://opendatacommunities.org/id/london-borough-council/ealing,REGENERATION AND HOUSING,2,TRANSPORT,HOSPITALITY/ENTERTAINMENT,3530,,05/07/2018,40811046,1000,Sundry Supplier - Regeneration & Housing
Ealing Council,http://opendatacommunities.org/id/london-borough-council/ealing,REGENERATION AND HOUSING,2,TRANSPORT,EXTERNAL TECHNICAL ADVICE,4060,,03/07/2018,40813872,900,MR R REED - T/A THE BICYCLE SOCIETY
Ealing Council,http://opendatacommunities.org/id/london-borough-council/ealing,REGENERATION AND HOUSING,2,TRANSPORT,EXTERNAL TECHNICAL ADVICE,4060,,23/07/2018,40813875,3800,MR R REED - T/A THE BICYCLE SOCIETY
Ealing Council,http://opendatacommunities.org/id/london-borough-council/ealing,REGENERATION AND HOUSING,2,TRANSPORT,SPECIALIST TECHNICAL CONTRACTORS,4050,,03/07/2018,40810678,1500,MR R REED - T/A THE BICYCLE SOCIETY
Ealing Council,http://opendatacommunities.org/id/london-borough-council/ealing,REGENERATION AND HOUSING,2,TRANSPORT,SPECIALIST TECHNICAL CONTRACTORS,4050,,13/07/2018,40812509,1500,MR R REED - T/A THE BICYCLE SOCIETY
Ealing Council,http://opendatacommunities.org/id/london-borough-council/ealing,REGENERATION AND HOUSING,2,TRANSPORT,SPECIALIST TECHNICAL CONTRACTORS,4050,,16/07/2018,40813138,288,Sundry Supplier - Regeneration & Housing
Ealing Council,http://opendatacommunities.org/id/london-borough-council/ealing,CHILDREN & ADULTS,1,SCHOOLS EFFECTIVENESS,MISC. - EXTRA CURRICULA,3726,,03/07/2018,40810866,3944,EDUCATION BUSINESS SERVICES INTERNL (UK) LTD
Ealing Council,http://opendatacommunities.org/id/london-borough-council/ealing,CHILDREN & ADULTS,1,SCHOOLS EFFECTIVENESS,LINK COURSES,4441,,17/01/2018,40810384,6297.5,THE LIGHTHOUSE GROUP
Ealing Council,http://opendatacommunities.org/id/london-borough-council/ealing,CHILDREN & ADULTS,1,SCHOOLS EFFECTIVENESS,LINK COURSES,4441,,26/01/2018,40795189,3570,LET ME PLAY LIMITED
Ealing Council,http://opendatacommunities.org/id/london-borough-council/ealing,CHILDREN & ADULTS,1,SCHOOLS EFFECTIVENESS,LINK COURSES,4441,,04/04/2018,40801911,2550,LET ME PLAY LIMITED
Ealing Council,http://opendatacommunities.org/id/london-borough-council/ealing,CHILDREN & ADULTS,1,SCHOOLS EFFECTIVENESS,SERVICES CONTRACTS AGENCY INTERIM CONSULTANTS,2970,,02/07/2018,40810469,3600,BRADATA LTD
Ealing Council,http://opendatacommunities.org/id/london-borough-council/ealing,CHILDREN & ADULTS,1,SCHOOLS EFFECTIVENESS,CLEANING CONTRACT,1300,,29/06/2018,40810328,1455,INTERACTIVE FACILITIES MANAGEMENT LTD
Ealing Council,http://opendatacommunities.org/id/london-borough-council/ealing,CHILDREN & ADULTS,1,SCHOOLS EFFECTIVENESS,EXAM FEES,2820,,23/02/2018,40811015,279.5,AQA (ASSESSMENT & QUALCTNS ALLIANCE)
Ealing Council,http://opendatacommunities.org/id/london-borough-council/ealing,CHILDREN & ADULTS,1,SCHOOLS EFFECTIVENESS,EXAM FEES,2820,,16/03/2018,40811019,3027,AQA (ASSESSMENT & QUALCTNS ALLIANCE)
Ealing Council,http://opendatacommunities.org/id/london-borough-council/ealing,CHILDREN & ADULTS,1,SAFEGUARDING & SUPPORT - CIC,SECTION 2(16) PAYROLL TRANSACTIONS,4270,,10/07/2018,40811875,305.6,Child Action Northwest
Ealing Council,http://opendatacommunities.org/id/london-borough-council/ealing,CHILDREN & ADULTS,1,SAFEGUARDING & SUPPORT - CIC,SOCIAL SERVICES CONTRACTUAL CARERS ALLOWANCES,4380,,14/05/2018,40813430,414,REDACTED SENSITIVE SUPPLIER
Ealing Council,http://opendatacommunities.org/id/london-borough-council/ealing,CHILDREN & ADULTS,1,SAFEGUARDING & SUPPORT - CIC,PAYMENTS TO HEALTH AUTHS.,4360,,19/07/2018,40813284,106197,WEST LONDON MENTAL HEALTH NHS TRUST
Ealing Council,http://opendatacommunities.org/id/london-borough-council/ealing,CHILDREN & ADULTS,1,SAFEGUARDING & SUPPORT - CIC,VEHICLE HIRE,2010,,06/07/2018,40811355,1260,MANOR WHEELS
Ealing Council,http://opendatacommunities.org/id/london-borough-council/ealing,CHILDREN & ADULTS,1,SAFEGUARDING & SUPPORT - CIN,RESIDENTIAL HOMES EXTERNAL,4220,,02/05/2018,40813526,867.81,REDACTED SENSITIVE SUPPLIER
Ealing Council,http://opendatacommunities.org/id/london-borough-council/ealing,CHILDREN & ADULTS,1,SAFEGUARDING & SUPPORT - CIN,RESIDENTIAL HOMES EXTERNAL,4220,,10/05/2018,40813597,891.51,REDACTED SENSITIVE SUPPLIER
Ealing Council,http://opendatacommunities.org/id/london-borough-council/ealing,CHILDREN & ADULTS,1,SAFEGUARDING & SUPPORT - CIN,RESIDENTIAL HOMES EXTERNAL,4220,,30/04/2018,40813468,1305,REDACTED SENSITIVE SUPPLIER
Ealing Council,http://opendatacommunities.org/id/london-borough-council/ealing,CHILDREN & ADULTS,1,SAFEGUARDING & SUPPORT - CIN,RESIDENTIAL HOMES EXTERNAL,4220,,28/02/2018,40813470,2610,REDACTED SENSITIVE SUPPLIER
Ealing Council,http://opendatacommunities.org/id/london-borough-council/ealing,CHILDREN & ADULTS,1,SAFEGUARDING & SUPPORT - CIN,RESIDENTIAL HOMES EXTERNAL,4220,,01/03/2015,40813472,1348.5,REDACTED SENSITIVE SUPPLIER
Ealing Council,http://opendatacommunities.org/id/london-borough-council/ealing,CHILDREN & ADULTS,1,SAFEGUARDING & SUPPORT - CIN,RESIDENTIAL HOMES EXTERNAL,4220,,02/05/2018,40813528,867.81,REDACTED SENSITIVE SUPPLIER
Ealing Council,http://opendatacommunities.org/id/london-borough-council/ealing,CHILDREN & ADULTS,1,SAFEGUARDING & SUPPORT - CIN,RESIDENTIAL HOMES EXTERNAL,4220,,02/05/2018,40813574,393.6,REDACTED SENSITIVE SUPPLIER
Ealing Council,http://opendatacommunities.org/id/london-borough-council/ealing,CHILDREN & ADULTS,1,SAFEGUARDING & SUPPORT - CIN,RESIDENTIAL HOMES EXTERNAL,4220,,02/05/2018,40813553,393.6,REDACTED SENSITIVE SUPPLIER
Ealing Council,http://opendatacommunities.org/id/london-borough-council/ealing,CHILDREN & ADULTS,1,SAFEGUARDING & SUPPORT - CIN,RESIDENTIAL HOMES EXTERNAL,4220,,02/05/2018,40813564,818.57,REDACTED SENSITIVE SUPPLIER
Ealing Council,http://opendatacommunities.org/id/london-borough-council/ealing,CHILDREN & ADULTS,1,SAFEGUARDING & SUPPORT - CIN,RESIDENTIAL HOMES EXTERNAL,4220,,02/05/2018,40813564,393.6,REDACTED SENSITIVE SUPPLIER
Ealing Council,http://opendatacommunities.org/id/london-borough-council/ealing,CHILDREN & ADULTS,1,SAFEGUARDING & SUPPORT - CIN,RESIDENTIAL HOMES EXTERNAL,4220,,02/05/2018,40813566,699.69,REDACTED SENSITIVE SUPPLIER
Ealing Council,http://opendatacommunities.org/id/london-borough-council/ealing,CHILDREN & ADULTS,1,SAFEGUARDING & SUPPORT - CIN,RESIDENTIAL HOMES EXTERNAL,4220,,02/05/2018,40813566,393.6,REDACTED SENSITIVE SUPPLIER
Ealing Council,http://opendatacommunities.org/id/london-borough-council/ealing,CHILDREN & ADULTS,1,SAFEGUARDING & SUPPORT - CIN,RESIDENTIAL HOMES EXTERNAL,4220,,02/05/2018,40813574,699.69,REDACTED SENSITIVE SUPPLIER
Ealing Council,http://opendatacommunities.org/id/london-borough-council/ealing,CHILDREN & ADULTS,1,SAFEGUARDING & SUPPORT - CIN,RESIDENTIAL HOMES EXTERNAL,4220,,02/05/2018,40813542,393.6,REDACTED SENSITIVE SUPPLIER
Ealing Council,http://opendatacommunities.org/id/london-borough-council/ealing,CHILDREN & ADULTS,1,SAFEGUARDING & SUPPORT - CIN,RESIDENTIAL HOMES EXTERNAL,4220,,02/05/2018,40813548,818.57,REDACTED SENSITIVE SUPPLIER
Ealing Council,http://opendatacommunities.org/id/london-borough-council/ealing,CHILDREN & ADULTS,1,SAFEGUARDING & SUPPORT - CIN,RESIDENTIAL HOMES EXTERNAL,4220,,02/05/2018,40813548,393.6,REDACTED SENSITIVE SUPPLIER
Ealing Council,http://opendatacommunities.org/id/london-borough-council/ealing,CHILDREN & ADULTS,1,SAFEGUARDING & SUPPORT - CIN,RESIDENTIAL HOMES EXTERNAL,4220,,02/05/2018,40813549,699.69,REDACTED SENSITIVE SUPPLIER
Ealing Council,http://opendatacommunities.org/id/london-borough-council/ealing,CHILDREN & ADULTS,1,SAFEGUARDING & SUPPORT - CIN,RESIDENTIAL HOMES EXTERNAL,4220,,02/05/2018,40813549,393.6,REDACTED SENSITIVE SUPPLIER
Ealing Council,http://opendatacommunities.org/id/london-borough-council/ealing,CHILDREN & ADULTS,1,SAFEGUARDING & SUPPORT - CIN,RESIDENTIAL HOMES EXTERNAL,4220,,02/05/2018,40813553,699.69,REDACTED SENSITIVE SUPPLIER
Ealing Council,http://opendatacommunities.org/id/london-borough-council/ealing,CHILDREN & ADULTS,1,SAFEGUARDING & SUPPORT - CIN,RESIDENTIAL HOMES EXTERNAL,4220,,10/05/2018,40813525,393.6,REDACTED SENSITIVE SUPPLIER
Ealing Council,http://opendatacommunities.org/id/london-borough-council/ealing,CHILDREN & ADULTS,1,SAFEGUARDING & SUPPORT - CIN,RESIDENTIAL HOMES EXTERNAL,4220,,02/05/2018,40813535,818.57,REDACTED SENSITIVE SUPPLIER
Ealing Council,http://opendatacommunities.org/id/london-borough-council/ealing,CHILDREN & ADULTS,1,SAFEGUARDING & SUPPORT - CIN,RESIDENTIAL HOMES EXTERNAL,4220,,02/05/2018,40813535,393.6,REDACTED SENSITIVE SUPPLIER
Ealing Council,http://opendatacommunities.org/id/london-borough-council/ealing,CHILDREN & ADULTS,1,SAFEGUARDING & SUPPORT - CIN,RESIDENTIAL HOMES EXTERNAL,4220,,02/05/2018,40813541,818.57,REDACTED SENSITIVE SUPPLIER
Ealing Council,http://opendatacommunities.org/id/london-borough-council/ealing,CHILDREN & ADULTS,1,SAFEGUARDING & SUPPORT - CIN,RESIDENTIAL HOMES EXTERNAL,4220,,02/05/2018,40813541,393.6,REDACTED SENSITIVE SUPPLIER
Ealing Council,http://opendatacommunities.org/id/london-borough-council/ealing,CHILDREN & ADULTS,1,SAFEGUARDING & SUPPORT - CIN,RESIDENTIAL HOMES EXTERNAL,4220,,02/05/2018,40813542,818.57,REDACTED SENSITIVE SUPPLIER
Ealing Council,http://opendatacommunities.org/id/london-borough-council/ealing,CHILDREN & ADULTS,1,SAFEGUARDING & SUPPORT - CIN,RESIDENTIAL HOMES EXTERNAL,4220,,21/06/2018,40811144,818.57,REDACTED SENSITIVE SUPPLIER
Ealing Council,http://opendatacommunities.org/id/london-borough-council/ealing,CHILDREN & ADULTS,1,SAFEGUARDING & SUPPORT - CIN,RESIDENTIAL HOMES EXTERNAL,4220,,21/06/2018,40811144,393.6,REDACTED SENSITIVE SUPPLIER
Ealing Council,http://opendatacommunities.org/id/london-borough-council/ealing,CHILDREN & ADULTS,1,SAFEGUARDING & SUPPORT - CIN,RESIDENTIAL HOMES EXTERNAL,4220,,21/06/2018,40811150,518.43,REDACTED SENSITIVE SUPPLIER
Ealing Council,http://opendatacommunities.org/id/london-borough-council/ealing,CHILDREN & ADULTS,1,SAFEGUARDING & SUPPORT - CIN,RESIDENTIAL HOMES EXTERNAL,4220,,21/06/2018,40811157,818.57,REDACTED SENSITIVE SUPPLIER
Ealing Council,http://opendatacommunities.org/id/london-borough-council/ealing,CHILDREN & ADULTS,1,SAFEGUARDING & SUPPORT - CIN,SOCIAL SERVICES -INDEPENDENT FOSTERING,4221,,30/06/2018,40810521,3063.34,REDACTED SENSITIVE SUPPLIER
Ealing Council,http://opendatacommunities.org/id/london-borough-council/ealing,CHILDREN & ADULTS,1,SAFEGUARDING & SUPPORT - CIN,RESIDENTIAL HOMES EXTERNAL,4220,,10/05/2018,40813525,818.57,REDACTED SENSITIVE SUPPLIER
Ealing Council,http://opendatacommunities.org/id/london-borough-council/ealing,CHILDREN & ADULTS,1,SAFEGUARDING & SUPPORT - CIN,RESIDENTIAL HOMES EXTERNAL,4220,,20/06/2018,40811125,818.57,REDACTED SENSITIVE SUPPLIER
Ealing Council,http://opendatacommunities.org/id/london-borough-council/ealing,CHILDREN & ADULTS,1,SAFEGUARDING & SUPPORT - CIN,RESIDENTIAL HOMES EXTERNAL,4220,,20/06/2018,40811125,393.6,REDACTED SENSITIVE SUPPLIER
Ealing Council,http://opendatacommunities.org/id/london-borough-council/ealing,CHILDREN & ADULTS,1,SAFEGUARDING & SUPPORT - CIN,RESIDENTIAL HOMES EXTERNAL,4220,,21/06/2018,40811132,699.69,REDACTED SENSITIVE SUPPLIER
Ealing Council,http://opendatacommunities.org/id/london-borough-council/ealing,CHILDREN & ADULTS,1,SAFEGUARDING & SUPPORT - CIN,RESIDENTIAL HOMES EXTERNAL,4220,,21/06/2018,40811132,393.6,REDACTED SENSITIVE SUPPLIER
Ealing Council,http://opendatacommunities.org/id/london-borough-council/ealing,CHILDREN & ADULTS,1,SAFEGUARDING & SUPPORT - CIN,RESIDENTIAL HOMES EXTERNAL,4220,,21/06/2018,40811139,699.69,REDACTED SENSITIVE SUPPLIER
Ealing Council,http://opendatacommunities.org/id/london-borough-council/ealing,CHILDREN & ADULTS,1,SAFEGUARDING & SUPPORT - CIN,RESIDENTIAL HOMES EXTERNAL,4220,,21/06/2018,40811139,393.6,REDACTED SENSITIVE SUPPLIER
Ealing Council,http://opendatacommunities.org/id/london-borough-council/ealing,CHILDREN & ADULTS,1,SAFEGUARDING & SUPPORT - CIN,RESIDENTIAL HOMES EXTERNAL,4220,,23/05/2018,40804313,845.86,REDACTED SENSITIVE SUPPLIER
Ealing Council,http://opendatacommunities.org/id/london-borough-council/ealing,CHILDREN & ADULTS,1,SAFEGUARDING & SUPPORT - CIN,RESIDENTIAL HOMES EXTERNAL,4220,,23/05/2018,40804313,406.72,REDACTED SENSITIVE SUPPLIER
Ealing Council,http://opendatacommunities.org/id/london-borough-council/ealing,CHILDREN & ADULTS,1,SAFEGUARDING & SUPPORT - CIN,RESIDENTIAL HOMES EXTERNAL,4220,,23/05/2018,40804341,845.86,REDACTED SENSITIVE SUPPLIER
Ealing Council,http://opendatacommunities.org/id/london-borough-council/ealing,CHILDREN & ADULTS,1,SAFEGUARDING & SUPPORT - CIN,RESIDENTIAL HOMES EXTERNAL,4220,,23/05/2018,40804341,406.72,REDACTED SENSITIVE SUPPLIER
Ealing Council,http://opendatacommunities.org/id/london-borough-council/ealing,CHILDREN & ADULTS,1,SAFEGUARDING & SUPPORT - CIN,RESIDENTIAL HOMES EXTERNAL,4220,,20/06/2018,40811122,699.69,REDACTED SENSITIVE SUPPLIER
Ealing Council,http://opendatacommunities.org/id/london-borough-council/ealing,CHILDREN & ADULTS,1,SAFEGUARDING & SUPPORT - CIN,RESIDENTIAL HOMES EXTERNAL,4220,,20/06/2018,40811122,393.6,REDACTED SENSITIVE SUPPLIER
Ealing Council,http://opendatacommunities.org/id/london-borough-council/ealing,CHILDREN & ADULTS,1,SAFEGUARDING & SUPPORT - CIN,RESIDENTIAL HOMES EXTERNAL,4220,,26/07/2018,40814940,845.86,REDACTED SENSITIVE SUPPLIER
Ealing Council,http://opendatacommunities.org/id/london-borough-council/ealing,CHILDREN & ADULTS,1,SAFEGUARDING & SUPPORT - CIN,RESIDENTIAL HOMES EXTERNAL,4220,,26/07/2018,40814940,406.72,REDACTED SENSITIVE SUPPLIER
Ealing Council,http://opendatacommunities.org/id/london-borough-council/ealing,CHILDREN & ADULTS,1,SAFEGUARDING & SUPPORT - CIN,RESIDENTIAL HOMES EXTERNAL,4220,,19/07/2018,40814942,896.74,REDACTED SENSITIVE SUPPLIER
Ealing Council,http://opendatacommunities.org/id/london-borough-council/ealing,CHILDREN & ADULTS,1,SAFEGUARDING & SUPPORT - CIN,RESIDENTIAL HOMES EXTERNAL,4220,,23/05/2018,40804325,845.86,REDACTED SENSITIVE SUPPLIER
Ealing Council,http://opendatacommunities.org/id/london-borough-council/ealing,CHILDREN & ADULTS,1,SAFEGUARDING & SUPPORT - CIN,RESIDENTIAL HOMES EXTERNAL,4220,,23/05/2018,40804325,406.72,REDACTED SENSITIVE SUPPLIER
Ealing Council,http://opendatacommunities.org/id/london-borough-council/ealing,CHILDREN & ADULTS,1,SAFEGUARDING & SUPPORT - CIN,RESIDENTIAL HOMES EXTERNAL,4220,,24/07/2018,40814664,818.57,REDACTED SENSITIVE SUPPLIER
Ealing Council,http://opendatacommunities.org/id/london-borough-council/ealing,CHILDREN & ADULTS,1,SAFEGUARDING & SUPPORT - CIN,RESIDENTIAL HOMES EXTERNAL,4220,,24/07/2018,40814664,393.6,REDACTED SENSITIVE SUPPLIER
Ealing Council,http://opendatacommunities.org/id/london-borough-council/ealing,CAPITAL SCHEMES,K,SCHOOLS SERVICE,CAPITAL - CONTRACT PAYMENTS,7200,,01/07/2018,40811569,26129.37,ARJ CONSTRUCTION LIMITED
Ealing Council,http://opendatacommunities.org/id/london-borough-council/ealing,CAPITAL SCHEMES,K,SCHOOLS SERVICE,CAPITAL - CONTRACT PAYMENTS,7200,,01/07/2018,40811571,45000.88,ARJ CONSTRUCTION LIMITED
Ealing Council,http://opendatacommunities.org/id/london-borough-council/ealing,CAPITAL SCHEMES,K,SCHOOLS SERVICE,CAPITAL - CONTRACT PAYMENTS,7200,,31/05/2018,40811048,4377,Sundry Supplier - Children and Adults
Ealing Council,http://opendatacommunities.org/id/london-borough-council/ealing,CAPITAL SCHEMES,K,SCHOOLS SERVICE,CAPITAL - CONTRACT PAYMENTS,7200,,01/06/2018,40810925,219961.47,GEOFFREY OSBORNE LIMITED
Ealing Council,http://opendatacommunities.org/id/london-borough-council/ealing,CAPITAL SCHEMES,K,SCHOOLS SERVICE,CAPITAL - CONTRACT PAYMENTS,7200,,23/07/2018,40813775,667287.39,GEOFFREY OSBORNE LIMITED
Ealing Council,http://opendatacommunities.org/id/london-borough-council/ealing,CAPITAL SCHEMES,K,SCHOOLS SERVICE,CAPITAL - CONTRACT PAYMENTS,7200,,09/07/2018,40811774,2000,VSRW Limited
Ealing Council,http://opendatacommunities.org/id/london-borough-council/ealing,REGENERATION AND HOUSING,2,PROPERTY & REGENERATION,SPECIALIST TECHNICAL CONTRACTORS,4050,,20/07/2018,40813504,1469.38,REVIVE & THRIVE LTD
Ealing Council,http://opendatacommunities.org/id/london-borough-council/ealing,REGENERATION AND HOUSING,2,PROPERTY & REGENERATION,TRAINING MATERIALS,3350,,30/06/2018,40810275,1640,BRANDUIN BUSINESS SUPPORT LTD
Ealing Council,http://opendatacommunities.org/id/london-borough-council/ealing,REGENERATION AND HOUSING,2,BUILT ENVIRONMENT MANAGEMENT,SERVICES CONTRACTS AGENCY INTERIM CONSULTANTS,2970,,27/04/2018,40812310,1000,Sundry Supplier - Regeneration & Housing
Ealing Council,http://opendatacommunities.org/id/london-borough-council/ealing,REGENERATION AND HOUSING,2,HOUSING  DEMAND,RENTS,1200,,30/08/2018,40812949,2084.4,MEARS HOUSING MANAGEMENT LIMITED
Ealing Council,http://opendatacommunities.org/id/london-borough-council/ealing,REGENERATION AND HOUSING,2,HOUSING  DEMAND,RENTS,1200,,30/08/2018,40812949,385.8,MEARS HOUSING MANAGEMENT LIMITED
Ealing Council,http://opendatacommunities.org/id/london-borough-council/ealing,REGENERATION AND HOUSING,2,HOUSING  DEMAND,RENTS,1200,,18/07/2018,40813057,112752.08,CASTLELINE LTD
Ealing Council,http://opendatacommunities.org/id/london-borough-council/ealing,REGENERATION AND HOUSING,2,HOUSING  DEMAND,RENTS,1200,,16/07/2018,40813346,3164.04,CELLCO (UK) LTD T/A SPEED MANAGEMENT
Ealing Council,http://opendatacommunities.org/id/london-borough-council/ealing,REGENERATION AND HOUSING,2,HOUSING  DEMAND,RENTS,1200,,20/07/2018,40813353,69272.99,PSL LEASING LIMITED
Ealing Council,http://opendatacommunities.org/id/london-borough-council/ealing,REGENERATION AND HOUSING,2,HOUSING  DEMAND,RENTS,1200,,20/07/2018,40813354,28197.6,PSL LEASING LIMITED
Ealing Council,http://opendatacommunities.org/id/london-borough-council/ealing,REGENERATION AND HOUSING,2,HOUSING  DEMAND,RENTS,1200,,19/07/2018,40813208,1406.16,MR ROODRANUND SINGH BUSAWAH
Ealing Council,http://opendatacommunities.org/id/london-borough-council/ealing,REGENERATION AND HOUSING,2,HOUSING  DEMAND,RENTS,1200,,18/07/2018,40813209,1857.21,PROPERTY ENERGY RATING SERVICES LTD
Ealing Council,http://opendatacommunities.org/id/london-borough-council/ealing,REGENERATION AND HOUSING,2,HOUSING  DEMAND,RENTS,1200,,24/07/2018,40813983,27144.32,DISTRICT HOMES CIC
Ealing Council,http://opendatacommunities.org/id/london-borough-council/ealing,REGENERATION AND HOUSING,2,HOUSING  DEMAND,RENTS,1200,,24/07/2018,40814072,1538.22,SHETAL KASAN
Ealing Council,http://opendatacommunities.org/id/london-borough-council/ealing,REGENERATION AND HOUSING,2,HOUSING  DEMAND,RENTS,1200,,16/07/2018,40812690,1406.16,MRS KALVINDER PHULL & MR KUNDAN SINGH PUHLL
Ealing Council,http://opendatacommunities.org/id/london-borough-council/ealing,REGENERATION AND HOUSING,2,HOUSING  DEMAND,RENTS,1200,,17/07/2018,40812749,92985.52,CASTLE RESIDENTIAL HOUSING LTD
Ealing Council,http://opendatacommunities.org/id/london-borough-council/ealing,REGENERATION AND HOUSING,2,HOUSING  DEMAND,RENTS,1200,,16/07/2018,40812897,2340.5,CHILTERN PROPERTY LTD
Ealing Council,http://opendatacommunities.org/id/london-borough-council/ealing,REGENERATION AND HOUSING,2,HOUSING  DEMAND,RENTS,1200,,17/07/2018,40812966,1058.03,THE ADDRESS GROUP LTD TA/ THE ADDRESS MANAGEMENT LTD
Ealing Council,http://opendatacommunities.org/id/london-borough-council/ealing,REGENERATION AND HOUSING,2,HOUSING  DEMAND,RENTS,1200,,18/07/2018,40813027,1406.16,NAQIBULLAH ISMAT
Ealing Council,http://opendatacommunities.org/id/london-borough-council/ealing,REGENERATION AND HOUSING,2,HOUSING  DEMAND,RENTS,1200,,18/07/2018,40813204,1857.52,MR ENOKI RAJ DALI
Ealing Council,http://opendatacommunities.org/id/london-borough-council/ealing,REGENERATION AND HOUSING,2,HOUSING  DEMAND,RENTS,1200,,14/07/2018,40812530,977.43,INTUITIVE HEIGHTS LIMITED
Ealing Council,http://opendatacommunities.org/id/london-borough-council/ealing,REGENERATION AND HOUSING,2,HOUSING  DEMAND,RENTS,1200,,15/07/2018,40812577,1826.03,MR RAM LUBHAYA PULLHA
Ealing Council,http://opendatacommunities.org/id/london-borough-council/ealing,REGENERATION AND HOUSING,2,HOUSING  DEMAND,RENTS,1200,,07/07/2018,40812579,1406.16,MR RUPESH MANSUKH PANKHANIA & DIWALIBEN MANSUKH PANKHANIA
Ealing Council,http://opendatacommunities.org/id/london-borough-council/ealing,REGENERATION AND HOUSING,2,HOUSING  DEMAND,RENTS,1200,,14/07/2018,40812580,1598.22,MRS MARYAM GOLBAKHSH
Ealing Council,http://opendatacommunities.org/id/london-borough-council/ealing,REGENERATION AND HOUSING,2,HOUSING  DEMAND,RENTS,1200,,01/08/2018,40812667,10111.27,ALTWOOD PROPERTIES LTD
Ealing Council,http://opendatacommunities.org/id/london-borough-council/ealing,REGENERATION AND HOUSING,2,HOUSING  DEMAND,RENTS,1200,,01/08/2018,40812669,90575.49,ALTWOOD PROPERTIES LTD
Ealing Council,http://opendatacommunities.org/id/london-borough-council/ealing,REGENERATION AND HOUSING,2,HOUSING  DEMAND,RENTS,1200,,11/07/2018,40812264,1769.11,MR JASBIR KHURL & MRS SUKHDEEP KHURL
Ealing Council,http://opendatacommunities.org/id/london-borough-council/ealing,REGENERATION AND HOUSING,2,HOUSING  DEMAND,RENTS,1200,,12/07/2018,40812417,33961.21,GT STAR HOMES LTD
Ealing Council,http://opendatacommunities.org/id/london-borough-council/ealing,REGENERATION AND HOUSING,2,HOUSING  DEMAND,RENTS,1200,,01/07/2018,40812453,1164.05,MIDDLESEX HOUSING LTD
Ealing Council,http://opendatacommunities.org/id/london-borough-council/ealing,REGENERATION AND HOUSING,2,HOUSING  DEMAND,RENTS,1200,,01/07/2018,40812455,2098.39,MIDDLESEX HOUSING LTD
Ealing Council,http://opendatacommunities.org/id/london-borough-council/ealing,REGENERATION AND HOUSING,2,HOUSING  DEMAND,RENTS,1200,,01/07/2018,40812447,35781.75,SUNWIN PROPERTIES LTD - T/A HOMELINK
Ealing Council,http://opendatacommunities.org/id/london-borough-council/ealing,REGENERATION AND HOUSING,2,HOUSING  DEMAND,RENTS,1200,,13/07/2018,40812523,2432.88,AUSTIN D`ARCY
Ealing Council,http://opendatacommunities.org/id/london-borough-council/ealing,CHILDREN & ADULTS,1,SAFEGUARDING & SUPPORT - CIN,RESIDENTIAL HOMES EXTERNAL,4220,,24/07/2018,40814680,818.57,REDACTED SENSITIVE SUPPLIER
Ealing Council,http://opendatacommunities.org/id/london-borough-council/ealing,CHILDREN & ADULTS,1,SAFEGUARDING & SUPPORT - CIN,RESIDENTIAL HOMES EXTERNAL,4220,,24/07/2018,40814680,393.6,REDACTED SENSITIVE SUPPLIER
Ealing Council,http://opendatacommunities.org/id/london-borough-council/ealing,CHILDREN & ADULTS,1,SAFEGUARDING & SUPPORT - CIN,RESIDENTIAL HOMES EXTERNAL,4220,,26/07/2018,40814931,845.86,REDACTED SENSITIVE SUPPLIER
Ealing Council,http://opendatacommunities.org/id/london-borough-council/ealing,CHILDREN & ADULTS,1,SAFEGUARDING & SUPPORT - CIN,RESIDENTIAL HOMES EXTERNAL,4220,,26/07/2018,40814931,406.72,REDACTED SENSITIVE SUPPLIER
Ealing Council,http://opendatacommunities.org/id/london-borough-council/ealing,CHILDREN & ADULTS,1,SAFEGUARDING & SUPPORT - CIN,RESIDENTIAL HOMES EXTERNAL,4220,,24/07/2018,40814638,845.86,REDACTED SENSITIVE SUPPLIER
Ealing Council,http://opendatacommunities.org/id/london-borough-council/ealing,CHILDREN & ADULTS,1,SAFEGUARDING & SUPPORT - CIN,RESIDENTIAL HOMES EXTERNAL,4220,,24/07/2018,40814638,406.72,REDACTED SENSITIVE SUPPLIER
Ealing Council,http://opendatacommunities.org/id/london-borough-council/ealing,CHILDREN & ADULTS,1,SAFEGUARDING & SUPPORT - CIN,RESIDENTIAL HOMES EXTERNAL,4220,,24/07/2018,40814647,818.57,REDACTED SENSITIVE SUPPLIER
Ealing Council,http://opendatacommunities.org/id/london-borough-council/ealing,CHILDREN & ADULTS,1,SAFEGUARDING & SUPPORT - CIN,RESIDENTIAL HOMES EXTERNAL,4220,,24/07/2018,40814647,393.6,REDACTED SENSITIVE SUPPLIER
Ealing Council,http://opendatacommunities.org/id/london-borough-council/ealing,CHILDREN & ADULTS,1,SAFEGUARDING & SUPPORT - CIN,RESIDENTIAL HOMES EXTERNAL,4220,,24/07/2018,40814656,818.57,REDACTED SENSITIVE SUPPLIER
Ealing Council,http://opendatacommunities.org/id/london-borough-council/ealing,CHILDREN & ADULTS,1,SAFEGUARDING & SUPPORT - CIN,RESIDENTIAL HOMES EXTERNAL,4220,,24/07/2018,40814656,393.6,REDACTED SENSITIVE SUPPLIER
Ealing Council,http://opendatacommunities.org/id/london-borough-council/ealing,CHILDREN & ADULTS,1,SAFEGUARDING & SUPPORT - CIN,RESIDENTIAL HOMES EXTERNAL,4220,,21/06/2018,40811164,818.57,REDACTED SENSITIVE SUPPLIER
Ealing Council,http://opendatacommunities.org/id/london-borough-council/ealing,CHILDREN & ADULTS,1,SAFEGUARDING & SUPPORT - CIN,RESIDENTIAL HOMES EXTERNAL,4220,,24/07/2018,40814650,786.17,REDACTED SENSITIVE SUPPLIER
Ealing Council,http://opendatacommunities.org/id/london-borough-council/ealing,CHILDREN & ADULTS,1,SAFEGUARDING & SUPPORT - CIN,RESIDENTIAL HOMES EXTERNAL,4220,,24/07/2018,40814672,786.17,REDACTED SENSITIVE SUPPLIER
Ealing Council,http://opendatacommunities.org/id/london-borough-council/ealing,CHILDREN & ADULTS,1,SAFEGUARDING & SUPPORT - CIN,RESIDENTIAL HOMES EXTERNAL,4220,,24/07/2018,40814629,812.38,REDACTED SENSITIVE SUPPLIER
Ealing Council,http://opendatacommunities.org/id/london-borough-council/ealing,CHILDREN & ADULTS,1,SAFEGUARDING & SUPPORT - CIN,RESIDENTIAL HOMES EXTERNAL,4220,,24/07/2018,40814637,845.86,REDACTED SENSITIVE SUPPLIER
Ealing Council,http://opendatacommunities.org/id/london-borough-council/ealing,CHILDREN & ADULTS,1,SAFEGUARDING & SUPPORT - CIN,RESIDENTIAL HOMES EXTERNAL,4220,,24/07/2018,40814637,406.72,REDACTED SENSITIVE SUPPLIER
Ealing Council,http://opendatacommunities.org/id/london-borough-council/ealing,CHILDREN & ADULTS,1,SAFEGUARDING & SUPPORT - CIN,SUBSCRIPTIONS,3600,,19/07/2018,40813252,5500,CITY OF WESTMINSTER
Ealing Council,http://opendatacommunities.org/id/london-borough-council/ealing,CHILDREN & ADULTS,1,SAFEGUARDING & SUPPORT - CIN,RESIDENTIAL HOMES EXTERNAL,4220,,21/06/2018,40811166,867.81,REDACTED SENSITIVE SUPPLIER
Ealing Council,http://opendatacommunities.org/id/london-borough-council/ealing,CHILDREN & ADULTS,1,SAFEGUARDING & SUPPORT - CIN,RESIDENTIAL HOMES EXTERNAL,4220,,21/06/2018,40811164,393.6,REDACTED SENSITIVE SUPPLIER
Ealing Council,http://opendatacommunities.org/id/london-borough-council/ealing,CHILDREN & ADULTS,1,SAFEGUARDING & SUPPORT - CIN,RESIDENTIAL HOMES EXTERNAL,4220,,21/06/2018,40811157,393.6,REDACTED SENSITIVE SUPPLIER
Ealing Council,http://opendatacommunities.org/id/london-borough-council/ealing,CHILDREN & ADULTS,1,SAFEGUARDING & SUPPORT - CIN,RESIDENTIAL HOMES EXTERNAL,4220,,21/06/2018,40811161,818.57,REDACTED SENSITIVE SUPPLIER
Ealing Council,http://opendatacommunities.org/id/london-borough-council/ealing,CHILDREN & ADULTS,1,SAFEGUARDING & SUPPORT - CIN,RESIDENTIAL HOMES EXTERNAL,4220,,21/06/2018,40811161,393.6,REDACTED SENSITIVE SUPPLIER
Ealing Council,http://opendatacommunities.org/id/london-borough-council/ealing,CHILDREN & ADULTS,1,SAFEGUARDING & SUPPORT - CIN,RESIDENTIAL HOMES EXTERNAL,4220,,10/05/2018,40813596,683.23,REDACTED SENSITIVE SUPPLIER
Ealing Council,http://opendatacommunities.org/id/london-borough-council/ealing,CHILDREN & ADULTS,1,SAFEGUARDING & SUPPORT - CIN,RESIDENTIAL HOMES EXTERNAL,4220,,10/05/2018,40813599,786.17,REDACTED SENSITIVE SUPPLIER
Ealing Council,http://opendatacommunities.org/id/london-borough-council/ealing,CHILDREN & ADULTS,1,SAFEGUARDING & SUPPORT - CIN,RESIDENTIAL HOMES EXTERNAL,4220,,02/05/2018,40813563,867.81,REDACTED SENSITIVE SUPPLIER
Ealing Council,http://opendatacommunities.org/id/london-borough-council/ealing,CHILDREN & ADULTS,1,SAFEGUARDING & SUPPORT - CIN,RESIDENTIAL HOMES EXTERNAL,4220,,21/06/2018,40811167,867.81,REDACTED SENSITIVE SUPPLIER
Ealing Council,http://opendatacommunities.org/id/london-borough-council/ealing,CHILDREN & ADULTS,1,SAFEGUARDING & SUPPORT - CIN,SOCIAL SERVICES -INDEPENDENT FOSTERING,4221,,31/05/2018,40811221,3165.45,REDACTED SENSITIVE SUPPLIER
Ealing Council,http://opendatacommunities.org/id/london-borough-council/ealing,CHILDREN & ADULTS,1,SAFEGUARDING & SUPPORT - CIN,RESIDENTIAL HOMES EXTERNAL,4220,,21/06/2018,40811127,867.81,REDACTED SENSITIVE SUPPLIER
Ealing Council,http://opendatacommunities.org/id/london-borough-council/ealing,CHILDREN & ADULTS,1,SAFEGUARDING & SUPPORT - CIN,SECTION 17,4290,,25/07/2018,40814209,1177,REDACTED SENSITIVE SUPPLIER
Ealing Council,http://opendatacommunities.org/id/london-borough-council/ealing,CHILDREN & ADULTS,1,SAFEGUARDING & SUPPORT - CIN,SECTION 17,4290,,05/07/2018,40811051,785.12,REDACTED SENSITIVE SUPPLIER
Ealing Council,http://opendatacommunities.org/id/london-borough-council/ealing,CHILDREN & ADULTS,1,SAFEGUARDING & SUPPORT - CIN,PAYMENTS TO HEALTH AUTHS.,4360,,19/07/2018,40813276,76899,WEST LONDON MENTAL HEALTH NHS TRUST
Ealing Council,http://opendatacommunities.org/id/london-borough-council/ealing,CHILDREN & ADULTS,1,SAFEGUARDING & SUPPORT - CIN,SECTION 17,4290,,16/04/2018,40814172,3426.2,REDACTED SENSITIVE SUPPLIER
Ealing Council,http://opendatacommunities.org/id/london-borough-council/ealing,REGENERATION AND HOUSING,2,HRA MANAGEMENT,STATION. & CONSUMABLE EQUIP.,3820,,13/04/2018,40811583,514.74,OFFICE DEPOT UK LTD
Ealing Council,http://opendatacommunities.org/id/london-borough-council/ealing,REGENERATION AND HOUSING,2,HRA MANAGEMENT,VEHICLE HIRE,2010,,01/04/2018,40814265,1973.68,ALD AUTOMOTIVE LTD
Ealing Council,http://opendatacommunities.org/id/london-borough-council/ealing,REGENERATION AND HOUSING,2,HRA MANAGEMENT,VEHICLE HIRE,2010,,01/04/2018,40814267,1973.68,ALD AUTOMOTIVE LTD
Ealing Council,http://opendatacommunities.org/id/london-borough-council/ealing,REGENERATION AND HOUSING,2,HRA OTHER,SECURITY SERVICES,2760,,19/06/2018,40810085,-327.08,VPS (UK) Ltd
Ealing Council,http://opendatacommunities.org/id/london-borough-council/ealing,REGENERATION AND HOUSING,2,HRA OTHER,REMOVALS,2680,,11/05/2018,40802999,633.6,CENTRAL MOVES LIMITED
Ealing Council,http://opendatacommunities.org/id/london-borough-council/ealing,REGENERATION AND HOUSING,2,HRA OTHER,COMPENSATION  PAYMENTS,2900,,10/07/2018,40811668,701,Sundry Supplier - Regeneration & Housing
Ealing Council,http://opendatacommunities.org/id/london-borough-council/ealing,ENVIRONMENT & CUSTOMER SERVICES,3,LEISURE & PARKS,HOSPITALITY/ENTERTAINMENT,3530,,20/07/2018,40813461,1000,Sundry Supplier - Environment & Customer Services
Ealing Council,http://opendatacommunities.org/id/london-borough-council/ealing,ENVIRONMENT & CUSTOMER SERVICES,3,LEISURE & PARKS,HOSPITALITY/ENTERTAINMENT,3530,,20/07/2018,40813975,1000,Sundry Supplier - Environment & Customer Services
Ealing Council,http://opendatacommunities.org/id/london-borough-council/ealing,ENVIRONMENT & CUSTOMER SERVICES,3,LEISURE & PARKS,HOSPITALITY/ENTERTAINMENT,3530,,31/05/2018,40813438,1000,Sundry Supplier - Environment & Customer Services
Ealing Council,http://opendatacommunities.org/id/london-borough-council/ealing,ENVIRONMENT & CUSTOMER SERVICES,3,LEISURE & PARKS,EQUIPMENT RENTAL,3335,,09/07/2018,40811807,1798.51,STEELDECK RENTALS LTD
Ealing Council,http://opendatacommunities.org/id/london-borough-council/ealing,ENVIRONMENT & CUSTOMER SERVICES,3,LEISURE & PARKS,HOSPITALITY/ENTERTAINMENT,3530,,30/07/2018,40814968,250,Sundry Supplier - Environment & Customer Services
Ealing Council,http://opendatacommunities.org/id/london-borough-council/ealing,REGENERATION AND HOUSING,2,HOUSING  DEMAND,RENTS,1200,,04/07/2018,40810689,3775.83,PSL LEASING LIMITED
Ealing Council,http://opendatacommunities.org/id/london-borough-council/ealing,REGENERATION AND HOUSING,2,HOUSING  DEMAND,RENTS,1200,,04/07/2018,40810762,1538.22,LOUIS KANG-MASCARENHAS
Ealing Council,http://opendatacommunities.org/id/london-borough-council/ealing,REGENERATION AND HOUSING,2,HOUSING  DEMAND,RENTS,1200,,04/07/2018,40810796,4052.13,MRS SURINDER KAUR KALYAN
Ealing Council,http://opendatacommunities.org/id/london-borough-council/ealing,REGENERATION AND HOUSING,2,HOUSING  DEMAND,RENTS,1200,,25/05/2018,40810279,2530.62,PSL LEASING LIMITED
Ealing Council,http://opendatacommunities.org/id/london-borough-council/ealing,REGENERATION AND HOUSING,2,HOUSING  DEMAND,RENTS,1200,,04/07/2018,40810863,43377.35,REGIONS LTD - T/A REGIONS ESTATES
Ealing Council,http://opendatacommunities.org/id/london-borough-council/ealing,REGENERATION AND HOUSING,2,HOUSING  DEMAND,RENTS,1200,,04/07/2018,40810873,53062.5,HOMELINK ESTATE AGENTS LTD
Ealing Council,http://opendatacommunities.org/id/london-borough-council/ealing,REGENERATION AND HOUSING,2,HOUSING  DEMAND,RENTS,1200,,02/07/2018,40810542,5097.64,EDGE SQUAD LTD
Ealing Council,http://opendatacommunities.org/id/london-borough-council/ealing,REGENERATION AND HOUSING,2,HOUSING  DEMAND,RENTS,1200,,02/07/2018,40810556,1272.55,POSSIBLE LETTING AGENCY LTD
Ealing Council,http://opendatacommunities.org/id/london-borough-council/ealing,REGENERATION AND HOUSING,2,HOUSING  DEMAND,RENTS,1200,,03/07/2018,40810597,1538.22,MR SOHAIL JAMAL & MRS NASREEN JAMAL
Ealing Council,http://opendatacommunities.org/id/london-borough-council/ealing,REGENERATION AND HOUSING,2,HOUSING  DEMAND,RENTS,1200,,03/07/2018,40810632,5358.96,MILRISH LIMITED t/a ELLIS & Co
Ealing Council,http://opendatacommunities.org/id/london-borough-council/ealing,REGENERATION AND HOUSING,2,HOUSING  DEMAND,RENTS,1200,,03/07/2018,40810663,7357.85,KEYTONS ESTATES LIMITED
Ealing Council,http://opendatacommunities.org/id/london-borough-council/ealing,REGENERATION AND HOUSING,2,HOUSING  DEMAND,RENTS,1200,,03/07/2018,40810667,1317.5,MR AMRATLAL PATEL
Ealing Council,http://opendatacommunities.org/id/london-borough-council/ealing,REGENERATION AND HOUSING,2,HOUSING  DEMAND,RENTS,1200,,02/07/2018,40810385,1177.2,LONDON RENTALS & SALES LTD
Ealing Council,http://opendatacommunities.org/id/london-borough-council/ealing,REGENERATION AND HOUSING,2,HOUSING  DEMAND,RENTS,1200,,02/07/2018,40810386,1177.2,LONDON RENTALS & SALES LTD
Ealing Council,http://opendatacommunities.org/id/london-borough-council/ealing,REGENERATION AND HOUSING,2,HOUSING  DEMAND,RENTS,1200,,01/07/2018,40810432,1272.55,JUBILEE PROPERTY MANAGEMENT LTD
Ealing Council,http://opendatacommunities.org/id/london-borough-council/ealing,REGENERATION AND HOUSING,2,HOUSING  DEMAND,RENTS,1200,,02/07/2018,40810452,6170.24,COUNTY PRIVATE CLIENT LTD T/A COUNTY RENTS
Ealing Council,http://opendatacommunities.org/id/london-borough-council/ealing,REGENERATION AND HOUSING,2,HOUSING  DEMAND,RENTS,1200,,03/07/2018,40810490,3076.44,ASK ESTATES LIMITED
Ealing Council,http://opendatacommunities.org/id/london-borough-council/ealing,REGENERATION AND HOUSING,2,HOUSING  DEMAND,RENTS,1200,,02/07/2018,40810541,2813.56,EDGE PROPERTY LTD
Ealing Council,http://opendatacommunities.org/id/london-borough-council/ealing,REGENERATION AND HOUSING,2,HOUSING  DEMAND,RENTS,1200,,29/06/2018,40810248,4756.33,MR KA MOHAMED T/A Prestige Guaranteed Rentals
Ealing Council,http://opendatacommunities.org/id/london-borough-council/ealing,REGENERATION AND HOUSING,2,HOUSING  DEMAND,RENTS,1200,,01/07/2018,40810371,1058.03,STAINES DEVELOPMENTS NO2 LIMITED
Ealing Council,http://opendatacommunities.org/id/london-borough-council/ealing,REGENERATION AND HOUSING,2,HOUSING  DEMAND,RENTS,1200,,29/06/2018,40810263,2002.08,LAKEWELLS GROUP LTD
Ealing Council,http://opendatacommunities.org/id/london-borough-council/ealing,REGENERATION AND HOUSING,2,HOUSING  DEMAND,RENTS,1200,,01/07/2018,40810276,5425,NORWOOD GREEN DEVELOPMENTS
Ealing Council,http://opendatacommunities.org/id/london-borough-council/ealing,REGENERATION AND HOUSING,2,HOUSING  DEMAND,RENTS,1200,,01/07/2018,40810294,10522.46,A&S PROPERTY LETTING AND MANAGEMENT LTD
Ealing Council,http://opendatacommunities.org/id/london-borough-council/ealing,REGENERATION AND HOUSING,2,HOUSING  DEMAND,RENTS,1200,,02/07/2018,40810364,1541.01,MR ANURAG AGRAWAL
Ealing Council,http://opendatacommunities.org/id/london-borough-council/ealing,REGENERATION AND HOUSING,2,HOUSING  DEMAND,RENTS,1200,,14/07/2018,40812943,1659.12,KPA INVESTMENTS UK LTD T/A MIDDLESEX INVESTMENTS
Ealing Council,http://opendatacommunities.org/id/london-borough-council/ealing,REGENERATION AND HOUSING,2,HOUSING  DEMAND,RENTS,1200,,18/07/2018,40813043,2002.08,LAKEWELLS GROUP LTD
Ealing Council,http://opendatacommunities.org/id/london-borough-council/ealing,REGENERATION AND HOUSING,2,HOUSING  DEMAND,RENTS,1200,,18/07/2018,40813060,82344.06,CASTLELINE LTD
Ealing Council,http://opendatacommunities.org/id/london-borough-council/ealing,REGENERATION AND HOUSING,2,HOUSING  DEMAND,RENTS,1200,,18/07/2018,40813151,2848.59,MR ZIAD ABOU-HAMZEH
Ealing Council,http://opendatacommunities.org/id/london-borough-council/ealing,REGENERATION AND HOUSING,2,HOUSING  DEMAND,RENTS,1200,,14/07/2018,40813193,34258.1,VESTURE MANAGEMENT LTD - T/A VESTURE LONDON
Ealing Council,http://opendatacommunities.org/id/london-borough-council/ealing,REGENERATION AND HOUSING,2,HOUSING  DEMAND,RENTS,1200,,29/06/2018,40810243,1745.61,SMART MOVE (ESTATE AGENTS UK) LIMITED
Ealing Council,http://opendatacommunities.org/id/london-borough-council/ealing,REGENERATION AND HOUSING,2,HOUSING  DEMAND,RENTS,1200,,02/07/2018,40814880,41537.83,EURO HOUSING UK LTD
Ealing Council,http://opendatacommunities.org/id/london-borough-council/ealing,REGENERATION AND HOUSING,2,HOUSING  DEMAND,RENTS,1200,,30/07/2018,40814882,4756.33,MR KA MOHAMED T/A Prestige Guaranteed Rentals
Ealing Council,http://opendatacommunities.org/id/london-borough-council/ealing,REGENERATION AND HOUSING,2,HOUSING  DEMAND,RENTS,1200,,16/07/2018,40812303,1406.16,LONGSTAR ESTATES LTD
Ealing Council,http://opendatacommunities.org/id/london-borough-council/ealing,REGENERATION AND HOUSING,2,HOUSING  DEMAND,RENTS,1200,,16/07/2018,40812625,2724.9,TANVIR GAUHER
Ealing Council,http://opendatacommunities.org/id/london-borough-council/ealing,REGENERATION AND HOUSING,2,HOUSING  DEMAND,RENTS,1200,,30/07/2018,40814869,-6006.24,LAKEWELLS GROUP LTD
Ealing Council,http://opendatacommunities.org/id/london-borough-council/ealing,REGENERATION AND HOUSING,2,HOUSING  DEMAND,RENTS,1200,,16/07/2018,40812753,1607.66,CELLCO (UK) LTD T/A SPEED MANAGEMENT
Ealing Council,http://opendatacommunities.org/id/london-borough-council/ealing,REGENERATION AND HOUSING,2,HOUSING  DEMAND,RENTS,1200,,12/07/2018,40812286,1538.22,DDS ESTATE AGENTS LTD
Ealing Council,http://opendatacommunities.org/id/london-borough-council/ealing,REGENERATION AND HOUSING,2,HOUSING  DEMAND,RENTS,1200,,12/07/2018,40812287,870.17,DDS ESTATE AGENTS LTD
Ealing Council,http://opendatacommunities.org/id/london-borough-council/ealing,REGENERATION AND HOUSING,2,HOUSING  DEMAND,RENTS,1200,,12/07/2018,40812288,1186.68,DDS ESTATE AGENTS LTD
Ealing Council,http://opendatacommunities.org/id/london-borough-council/ealing,REGENERATION AND HOUSING,2,HOUSING  DEMAND,RENTS,1200,,16/07/2018,40812301,1406.16,LONGSTAR ESTATES LTD
Ealing Council,http://opendatacommunities.org/id/london-borough-council/ealing,REGENERATION AND HOUSING,2,HOUSING  DEMAND,RENTS,1200,,16/07/2018,40812302,2046,LONGSTAR ESTATES LTD
Ealing Council,http://opendatacommunities.org/id/london-borough-council/ealing,REGENERATION AND HOUSING,2,HOUSING  DEMAND,RENTS,1200,,02/07/2018,40814881,31368.9,EURO HOUSING UK LTD
Ealing Council,http://opendatacommunities.org/id/london-borough-council/ealing,REGENERATION AND HOUSING,2,HOUSING  DEMAND,RENTS,1200,,11/07/2018,40812010,191446.08,BISHOP PROPERTY MANAGEMENT LTD
Ealing Council,http://opendatacommunities.org/id/london-borough-council/ealing,REGENERATION AND HOUSING,2,HOUSING  DEMAND,RENTS,1200,,08/07/2018,40812019,14656.49,SSB INVESTMENTS T/A EMPIRE ESTATES
Ealing Council,http://opendatacommunities.org/id/london-borough-council/ealing,REGENERATION AND HOUSING,2,HOUSING  DEMAND,RENTS,1200,,09/07/2018,40812030,970.92,MR AMIT AULUCK
Ealing Council,http://opendatacommunities.org/id/london-borough-council/ealing,REGENERATION AND HOUSING,2,HOUSING  DEMAND,RENTS,1200,,11/07/2018,40812081,1667.4,CHILTERN HILLS LTD
Ealing Council,http://opendatacommunities.org/id/london-borough-council/ealing,REGENERATION AND HOUSING,2,HOUSING  DEMAND,RENTS,1200,,11/07/2018,40812254,4096.5,PARADIGM GROUP LIMITED
Ealing Council,http://opendatacommunities.org/id/london-borough-council/ealing,REGENERATION AND HOUSING,2,HOUSING  DEMAND,RENTS,1200,,11/07/2018,40812255,2030.7,PARADIGM GROUP LIMITED
Ealing Council,http://opendatacommunities.org/id/london-borough-council/ealing,REGENERATION AND HOUSING,2,HOUSING  DEMAND,RENTS,1200,,10/07/2018,40811801,1052.45,WENTWORTH HOUSING LTD TA/ WENTWORTH ESTATES
Ealing Council,http://opendatacommunities.org/id/london-borough-council/ealing,REGENERATION AND HOUSING,2,HOUSING  DEMAND,RENTS,1200,,10/07/2018,40811806,3076.44,MILRISH LIMITED t/a ELLIS & Co
Ealing Council,http://opendatacommunities.org/id/london-borough-council/ealing,REGENERATION AND HOUSING,2,HOUSING  DEMAND,RENTS,1200,,10/07/2018,40811856,3679.08,BROADWAY LIVING
Ealing Council,http://opendatacommunities.org/id/london-borough-council/ealing,REGENERATION AND HOUSING,2,HOUSING  DEMAND,RENTS,1200,,10/07/2018,40811857,2402.81,WEST ONE PROPERTIES MANAGEMENT LTD
Ealing Council,http://opendatacommunities.org/id/london-borough-council/ealing,REGENERATION AND HOUSING,2,HOUSING  DEMAND,RENTS,1200,,23/07/2018,40813879,1186.68,JASWINDER SINGH
Ealing Council,http://opendatacommunities.org/id/london-borough-council/ealing,REGENERATION AND HOUSING,2,HOUSING  DEMAND,RENTS,1200,,11/07/2018,40812009,47961.96,BISHOP PROPERTY MANAGEMENT LTD
Ealing Council,http://opendatacommunities.org/id/london-borough-council/ealing,REGENERATION AND HOUSING,2,HOUSING  DEMAND,RENTS,1200,,20/07/2018,40811546,1769.17,MR RAJINDERPAL SINGH PANDHARE
Ealing Council,http://opendatacommunities.org/id/london-borough-council/ealing,REGENERATION AND HOUSING,2,HOUSING  DEMAND,RENTS,1200,,09/07/2018,40811696,57816.18,EALING HOUSING LIMITED
Ealing Council,http://opendatacommunities.org/id/london-borough-council/ealing,REGENERATION AND HOUSING,2,HOUSING  DEMAND,RENTS,1200,,06/07/2018,40811299,2046,HOUSING SOLUTIONS (GB) LTD
Ealing Council,http://opendatacommunities.org/id/london-borough-council/ealing,REGENERATION AND HOUSING,2,HOUSING  DEMAND,RENTS,1200,,06/07/2018,40811328,21147.27,EALING HOUSING LIMITED
Ealing Council,http://opendatacommunities.org/id/london-borough-council/ealing,REGENERATION AND HOUSING,2,HOUSING  DEMAND,RENTS,1200,,07/07/2018,40811566,283216.4,MIDDLESEX HOUSING LTD
Ealing Council,http://opendatacommunities.org/id/london-borough-council/ealing,REGENERATION AND HOUSING,2,HOUSING  DEMAND,RENTS,1200,,10/07/2018,40811793,2938.8,SAMIR JAKUPOVIC
Ealing Council,http://opendatacommunities.org/id/london-borough-council/ealing,REGENERATION AND HOUSING,2,HOUSING  DEMAND,RENTS,1200,,23/07/2018,40813764,7594.69,iPROPERTIES LTD
Ealing Council,http://opendatacommunities.org/id/london-borough-council/ealing,REGENERATION AND HOUSING,2,HOUSING  DEMAND,RENTS,1200,,23/07/2018,40813771,36068.5,IN HOME PROPERTY MANAGEMENT LTD
Ealing Council,http://opendatacommunities.org/id/london-borough-council/ealing,REGENERATION AND HOUSING,2,HOUSING  DEMAND,RENTS,1200,,11/06/2018,40813788,14639.75,MR RANJIT BAINS & MRS SUNTOSH BAINS
Ealing Council,http://opendatacommunities.org/id/london-borough-council/ealing,REGENERATION AND HOUSING,2,HOUSING  DEMAND,RENTS,1200,,01/07/2018,40811330,1440,RHP LETTINGS LTD
Ealing Council,http://opendatacommunities.org/id/london-borough-council/ealing,REGENERATION AND HOUSING,2,HOUSING  DEMAND,RENTS,1200,,06/07/2018,40811413,2002.08,LAKEWELLS GROUP LTD
Ealing Council,http://opendatacommunities.org/id/london-borough-council/ealing,REGENERATION AND HOUSING,2,HOUSING  DEMAND,RENTS,1200,,01/08/2018,40811416,1406.16,SOMAL SALE & LETTING LTD
Ealing Council,http://opendatacommunities.org/id/london-borough-council/ealing,REGENERATION AND HOUSING,2,HOUSING  DEMAND,RENTS,1200,,01/07/2018,40810668,2790,ORCHARD & SHIPMAN GROUP PLC
Ealing Council,http://opendatacommunities.org/id/london-borough-council/ealing,REGENERATION AND HOUSING,2,HOUSING  DEMAND,RENTS,1200,,01/07/2018,40810668,15976.78,ORCHARD & SHIPMAN GROUP PLC
Ealing Council,http://opendatacommunities.org/id/london-borough-council/ealing,REGENERATION AND HOUSING,2,HOUSING  DEMAND,RENTS,1200,,27/07/2018,40814622,1058.03,STAINES DEVELOPMENTS NO2 LIMITED
Ealing Council,http://opendatacommunities.org/id/london-borough-council/ealing,REGENERATION AND HOUSING,2,HOUSING  DEMAND,RENTS,1200,,27/07/2018,40814615,1815.98,MR RAGY ZAKI-FAHMY
Ealing Council,http://opendatacommunities.org/id/london-borough-council/ealing,REGENERATION AND HOUSING,2,HOUSING  DEMAND,RENTS,1200,,27/07/2018,40814613,1113.02,MR RAGY ZAKI-FAHMY
Ealing Council,http://opendatacommunities.org/id/london-borough-council/ealing,REGENERATION AND HOUSING,2,HOUSING  DEMAND,RENTS,1200,,28/07/2018,40814728,1598.22,MRS MARYAM GOLBAKHSH
Ealing Council,http://opendatacommunities.org/id/london-borough-council/ealing,REGENERATION AND HOUSING,2,HOUSING  DEMAND,RENTS,1200,,02/07/2018,40814319,1541.01,MR ANURAG AGRAWAL
Ealing Council,http://opendatacommunities.org/id/london-borough-council/ealing,REGENERATION AND HOUSING,2,HOUSING  DEMAND,RENTS,1200,,16/07/2018,40814583,2164.11,RS HOMES LTD T/A STONES PROPERTY
Ealing Council,http://opendatacommunities.org/id/london-borough-council/ealing,REGENERATION AND HOUSING,2,HOUSING  DEMAND,RENTS,1200,,27/07/2018,40814590,1256.19,CHASSIS PROPERTIES LTD
Ealing Council,http://opendatacommunities.org/id/london-borough-council/ealing,REGENERATION AND HOUSING,2,HOUSING  DEMAND,RENTS,1200,,01/06/2018,40809999,15976.78,ORCHARD & SHIPMAN GROUP PLC
Ealing Council,http://opendatacommunities.org/id/london-borough-council/ealing,REGENERATION AND HOUSING,2,HOUSING  DEMAND,RENTS,1200,,01/06/2018,40809999,2790,ORCHARD & SHIPMAN GROUP PLC
Ealing Council,http://opendatacommunities.org/id/london-borough-council/ealing,REGENERATION AND HOUSING,2,HOUSING  DEMAND,RENTS,1200,,04/07/2018,40810797,4052.13,MRS SURINDER KAUR KALYAN
Ealing Council,http://opendatacommunities.org/id/london-borough-council/ealing,REGENERATION AND HOUSING,2,HOUSING  DEMAND,RENTS,1200,,25/03/2018,40813618,1920.45,S RENU LTD
Ealing Council,http://opendatacommunities.org/id/london-borough-council/ealing,REGENERATION AND HOUSING,2,HOUSING  DEMAND,RENTS,1200,,23/07/2018,40813628,2098.4,MR REZA ANSARI & MRS C ANSARI
Ealing Council,http://opendatacommunities.org/id/london-borough-council/ealing,REGENERATION AND HOUSING,2,HOUSING  DEMAND,RENTS,1200,,30/07/2018,40814912,1283.71,SAI PROPERTY DEV LTD T/A THE  PROPERTY BANK
Ealing Council,http://opendatacommunities.org/id/london-borough-council/ealing,REGENERATION AND HOUSING,2,HOUSING  DEMAND,RENTS,1200,,05/07/2018,40811000,10730.52,Denhan Property Services Ltd T/A Denham International Ltd
Ealing Council,http://opendatacommunities.org/id/london-borough-council/ealing,REGENERATION AND HOUSING,2,HOUSING  DEMAND,RENTS,1200,,25/07/2018,40814243,1640.52,CHATSWORTH MANAGEMENT
Ealing Council,http://opendatacommunities.org/id/london-borough-council/ealing,REGENERATION AND HOUSING,2,HOUSING  DEMAND,RENTS,1200,,28/07/2018,40814310,1406.16,MR FAROOQ AZAM & MRS ZAHIDA WARRIACH
Ealing Council,http://opendatacommunities.org/id/london-borough-council/ealing,REGENERATION AND HOUSING,2,HOUSING  DEMAND,RENTS,1200,,19/07/2018,40813363,3076.44,HENLEYS ESTATE AGENTS LTD
Ealing Council,http://opendatacommunities.org/id/london-borough-council/ealing,REGENERATION AND HOUSING,2,HOUSING  DEMAND,RENTS,1200,,20/07/2018,40813375,6027.64,MR SANJAI KOHLI
Ealing Council,http://opendatacommunities.org/id/london-borough-council/ealing,REGENERATION AND HOUSING,2,HOUSING  DEMAND,RENTS,1200,,21/07/2018,40813560,3082.02,MR MADHUKANT & MRS NEETABEN PATEL
Ealing Council,http://opendatacommunities.org/id/london-borough-council/ealing,REGENERATION AND HOUSING,2,HOUSING  DEMAND,RENTS,1200,,20/07/2018,40813573,6383.57,ABDUL-MAJEED SALMASI
Ealing Council,http://opendatacommunities.org/id/london-borough-council/ealing,REGENERATION AND HOUSING,2,HOUSING  DEMAND,RENTS,1200,,20/07/2018,40813575,1405,MR RABI CHATILA
Ealing Council,http://opendatacommunities.org/id/london-borough-council/ealing,REGENERATION AND HOUSING,2,HOUSING  DEMAND,RENTS,1200,,23/07/2018,40813612,1541.01,MR PARMOD CHOPRA & MRS VEENA CHOPRA
Ealing Council,http://opendatacommunities.org/id/london-borough-council/ealing,REGENERATION AND HOUSING,2,HOUSING  DEMAND,BED & BREAKFAST PAYMENTS,5330,,03/06/2018,40809436,1344,REDACTED SENSITIVE SUPPLIER
Ealing Council,http://opendatacommunities.org/id/london-borough-council/ealing,REGENERATION AND HOUSING,2,HOUSING  DEMAND,BED & BREAKFAST PAYMENTS,5330,,10/06/2018,40809437,1344,REDACTED SENSITIVE SUPPLIER
Ealing Council,http://opendatacommunities.org/id/london-borough-council/ealing,REGENERATION AND HOUSING,2,HOUSING  DEMAND,BED & BREAKFAST PAYMENTS,5330,,10/06/2018,40809438,1140,REDACTED SENSITIVE SUPPLIER
Ealing Council,http://opendatacommunities.org/id/london-borough-council/ealing,REGENERATION AND HOUSING,2,HOUSING  DEMAND,BED & BREAKFAST PAYMENTS,5330,,03/06/2018,40809439,1470,REDACTED SENSITIVE SUPPLIER
Ealing Council,http://opendatacommunities.org/id/london-borough-council/ealing,REGENERATION AND HOUSING,2,HOUSING  DEMAND,BED & BREAKFAST PAYMENTS,5330,,27/05/2018,40809441,1470,REDACTED SENSITIVE SUPPLIER
Ealing Council,http://opendatacommunities.org/id/london-borough-council/ealing,REGENERATION AND HOUSING,2,HOUSING  DEMAND,BED & BREAKFAST PAYMENTS,5330,,27/05/2018,40809442,252,REDACTED SENSITIVE SUPPLIER
Ealing Council,http://opendatacommunities.org/id/london-borough-council/ealing,REGENERATION AND HOUSING,2,HOUSING  DEMAND,BED & BREAKFAST PAYMENTS,5330,,08/07/2018,40812933,1050,REDACTED SENSITIVE SUPPLIER
Ealing Council,http://opendatacommunities.org/id/london-borough-council/ealing,REGENERATION AND HOUSING,2,HOUSING  DEMAND,BED & BREAKFAST PAYMENTS,5330,,01/07/2018,40812935,930,REDACTED SENSITIVE SUPPLIER
Ealing Council,http://opendatacommunities.org/id/london-borough-council/ealing,REGENERATION AND HOUSING,2,HOUSING  DEMAND,BED & BREAKFAST PAYMENTS,5330,,17/06/2018,40812937,840,REDACTED SENSITIVE SUPPLIER
Ealing Council,http://opendatacommunities.org/id/london-borough-council/ealing,REGENERATION AND HOUSING,2,HOUSING  DEMAND,BED & BREAKFAST PAYMENTS,5330,,24/06/2018,40812941,840,REDACTED SENSITIVE SUPPLIER
Ealing Council,http://opendatacommunities.org/id/london-borough-council/ealing,REGENERATION AND HOUSING,2,HOUSING  DEMAND,BED & BREAKFAST PAYMENTS,5330,,17/06/2018,40813886,1386,REDACTED SENSITIVE SUPPLIER
Ealing Council,http://opendatacommunities.org/id/london-borough-council/ealing,REGENERATION AND HOUSING,2,HOUSING  DEMAND,BED & BREAKFAST PAYMENTS,5330,,15/07/2018,40813884,2730,REDACTED SENSITIVE SUPPLIER
Ealing Council,http://opendatacommunities.org/id/london-borough-council/ealing,REGENERATION AND HOUSING,2,HOUSING  DEMAND,BED & BREAKFAST PAYMENTS,5330,,01/07/2018,40813882,462,REDACTED SENSITIVE SUPPLIER
Ealing Council,http://opendatacommunities.org/id/london-borough-council/ealing,REGENERATION AND HOUSING,2,HOUSING  DEMAND,BED & BREAKFAST PAYMENTS,5330,,01/07/2018,40813881,378,REDACTED SENSITIVE SUPPLIER
Ealing Council,http://opendatacommunities.org/id/london-borough-council/ealing,REGENERATION AND HOUSING,2,HOUSING  DEMAND,BED & BREAKFAST PAYMENTS,5330,,15/07/2018,40812925,3060,REDACTED SENSITIVE SUPPLIER
Ealing Council,http://opendatacommunities.org/id/london-borough-council/ealing,REGENERATION AND HOUSING,2,HOUSING  DEMAND,BED & BREAKFAST PAYMENTS,5330,,15/07/2018,40812929,1050,REDACTED SENSITIVE SUPPLIER
Ealing Council,http://opendatacommunities.org/id/london-borough-council/ealing,REGENERATION AND HOUSING,2,HOUSING  DEMAND,BED & BREAKFAST PAYMENTS,5330,,10/06/2018,40813895,840,REDACTED SENSITIVE SUPPLIER
Ealing Council,http://opendatacommunities.org/id/london-borough-council/ealing,REGENERATION AND HOUSING,2,HOUSING  DEMAND,BED & BREAKFAST PAYMENTS,5330,,03/06/2018,40813894,1050,REDACTED SENSITIVE SUPPLIER
Ealing Council,http://opendatacommunities.org/id/london-borough-council/ealing,REGENERATION AND HOUSING,2,HOUSING  DEMAND,BED & BREAKFAST PAYMENTS,5330,,17/06/2018,40813892,840,REDACTED SENSITIVE SUPPLIER
Ealing Council,http://opendatacommunities.org/id/london-borough-council/ealing,REGENERATION AND HOUSING,2,HOUSING  DEMAND,BED & BREAKFAST PAYMENTS,5330,,20/05/2018,40813890,546,REDACTED SENSITIVE SUPPLIER
Ealing Council,http://opendatacommunities.org/id/london-borough-council/ealing,REGENERATION AND HOUSING,2,HOUSING  DEMAND,BED & BREAKFAST PAYMENTS,5330,,10/06/2018,40813888,672,REDACTED SENSITIVE SUPPLIER
Ealing Council,http://opendatacommunities.org/id/london-borough-council/ealing,REGENERATION AND HOUSING,2,HOUSING  DEMAND,BED & BREAKFAST PAYMENTS,5330,,03/06/2018,40813887,672,REDACTED SENSITIVE SUPPLIER
Ealing Council,http://opendatacommunities.org/id/london-borough-council/ealing,REGENERATION AND HOUSING,2,HOUSING  DEMAND,BED & BREAKFAST PAYMENTS,5330,,10/06/2018,40813906,1050,REDACTED SENSITIVE SUPPLIER
Ealing Council,http://opendatacommunities.org/id/london-borough-council/ealing,REGENERATION AND HOUSING,2,HOUSING  DEMAND,BED & BREAKFAST PAYMENTS,5330,,17/06/2018,40813905,1176,REDACTED SENSITIVE SUPPLIER
Ealing Council,http://opendatacommunities.org/id/london-borough-council/ealing,REGENERATION AND HOUSING,2,HOUSING  DEMAND,BED & BREAKFAST PAYMENTS,5330,,10/06/2018,40813904,1176,REDACTED SENSITIVE SUPPLIER
Ealing Council,http://opendatacommunities.org/id/london-borough-council/ealing,REGENERATION AND HOUSING,2,HOUSING  DEMAND,BED & BREAKFAST PAYMENTS,5330,,10/06/2018,40813902,1386,REDACTED SENSITIVE SUPPLIER
Ealing Council,http://opendatacommunities.org/id/london-borough-council/ealing,REGENERATION AND HOUSING,2,HOUSING  DEMAND,BED & BREAKFAST PAYMENTS,5330,,03/06/2018,40813899,840,REDACTED SENSITIVE SUPPLIER
Ealing Council,http://opendatacommunities.org/id/london-borough-council/ealing,REGENERATION AND HOUSING,2,HOUSING  DEMAND,BED & BREAKFAST PAYMENTS,5330,,03/06/2018,40813897,1242,REDACTED SENSITIVE SUPPLIER
Ealing Council,http://opendatacommunities.org/id/london-borough-council/ealing,REGENERATION AND HOUSING,2,HOUSING  DEMAND,BED & BREAKFAST PAYMENTS,5330,,10/06/2018,40813917,2478,REDACTED SENSITIVE SUPPLIER
Ealing Council,http://opendatacommunities.org/id/london-borough-council/ealing,REGENERATION AND HOUSING,2,HOUSING  DEMAND,BED & BREAKFAST PAYMENTS,5330,,03/06/2018,40813915,2226,REDACTED SENSITIVE SUPPLIER
Ealing Council,http://opendatacommunities.org/id/london-borough-council/ealing,REGENERATION AND HOUSING,2,HOUSING  DEMAND,BED & BREAKFAST PAYMENTS,5330,,17/06/2018,40813913,462,REDACTED SENSITIVE SUPPLIER
Ealing Council,http://opendatacommunities.org/id/london-borough-council/ealing,REGENERATION AND HOUSING,2,HOUSING  DEMAND,BED & BREAKFAST PAYMENTS,5330,,10/06/2018,40813911,882,REDACTED SENSITIVE SUPPLIER
Ealing Council,http://opendatacommunities.org/id/london-borough-council/ealing,REGENERATION AND HOUSING,2,HOUSING  DEMAND,BED & BREAKFAST PAYMENTS,5330,,03/06/2018,40813909,882,REDACTED SENSITIVE SUPPLIER
Ealing Council,http://opendatacommunities.org/id/london-borough-council/ealing,REGENERATION AND HOUSING,2,HOUSING  DEMAND,BED & BREAKFAST PAYMENTS,5330,,03/06/2018,40813908,798,REDACTED SENSITIVE SUPPLIER
Ealing Council,http://opendatacommunities.org/id/london-borough-council/ealing,REGENERATION AND HOUSING,2,HOUSING  DEMAND,BED & BREAKFAST PAYMENTS,5330,,10/06/2018,40813945,1302,REDACTED SENSITIVE SUPPLIER
Ealing Council,http://opendatacommunities.org/id/london-borough-council/ealing,REGENERATION AND HOUSING,2,HOUSING  DEMAND,BED & BREAKFAST PAYMENTS,5330,,10/06/2018,40813873,1650,REDACTED SENSITIVE SUPPLIER
Ealing Council,http://opendatacommunities.org/id/london-borough-council/ealing,REGENERATION AND HOUSING,2,HOUSING  DEMAND,BED & BREAKFAST PAYMENTS,5330,,17/06/2018,40813874,630,REDACTED SENSITIVE SUPPLIER
Ealing Council,http://opendatacommunities.org/id/london-borough-council/ealing,REGENERATION AND HOUSING,2,HOUSING  DEMAND,BED & BREAKFAST PAYMENTS,5330,,10/06/2018,40813876,630,REDACTED SENSITIVE SUPPLIER
Ealing Council,http://opendatacommunities.org/id/london-borough-council/ealing,REGENERATION AND HOUSING,2,HOUSING  DEMAND,BED & BREAKFAST PAYMENTS,5330,,24/06/2018,40813877,1134,REDACTED SENSITIVE SUPPLIER
Ealing Council,http://opendatacommunities.org/id/london-borough-council/ealing,CHILDREN & ADULTS,1,PUBLIC HEALTH MENTAL HEALTH,PAYMENTS TO CONTRACTORS,4000,,02/07/2018,40810760,3517.5,NEIGHBOURLY CARE SOUTHALL
Ealing Council,http://opendatacommunities.org/id/london-borough-council/ealing,CHILDREN & ADULTS,1,PUBLIC HEALTH MENTAL HEALTH,PAYMENTS TO CONTRACTORS,4000,,02/07/2018,40810761,3517.5,MIND IN EALING & HOUNSLOW LTD
Ealing Council,http://opendatacommunities.org/id/london-borough-council/ealing,CAPITAL SCHEMES,K,SCHOOLS SERVICE,CAPITAL - CONTRACT PAYMENTS,7200,,30/06/2018,40811208,14496.12,DANZER LIMITED
Ealing Council,http://opendatacommunities.org/id/london-borough-council/ealing,CAPITAL SCHEMES,K,SCHOOLS SERVICE,CAPITAL - CONTRACT PAYMENTS,7200,,26/06/2018,40809917,108155.14,IMS BUILDING SOLUTIONS LTD
Ealing Council,http://opendatacommunities.org/id/london-borough-council/ealing,REGENERATION AND HOUSING,2,PROPERTY & REGENERATION,ELECTRICITY,1120,,27/06/2018,40814318,346.77,E-ON ENERGY LIMITED
Ealing Council,http://opendatacommunities.org/id/london-borough-council/ealing,REGENERATION AND HOUSING,2,PROPERTY & REGENERATION,GAS,1090,,04/07/2018,40811407,-437.26,N POWER
Ealing Council,http://opendatacommunities.org/id/london-borough-council/ealing,REGENERATION AND HOUSING,2,PROPERTY & REGENERATION,GAS,1090,,04/07/2018,40811414,-374.32,N POWER
Ealing Council,http://opendatacommunities.org/id/london-borough-council/ealing,REGENERATION AND HOUSING,2,PROPERTY & REGENERATION,ELECTRICITY,1120,,15/03/2017,40726745,3292.92,KENT COUNTY COUNCIL (KCC UTILITY BILLS ONLY)
Ealing Council,http://opendatacommunities.org/id/london-borough-council/ealing,REGENERATION AND HOUSING,2,PROPERTY & REGENERATION,ELECTRICITY,1120,,15/03/2017,40725636,689.06,KENT COUNTY COUNCIL (KCC UTILITY BILLS ONLY)
Ealing Council,http://opendatacommunities.org/id/london-borough-council/ealing,COUNCIL WIDE OTHER,9,BALANCE SHEET,CTRL OR B/S PAYROLL RECOVERIES,6550,,20/06/2018,40810822,50525.25,TEACHERS PENSIONS - (TP RECEIPTS)
Ealing Council,http://opendatacommunities.org/id/london-borough-council/ealing,CHILDREN & ADULTS,1,SCHOOLS EFFECTIVENESS,TEACHERS SUPPORT -SPEC ED.NEEDS ONLY,4001,,11/07/2018,40812293,1277.75,O R EDUCATION LTD T/A AXCIS EDUCATION
Ealing Council,http://opendatacommunities.org/id/london-borough-council/ealing,CHILDREN & ADULTS,1,SCHOOLS EFFECTIVENESS,TEACHERS SUPPORT -SPEC ED.NEEDS ONLY,4001,,30/05/2018,40812295,1277.75,O R EDUCATION LTD T/A AXCIS EDUCATION
Ealing Council,http://opendatacommunities.org/id/london-borough-council/ealing,CHILDREN & ADULTS,1,SCHOOLS EFFECTIVENESS,TEACHERS SUPPORT -SPEC ED.NEEDS ONLY,4001,,18/07/2018,40813245,1277.75,O R EDUCATION LTD T/A AXCIS EDUCATION
Ealing Council,http://opendatacommunities.org/id/london-borough-council/ealing,CHILDREN & ADULTS,1,SCHOOLS EFFECTIVENESS,SOCIAL SERVICES -CHILDRENS EVENTS,3732,,19/06/2018,40812448,1100,WH SMITH LTD
Ealing Council,http://opendatacommunities.org/id/london-borough-council/ealing,CHILDREN & ADULTS,1,SCHOOLS EFFECTIVENESS,TEACHERS SUPPORT -SPEC ED.NEEDS ONLY,4001,,04/07/2018,40811035,1277.75,O R EDUCATION LTD T/A AXCIS EDUCATION
Ealing Council,http://opendatacommunities.org/id/london-borough-council/ealing,CHILDREN & ADULTS,1,SAFEGUARDING & SUPPORT - CIC,PAYMENTS TO CONTRACTORS,4000,,18/07/2018,22531861,974.85,AIDHOUR LIMITED
Ealing Council,http://opendatacommunities.org/id/london-borough-council/ealing,CHILDREN & ADULTS,1,SAFEGUARDING & SUPPORT - CIC,PAYMENTS TO CONTRACTORS,4000,,18/07/2018,22531863,472.8,AIDHOUR LIMITED
Ealing Council,http://opendatacommunities.org/id/london-borough-council/ealing,CHILDREN & ADULTS,1,SAFEGUARDING & SUPPORT - CIC,PAYMENTS TO CONTRACTORS,4000,,11/07/2018,22527663,916.8,AIDHOUR LIMITED
Ealing Council,http://opendatacommunities.org/id/london-borough-council/ealing,CHILDREN & ADULTS,1,SAFEGUARDING & SUPPORT - CIC,PAYMENTS TO CONTRACTORS,4000,,11/07/2018,22527667,613.25,AIDHOUR LIMITED
Ealing Council,http://opendatacommunities.org/id/london-borough-council/ealing,CHILDREN & ADULTS,1,SAFEGUARDING & SUPPORT - CIC,PAYMENTS TO CONTRACTORS,4000,,11/07/2018,22527669,760.3,AIDHOUR LIMITED
Ealing Council,http://opendatacommunities.org/id/london-borough-council/ealing,CHILDREN & ADULTS,1,SAFEGUARDING & SUPPORT - CIC,PAYMENTS TO CONTRACTORS,4000,,10/07/2018,22527650,802.3,AIDHOUR LIMITED
Ealing Council,http://opendatacommunities.org/id/london-borough-council/ealing,CHILDREN & ADULTS,1,SAFEGUARDING & SUPPORT - CIC,PAYMENTS TO CONTRACTORS,4000,,10/07/2018,22527674,457.78,AIDHOUR LIMITED
Ealing Council,http://opendatacommunities.org/id/london-borough-council/ealing,CHILDREN & ADULTS,1,SAFEGUARDING & SUPPORT - CIC,PAYMENTS TO CONTRACTORS,4000,,10/07/2018,22527676,952.2,AIDHOUR LIMITED
Ealing Council,http://opendatacommunities.org/id/london-borough-council/ealing,CHILDREN & ADULTS,1,SAFEGUARDING & SUPPORT - CIC,PAYMENTS TO CONTRACTORS,4000,,10/07/2018,22527680,321.25,AIDHOUR LIMITED
Ealing Council,http://opendatacommunities.org/id/london-borough-council/ealing,CHILDREN & ADULTS,1,SAFEGUARDING & SUPPORT - CIC,PAYMENTS TO CONTRACTORS,4000,,10/07/2018,22527682,354.2,AIDHOUR LIMITED
Ealing Council,http://opendatacommunities.org/id/london-borough-council/ealing,CHILDREN & ADULTS,1,SAFEGUARDING & SUPPORT - CIC,PAYMENTS TO CONTRACTORS,4000,,10/07/2018,22527684,782.5,AIDHOUR LIMITED
Ealing Council,http://opendatacommunities.org/id/london-borough-council/ealing,CHILDREN & ADULTS,1,SAFEGUARDING & SUPPORT - CIC,PAYMENTS TO CONTRACTORS,4000,,08/05/2018,40801758,499,PARENTINGU
Ealing Council,http://opendatacommunities.org/id/london-borough-council/ealing,CHILDREN & ADULTS,1,SAFEGUARDING & SUPPORT - CIC,PAYMENTS TO CONTRACTORS,4000,,10/07/2018,22527652,1059.3,AIDHOUR LIMITED
Ealing Council,http://opendatacommunities.org/id/london-borough-council/ealing,CHILDREN & ADULTS,1,SAFEGUARDING & SUPPORT - CIC,PAYMENTS TO CONTRACTORS,4000,,10/07/2018,22527654,714.78,AIDHOUR LIMITED
Ealing Council,http://opendatacommunities.org/id/london-borough-council/ealing,CHILDREN & ADULTS,1,SAFEGUARDING & SUPPORT - CIC,PAYMENTS TO CONTRACTORS,4000,,10/07/2018,22527655,816.94,AIDHOUR LIMITED
Ealing Council,http://opendatacommunities.org/id/london-borough-council/ealing,CHILDREN & ADULTS,1,SAFEGUARDING & SUPPORT - CIC,PAYMENTS TO CONTRACTORS,4000,,10/07/2018,22527657,396.2,AIDHOUR LIMITED
Ealing Council,http://opendatacommunities.org/id/london-borough-council/ealing,CHILDREN & ADULTS,1,SAFEGUARDING & SUPPORT - CIC,PAYMENTS TO CONTRACTORS,4000,,10/07/2018,22527661,769.75,AIDHOUR LIMITED
Ealing Council,http://opendatacommunities.org/id/london-borough-council/ealing,CHILDREN & ADULTS,1,SAFEGUARDING & SUPPORT - CIC,PAYMENTS TO CONTRACTORS,4000,,10/07/2018,22527673,268,AIDHOUR LIMITED
Ealing Council,http://opendatacommunities.org/id/london-borough-council/ealing,CHILDREN & ADULTS,1,SAFEGUARDING & SUPPORT - CIC,RESIDENTIAL HOMES EXTERNAL,4220,,11/06/2018,40813121,1807.19,REDACTED SENSITIVE SUPPLIER
Ealing Council,http://opendatacommunities.org/id/london-borough-council/ealing,CHILDREN & ADULTS,1,SAFEGUARDING & SUPPORT - CIC,VEHICLE HIRE,2010,,11/06/2018,40808684,5000,A1 TAXILINE LTD
Ealing Council,http://opendatacommunities.org/id/london-borough-council/ealing,CHILDREN & ADULTS,1,SAFEGUARDING & SUPPORT - CIN,SECTION 17,4290,,30/07/2018,22542285,-455,REDACTED SENSITIVE SUPPLIER
Ealing Council,http://opendatacommunities.org/id/london-borough-council/ealing,CHILDREN & ADULTS,1,SAFEGUARDING & SUPPORT - CIN,SECTION 17,4290,,06/07/2018,40811423,3000,REDACTED SENSITIVE SUPPLIER
Ealing Council,http://opendatacommunities.org/id/london-borough-council/ealing,CHILDREN & ADULTS,1,SAFEGUARDING & SUPPORT - CIN,SECTION 17,4290,,01/07/2018,40810422,306.6,REDACTED SENSITIVE SUPPLIER
Ealing Council,http://opendatacommunities.org/id/london-borough-council/ealing,CHILDREN & ADULTS,1,SAFEGUARDING & SUPPORT - CIN,SECTION 17 NRPF,4297,,01/06/2018,40810403,840,SD BUILDERS LIMITED
Ealing Council,http://opendatacommunities.org/id/london-borough-council/ealing,CHILDREN & ADULTS,1,SAFEGUARDING & SUPPORT - CIN,PAYMENTS TO HEALTH AUTHS.,4360,,19/07/2018,40813278,76899,WEST LONDON MENTAL HEALTH NHS TRUST
Ealing Council,http://opendatacommunities.org/id/london-borough-council/ealing,REGENERATION AND HOUSING,2,HOUSING  DEMAND,BED & BREAKFAST PAYMENTS,5330,,20/05/2018,40813918,1302,REDACTED SENSITIVE SUPPLIER
Ealing Council,http://opendatacommunities.org/id/london-borough-council/ealing,REGENERATION AND HOUSING,2,HOUSING  DEMAND,BED & BREAKFAST PAYMENTS,5330,,03/06/2018,40813933,630,REDACTED SENSITIVE SUPPLIER
Ealing Council,http://opendatacommunities.org/id/london-borough-council/ealing,REGENERATION AND HOUSING,2,HOUSING  DEMAND,BED & BREAKFAST PAYMENTS,5330,,10/06/2018,40813934,630,REDACTED SENSITIVE SUPPLIER
Ealing Council,http://opendatacommunities.org/id/london-borough-council/ealing,REGENERATION AND HOUSING,2,HOUSING  DEMAND,BED & BREAKFAST PAYMENTS,5330,,17/06/2018,40813937,480,REDACTED SENSITIVE SUPPLIER
Ealing Council,http://opendatacommunities.org/id/london-borough-council/ealing,REGENERATION AND HOUSING,2,HOUSING  DEMAND,BED & BREAKFAST PAYMENTS,5330,,03/06/2018,40813942,588,REDACTED SENSITIVE SUPPLIER
Ealing Council,http://opendatacommunities.org/id/london-borough-council/ealing,REGENERATION AND HOUSING,2,HOUSING  DEMAND,BED & BREAKFAST PAYMENTS,5330,,10/06/2018,40813943,588,REDACTED SENSITIVE SUPPLIER
Ealing Council,http://opendatacommunities.org/id/london-borough-council/ealing,REGENERATION AND HOUSING,2,HOUSING  DEMAND,BED & BREAKFAST PAYMENTS,5330,,03/06/2018,40813944,1176,REDACTED SENSITIVE SUPPLIER
Ealing Council,http://opendatacommunities.org/id/london-borough-council/ealing,REGENERATION AND HOUSING,2,HOUSING  DEMAND,BED & BREAKFAST PAYMENTS,5330,,03/06/2018,40813922,1452,REDACTED SENSITIVE SUPPLIER
Ealing Council,http://opendatacommunities.org/id/london-borough-council/ealing,REGENERATION AND HOUSING,2,HOUSING  DEMAND,BED & BREAKFAST PAYMENTS,5330,,10/06/2018,40813924,882,REDACTED SENSITIVE SUPPLIER
Ealing Council,http://opendatacommunities.org/id/london-borough-council/ealing,REGENERATION AND HOUSING,2,HOUSING  DEMAND,BED & BREAKFAST PAYMENTS,5330,,03/06/2018,40813925,882,REDACTED SENSITIVE SUPPLIER
Ealing Council,http://opendatacommunities.org/id/london-borough-council/ealing,REGENERATION AND HOUSING,2,HOUSING  DEMAND,BED & BREAKFAST PAYMENTS,5330,,03/06/2018,40813927,966,REDACTED SENSITIVE SUPPLIER
Ealing Council,http://opendatacommunities.org/id/london-borough-council/ealing,REGENERATION AND HOUSING,2,HOUSING  DEMAND,BED & BREAKFAST PAYMENTS,5330,,10/06/2018,40813929,900,REDACTED SENSITIVE SUPPLIER
Ealing Council,http://opendatacommunities.org/id/london-borough-council/ealing,REGENERATION AND HOUSING,2,HOUSING  DEMAND,BED & BREAKFAST PAYMENTS,5330,,17/06/2018,40813932,702,REDACTED SENSITIVE SUPPLIER
Ealing Council,http://opendatacommunities.org/id/london-borough-council/ealing,REGENERATION AND HOUSING,2,HOUSING  DEMAND,BED & BREAKFAST PAYMENTS,5330,,10/06/2018,40813864,840,REDACTED SENSITIVE SUPPLIER
Ealing Council,http://opendatacommunities.org/id/london-borough-council/ealing,REGENERATION AND HOUSING,2,HOUSING  DEMAND,BED & BREAKFAST PAYMENTS,5330,,17/06/2018,40813865,840,REDACTED SENSITIVE SUPPLIER
Ealing Council,http://opendatacommunities.org/id/london-borough-council/ealing,REGENERATION AND HOUSING,2,HOUSING  DEMAND,BED & BREAKFAST PAYMENTS,5330,,24/06/2018,40813867,840,REDACTED SENSITIVE SUPPLIER
Ealing Council,http://opendatacommunities.org/id/london-borough-council/ealing,REGENERATION AND HOUSING,2,HOUSING  DEMAND,BED & BREAKFAST PAYMENTS,5330,,24/06/2018,40813869,1596,REDACTED SENSITIVE SUPPLIER
Ealing Council,http://opendatacommunities.org/id/london-borough-council/ealing,REGENERATION AND HOUSING,2,HOUSING  DEMAND,BED & BREAKFAST PAYMENTS,5330,,17/06/2018,40813871,1554,REDACTED SENSITIVE SUPPLIER
Ealing Council,http://opendatacommunities.org/id/london-borough-council/ealing,REGENERATION AND HOUSING,2,HOUSING  DEMAND,BED & BREAKFAST PAYMENTS,5330,,10/06/2018,40813920,1548,REDACTED SENSITIVE SUPPLIER
Ealing Council,http://opendatacommunities.org/id/london-borough-council/ealing,REGENERATION AND HOUSING,2,HOUSING  DEMAND,BED & BREAKFAST PAYMENTS,5330,,10/06/2018,40813857,714,REDACTED SENSITIVE SUPPLIER
Ealing Council,http://opendatacommunities.org/id/london-borough-council/ealing,REGENERATION AND HOUSING,2,HOUSING  DEMAND,BED & BREAKFAST PAYMENTS,5330,,17/06/2018,40813859,714,REDACTED SENSITIVE SUPPLIER
Ealing Council,http://opendatacommunities.org/id/london-borough-council/ealing,REGENERATION AND HOUSING,2,HOUSING  DEMAND,BED & BREAKFAST PAYMENTS,5330,,24/06/2018,40813860,714,REDACTED SENSITIVE SUPPLIER
Ealing Council,http://opendatacommunities.org/id/london-borough-council/ealing,REGENERATION AND HOUSING,2,HOUSING  DEMAND,BED & BREAKFAST PAYMENTS,5330,,10/06/2018,40813861,1092,REDACTED SENSITIVE SUPPLIER
Ealing Council,http://opendatacommunities.org/id/london-borough-council/ealing,REGENERATION AND HOUSING,2,HOUSING  DEMAND,BED & BREAKFAST PAYMENTS,5330,,17/06/2018,40813862,1092,REDACTED SENSITIVE SUPPLIER
Ealing Council,http://opendatacommunities.org/id/london-borough-council/ealing,REGENERATION AND HOUSING,2,HOUSING  DEMAND,BED & BREAKFAST PAYMENTS,5330,,24/06/2018,40813863,972,REDACTED SENSITIVE SUPPLIER
Ealing Council,http://opendatacommunities.org/id/london-borough-council/ealing,REGENERATION AND HOUSING,2,HOUSING  DEMAND,BED & BREAKFAST PAYMENTS,5330,,24/06/2018,40813850,966,REDACTED SENSITIVE SUPPLIER
Ealing Council,http://opendatacommunities.org/id/london-borough-council/ealing,REGENERATION AND HOUSING,2,HOUSING  DEMAND,BED & BREAKFAST PAYMENTS,5330,,17/06/2018,40813851,966,REDACTED SENSITIVE SUPPLIER
Ealing Council,http://opendatacommunities.org/id/london-borough-council/ealing,REGENERATION AND HOUSING,2,HOUSING  DEMAND,BED & BREAKFAST PAYMENTS,5330,,10/06/2018,40813852,930,REDACTED SENSITIVE SUPPLIER
Ealing Council,http://opendatacommunities.org/id/london-borough-council/ealing,REGENERATION AND HOUSING,2,HOUSING  DEMAND,BED & BREAKFAST PAYMENTS,5330,,24/06/2018,40813853,882,REDACTED SENSITIVE SUPPLIER
Ealing Council,http://opendatacommunities.org/id/london-borough-council/ealing,REGENERATION AND HOUSING,2,HOUSING  DEMAND,BED & BREAKFAST PAYMENTS,5330,,17/06/2018,40813854,882,REDACTED SENSITIVE SUPPLIER
Ealing Council,http://opendatacommunities.org/id/london-borough-council/ealing,REGENERATION AND HOUSING,2,HOUSING  DEMAND,BED & BREAKFAST PAYMENTS,5330,,10/06/2018,40813856,882,REDACTED SENSITIVE SUPPLIER
Ealing Council,http://opendatacommunities.org/id/london-borough-council/ealing,REGENERATION AND HOUSING,2,HOUSING  DEMAND,BED & BREAKFAST PAYMENTS,5330,,24/06/2018,40813843,798,REDACTED SENSITIVE SUPPLIER
Ealing Council,http://opendatacommunities.org/id/london-borough-council/ealing,REGENERATION AND HOUSING,2,HOUSING  DEMAND,BED & BREAKFAST PAYMENTS,5330,,17/06/2018,40813844,798,REDACTED SENSITIVE SUPPLIER
Ealing Council,http://opendatacommunities.org/id/london-borough-council/ealing,REGENERATION AND HOUSING,2,HOUSING  DEMAND,BED & BREAKFAST PAYMENTS,5330,,10/06/2018,40813845,798,REDACTED SENSITIVE SUPPLIER
Ealing Council,http://opendatacommunities.org/id/london-borough-council/ealing,REGENERATION AND HOUSING,2,HOUSING  DEMAND,BED & BREAKFAST PAYMENTS,5330,,24/06/2018,40813847,378,REDACTED SENSITIVE SUPPLIER
Ealing Council,http://opendatacommunities.org/id/london-borough-council/ealing,REGENERATION AND HOUSING,2,HOUSING  DEMAND,BED & BREAKFAST PAYMENTS,5330,,17/06/2018,40813848,450,REDACTED SENSITIVE SUPPLIER
Ealing Council,http://opendatacommunities.org/id/london-borough-council/ealing,REGENERATION AND HOUSING,2,HOUSING  DEMAND,BED & BREAKFAST PAYMENTS,5330,,10/06/2018,40813849,882,REDACTED SENSITIVE SUPPLIER
Ealing Council,http://opendatacommunities.org/id/london-borough-council/ealing,REGENERATION AND HOUSING,2,HOUSING  DEMAND,BED & BREAKFAST PAYMENTS,5330,,21/05/2018,40810196,840,REDACTED SENSITIVE SUPPLIER
Ealing Council,http://opendatacommunities.org/id/london-borough-council/ealing,REGENERATION AND HOUSING,2,HOUSING  DEMAND,BED & BREAKFAST PAYMENTS,5330,,28/05/2018,40810195,840,REDACTED SENSITIVE SUPPLIER
Ealing Council,http://opendatacommunities.org/id/london-borough-council/ealing,REGENERATION AND HOUSING,2,HOUSING  DEMAND,BED & BREAKFAST PAYMENTS,5330,,10/06/2018,40810194,1470,REDACTED SENSITIVE SUPPLIER
Ealing Council,http://opendatacommunities.org/id/london-borough-council/ealing,REGENERATION AND HOUSING,2,HOUSING  DEMAND,BED & BREAKFAST PAYMENTS,5330,,17/06/2018,40813840,1512,REDACTED SENSITIVE SUPPLIER
Ealing Council,http://opendatacommunities.org/id/london-borough-council/ealing,REGENERATION AND HOUSING,2,HOUSING  DEMAND,BED & BREAKFAST PAYMENTS,5330,,24/06/2018,40813841,1512,REDACTED SENSITIVE SUPPLIER
Ealing Council,http://opendatacommunities.org/id/london-borough-council/ealing,REGENERATION AND HOUSING,2,HOUSING  DEMAND,BED & BREAKFAST PAYMENTS,5330,,01/07/2018,40813842,1512,REDACTED SENSITIVE SUPPLIER
Ealing Council,http://opendatacommunities.org/id/london-borough-council/ealing,REGENERATION AND HOUSING,2,HOUSING  DEMAND,BED & BREAKFAST PAYMENTS,5330,,28/05/2018,40810202,1722,REDACTED SENSITIVE SUPPLIER
Ealing Council,http://opendatacommunities.org/id/london-borough-council/ealing,REGENERATION AND HOUSING,2,HOUSING  DEMAND,BED & BREAKFAST PAYMENTS,5330,,07/05/2018,40810201,882,REDACTED SENSITIVE SUPPLIER
Ealing Council,http://opendatacommunities.org/id/london-borough-council/ealing,REGENERATION AND HOUSING,2,HOUSING  DEMAND,BED & BREAKFAST PAYMENTS,5330,,14/05/2018,40810200,882,REDACTED SENSITIVE SUPPLIER
Ealing Council,http://opendatacommunities.org/id/london-borough-council/ealing,REGENERATION AND HOUSING,2,HOUSING  DEMAND,BED & BREAKFAST PAYMENTS,5330,,28/05/2018,40810199,738,REDACTED SENSITIVE SUPPLIER
Ealing Council,http://opendatacommunities.org/id/london-borough-council/ealing,REGENERATION AND HOUSING,2,HOUSING  DEMAND,BED & BREAKFAST PAYMENTS,5330,,07/05/2018,40810198,840,REDACTED SENSITIVE SUPPLIER
Ealing Council,http://opendatacommunities.org/id/london-borough-council/ealing,REGENERATION AND HOUSING,2,HOUSING  DEMAND,BED & BREAKFAST PAYMENTS,5330,,14/05/2018,40810197,840,REDACTED SENSITIVE SUPPLIER
Ealing Council,http://opendatacommunities.org/id/london-borough-council/ealing,REGENERATION AND HOUSING,2,HOUSING  DEMAND,BED & BREAKFAST PAYMENTS,5330,,24/06/2018,40809918,656.25,REDACTED SENSITIVE SUPPLIER
Ealing Council,http://opendatacommunities.org/id/london-borough-council/ealing,REGENERATION AND HOUSING,2,HOUSING  DEMAND,BED & BREAKFAST PAYMENTS,5330,,24/06/2018,40809916,1858.5,REDACTED SENSITIVE SUPPLIER
Ealing Council,http://opendatacommunities.org/id/london-borough-council/ealing,REGENERATION AND HOUSING,2,HOUSING  DEMAND,BED & BREAKFAST PAYMENTS,5330,,24/06/2018,40809916,787.5,REDACTED SENSITIVE SUPPLIER
Ealing Council,http://opendatacommunities.org/id/london-borough-council/ealing,REGENERATION AND HOUSING,2,HOUSING  DEMAND,BED & BREAKFAST PAYMENTS,5330,,03/06/2018,40810205,1176,REDACTED SENSITIVE SUPPLIER
Ealing Council,http://opendatacommunities.org/id/london-borough-council/ealing,REGENERATION AND HOUSING,2,HOUSING  DEMAND,BED & BREAKFAST PAYMENTS,5330,,03/06/2018,40810204,1260,REDACTED SENSITIVE SUPPLIER
Ealing Council,http://opendatacommunities.org/id/london-borough-council/ealing,REGENERATION AND HOUSING,2,HOUSING  DEMAND,BED & BREAKFAST PAYMENTS,5330,,03/06/2018,40810203,1092,REDACTED SENSITIVE SUPPLIER
Ealing Council,http://opendatacommunities.org/id/london-borough-council/ealing,REGENERATION AND HOUSING,2,HOUSING  DEMAND,BED & BREAKFAST PAYMENTS,5330,,27/05/2018,40809675,972,REDACTED SENSITIVE SUPPLIER
Ealing Council,http://opendatacommunities.org/id/london-borough-council/ealing,REGENERATION AND HOUSING,2,HOUSING  DEMAND,BED & BREAKFAST PAYMENTS,5330,,27/05/2018,40809676,882,REDACTED SENSITIVE SUPPLIER
Ealing Council,http://opendatacommunities.org/id/london-borough-council/ealing,REGENERATION AND HOUSING,2,HOUSING  DEMAND,BED & BREAKFAST PAYMENTS,5330,,27/05/2018,40809677,1386,REDACTED SENSITIVE SUPPLIER
Ealing Council,http://opendatacommunities.org/id/london-borough-council/ealing,REGENERATION AND HOUSING,2,HOUSING  DEMAND,BED & BREAKFAST PAYMENTS,5330,,27/05/2018,40809678,1050,REDACTED SENSITIVE SUPPLIER
Ealing Council,http://opendatacommunities.org/id/london-borough-council/ealing,REGENERATION AND HOUSING,2,HOUSING  DEMAND,BED & BREAKFAST PAYMENTS,5330,,27/05/2018,40809679,1134,REDACTED SENSITIVE SUPPLIER
Ealing Council,http://opendatacommunities.org/id/london-borough-council/ealing,REGENERATION AND HOUSING,2,HOUSING  DEMAND,BED & BREAKFAST PAYMENTS,5330,,27/05/2018,40809680,1098,REDACTED SENSITIVE SUPPLIER
Ealing Council,http://opendatacommunities.org/id/london-borough-council/ealing,REGENERATION AND HOUSING,2,HOUSING  DEMAND,BED & BREAKFAST PAYMENTS,5330,,27/05/2018,40809665,1050,REDACTED SENSITIVE SUPPLIER
Ealing Council,http://opendatacommunities.org/id/london-borough-council/ealing,REGENERATION AND HOUSING,2,HOUSING  DEMAND,BED & BREAKFAST PAYMENTS,5330,,27/05/2018,40809667,852,REDACTED SENSITIVE SUPPLIER
Ealing Council,http://opendatacommunities.org/id/london-borough-council/ealing,REGENERATION AND HOUSING,2,HOUSING  DEMAND,BED & BREAKFAST PAYMENTS,5330,,27/05/2018,40809669,750,REDACTED SENSITIVE SUPPLIER
Ealing Council,http://opendatacommunities.org/id/london-borough-council/ealing,REGENERATION AND HOUSING,2,HOUSING  DEMAND,BED & BREAKFAST PAYMENTS,5330,,27/05/2018,40809670,630,REDACTED SENSITIVE SUPPLIER
Ealing Council,http://opendatacommunities.org/id/london-borough-council/ealing,REGENERATION AND HOUSING,2,HOUSING  DEMAND,BED & BREAKFAST PAYMENTS,5330,,27/05/2018,40809672,882,REDACTED SENSITIVE SUPPLIER
Ealing Council,http://opendatacommunities.org/id/london-borough-council/ealing,REGENERATION AND HOUSING,2,HOUSING  DEMAND,BED & BREAKFAST PAYMENTS,5330,,27/05/2018,40809674,672,REDACTED SENSITIVE SUPPLIER
Ealing Council,http://opendatacommunities.org/id/london-borough-council/ealing,REGENERATION AND HOUSING,2,HOUSING  DEMAND,BED & BREAKFAST PAYMENTS,5330,,01/07/2018,40814832,672,REDACTED SENSITIVE SUPPLIER
Ealing Council,http://opendatacommunities.org/id/london-borough-council/ealing,REGENERATION AND HOUSING,2,HOUSING  DEMAND,BED & BREAKFAST PAYMENTS,5330,,24/06/2018,40814833,762,REDACTED SENSITIVE SUPPLIER
Ealing Council,http://opendatacommunities.org/id/london-borough-council/ealing,REGENERATION AND HOUSING,2,HOUSING  DEMAND,BED & BREAKFAST PAYMENTS,5330,,27/05/2018,40809661,3924,REDACTED SENSITIVE SUPPLIER
Ealing Council,http://opendatacommunities.org/id/london-borough-council/ealing,REGENERATION AND HOUSING,2,HOUSING  DEMAND,BED & BREAKFAST PAYMENTS,5330,,20/05/2018,40809662,672,REDACTED SENSITIVE SUPPLIER
Ealing Council,http://opendatacommunities.org/id/london-borough-council/ealing,REGENERATION AND HOUSING,2,HOUSING  DEMAND,BED & BREAKFAST PAYMENTS,5330,,20/05/2018,40809663,1050,REDACTED SENSITIVE SUPPLIER
Ealing Council,http://opendatacommunities.org/id/london-borough-council/ealing,REGENERATION AND HOUSING,2,HOUSING  DEMAND,BED & BREAKFAST PAYMENTS,5330,,27/05/2018,40809664,798,REDACTED SENSITIVE SUPPLIER
Ealing Council,http://opendatacommunities.org/id/london-borough-council/ealing,REGENERATION AND HOUSING,2,HOUSING  DEMAND,BED & BREAKFAST PAYMENTS,5330,,24/06/2018,40814826,798,REDACTED SENSITIVE SUPPLIER
Ealing Council,http://opendatacommunities.org/id/london-borough-council/ealing,REGENERATION AND HOUSING,2,HOUSING  DEMAND,BED & BREAKFAST PAYMENTS,5330,,17/06/2018,40814827,870,REDACTED SENSITIVE SUPPLIER
Ealing Council,http://opendatacommunities.org/id/london-borough-council/ealing,REGENERATION AND HOUSING,2,HOUSING  DEMAND,BED & BREAKFAST PAYMENTS,5330,,10/06/2018,40814828,1050,REDACTED SENSITIVE SUPPLIER
Ealing Council,http://opendatacommunities.org/id/london-borough-council/ealing,REGENERATION AND HOUSING,2,HOUSING  DEMAND,BED & BREAKFAST PAYMENTS,5330,,17/06/2018,40814829,2184,REDACTED SENSITIVE SUPPLIER
Ealing Council,http://opendatacommunities.org/id/london-borough-council/ealing,REGENERATION AND HOUSING,2,HOUSING  DEMAND,BED & BREAKFAST PAYMENTS,5330,,24/06/2018,40814830,2184,REDACTED SENSITIVE SUPPLIER
Ealing Council,http://opendatacommunities.org/id/london-borough-council/ealing,REGENERATION AND HOUSING,2,HOUSING  DEMAND,BED & BREAKFAST PAYMENTS,5330,,01/07/2018,40814831,2100,REDACTED SENSITIVE SUPPLIER
Ealing Council,http://opendatacommunities.org/id/london-borough-council/ealing,REGENERATION AND HOUSING,2,HOUSING  DEMAND,BED & BREAKFAST PAYMENTS,5330,,10/06/2018,40814819,840,REDACTED SENSITIVE SUPPLIER
Ealing Council,http://opendatacommunities.org/id/london-borough-council/ealing,REGENERATION AND HOUSING,2,HOUSING  DEMAND,BED & BREAKFAST PAYMENTS,5330,,17/06/2018,40814820,840,REDACTED SENSITIVE SUPPLIER
Ealing Council,http://opendatacommunities.org/id/london-borough-council/ealing,REGENERATION AND HOUSING,2,HOUSING  DEMAND,BED & BREAKFAST PAYMENTS,5330,,24/06/2018,40814821,840,REDACTED SENSITIVE SUPPLIER
Ealing Council,http://opendatacommunities.org/id/london-borough-council/ealing,REGENERATION AND HOUSING,2,HOUSING  DEMAND,BED & BREAKFAST PAYMENTS,5330,,01/07/2018,40814822,870,REDACTED SENSITIVE SUPPLIER
Ealing Council,http://opendatacommunities.org/id/london-borough-council/ealing,REGENERATION AND HOUSING,2,HOUSING  DEMAND,BED & BREAKFAST PAYMENTS,5330,,03/06/2018,40814824,1050,REDACTED SENSITIVE SUPPLIER
Ealing Council,http://opendatacommunities.org/id/london-borough-council/ealing,REGENERATION AND HOUSING,2,HOUSING  DEMAND,BED & BREAKFAST PAYMENTS,5330,,01/07/2018,40814825,798,REDACTED SENSITIVE SUPPLIER
Ealing Council,http://opendatacommunities.org/id/london-borough-council/ealing,REGENERATION AND HOUSING,2,HOUSING  DEMAND,BED & BREAKFAST PAYMENTS,5330,,01/07/2018,40814813,1002,REDACTED SENSITIVE SUPPLIER
Ealing Council,http://opendatacommunities.org/id/london-borough-council/ealing,CHILDREN & ADULTS,1,SAFEGUARDING & SUPPORT - CIN,SECTION 17 NRPF,4297,,01/06/2018,40810404,750,SD BUILDERS LIMITED
Ealing Council,http://opendatacommunities.org/id/london-borough-council/ealing,CHILDREN & ADULTS,1,SAFEGUARDING & SUPPORT - CIN,SECTION 17 NRPF,4297,,01/06/2018,40810571,1080,SD BUILDERS LIMITED
Ealing Council,http://opendatacommunities.org/id/london-borough-council/ealing,CHILDREN & ADULTS,1,SAFEGUARDING & SUPPORT - CIN,SECTION 17 NRPF,4297,,01/07/2018,40814069,540,SD BUILDERS LIMITED
Ealing Council,http://opendatacommunities.org/id/london-borough-council/ealing,CHILDREN & ADULTS,1,SAFEGUARDING & SUPPORT - CIN,SECTION 17 NRPF,4297,,01/07/2018,40810282,900,TM HOME LIMITED
Ealing Council,http://opendatacommunities.org/id/london-borough-council/ealing,CHILDREN & ADULTS,1,SAFEGUARDING & SUPPORT - CIN,SECTION 17 NRPF,4297,,01/06/2018,40810399,750,SD BUILDERS LIMITED
Ealing Council,http://opendatacommunities.org/id/london-borough-council/ealing,CHILDREN & ADULTS,1,SAFEGUARDING & SUPPORT - CIN,SECTION 17 NRPF,4297,,01/06/2018,40810561,750,SD BUILDERS LIMITED
Ealing Council,http://opendatacommunities.org/id/london-borough-council/ealing,CHILDREN & ADULTS,1,SAFEGUARDING & SUPPORT - CIN,SECTION 17 NRPF,4297,,01/06/2018,40810968,2562,SD BUILDERS LIMITED
Ealing Council,http://opendatacommunities.org/id/london-borough-council/ealing,CHILDREN & ADULTS,1,SAFEGUARDING & SUPPORT - CIN,SECTION 17 NRPF,4297,,09/07/2018,40811602,473.76,MRS AK OBERAI
Ealing Council,http://opendatacommunities.org/id/london-borough-council/ealing,CHILDREN & ADULTS,1,SAFEGUARDING & SUPPORT - CIN,SECTION 17 NRPF,4297,,01/07/2018,40812297,462,SD BUILDERS LIMITED
Ealing Council,http://opendatacommunities.org/id/london-borough-council/ealing,CHILDREN & ADULTS,1,SAFEGUARDING & SUPPORT - CIN,SECTION 17 NRPF,4297,,30/06/2018,40812584,1980,HS BIRK T/A ROSEWOOD PARK LTD
Ealing Council,http://opendatacommunities.org/id/london-borough-council/ealing,CHILDREN & ADULTS,1,SAFEGUARDING & SUPPORT - CIN,SECTION 17 NRPF,4297,,01/07/2018,40814068,375,SD BUILDERS LIMITED
Ealing Council,http://opendatacommunities.org/id/london-borough-council/ealing,CHILDREN & ADULTS,1,SAFEGUARDING & SUPPORT - CIN,SECTION 17 NRPF,4297,,17/04/2018,40811833,750,MRS MAXINE CHARLES
Ealing Council,http://opendatacommunities.org/id/london-borough-council/ealing,CHILDREN & ADULTS,1,SAFEGUARDING & SUPPORT - CIN,SECTION 17 NRPF,4297,,09/07/2018,40811834,775,MRS MAXINE CHARLES
Ealing Council,http://opendatacommunities.org/id/london-borough-council/ealing,CHILDREN & ADULTS,1,SAFEGUARDING & SUPPORT - CIN,SECTION 17 NRPF,4297,,09/07/2018,40811600,700,MRS AK OBERAI
Ealing Council,http://opendatacommunities.org/id/london-borough-council/ealing,CHILDREN & ADULTS,1,SAFEGUARDING & SUPPORT - CIN,SECTION 17 NRPF,4297,,09/07/2018,40811600,560,MRS AK OBERAI
Ealing Council,http://opendatacommunities.org/id/london-borough-council/ealing,CHILDREN & ADULTS,1,SAFEGUARDING & SUPPORT - CIN,SECTION 17 NRPF,4297,,09/07/2018,40811602,534.24,MRS AK OBERAI
Ealing Council,http://opendatacommunities.org/id/london-borough-council/ealing,CHILDREN & ADULTS,1,SAFEGUARDING & SUPPORT - CIN,SECTION 17 NRPF,4297,,01/06/2018,40810402,650,SD BUILDERS LIMITED
Ealing Council,http://opendatacommunities.org/id/london-borough-council/ealing,CHILDREN & ADULTS,1,SAFEGUARDING & SUPPORT - CIN,SECTION 17 NRPF,4297,,20/07/2018,40813516,350,AJAY UK LTD
Ealing Council,http://opendatacommunities.org/id/london-borough-council/ealing,CHILDREN & ADULTS,1,SAFEGUARDING & SUPPORT - CIN,SECTION 17 NRPF,4297,,20/07/2018,40813518,350,AJAY UK LTD
Ealing Council,http://opendatacommunities.org/id/london-borough-council/ealing,CHILDREN & ADULTS,1,SAFEGUARDING & SUPPORT - CIN,SECTION 17 NRPF,4297,,20/07/2018,40813519,275,AJAY UK LTD
Ealing Council,http://opendatacommunities.org/id/london-borough-council/ealing,CHILDREN & ADULTS,1,SAFEGUARDING & SUPPORT - CIN,SECTION 17 NRPF,4297,,06/07/2018,40811281,350,AJAY UK LTD
Ealing Council,http://opendatacommunities.org/id/london-borough-council/ealing,CHILDREN & ADULTS,1,SAFEGUARDING & SUPPORT - CIN,SECTION 17 NRPF,4297,,06/07/2018,40811282,270,AJAY UK LTD
Ealing Council,http://opendatacommunities.org/id/london-borough-council/ealing,CHILDREN & ADULTS,1,SAFEGUARDING & SUPPORT - CIN,SECTION 17 NRPF,4297,,31/05/2018,40811832,775,MRS MAXINE CHARLES
Ealing Council,http://opendatacommunities.org/id/london-borough-council/ealing,REGENERATION AND HOUSING,2,HRA EXPENDITURE,INSURANCE,1260,,19/07/2018,40813292,2612.12,Sundry Supplier - Regeneration & Housing
Ealing Council,http://opendatacommunities.org/id/london-borough-council/ealing,REGENERATION AND HOUSING,2,HRA EXPENDITURE,SUBSCRIPTIONS,3600,,03/07/2018,40810508,500,HQN LIMITED
Ealing Council,http://opendatacommunities.org/id/london-borough-council/ealing,REGENERATION AND HOUSING,2,HRA EXPENDITURE,TRAINING,80,,25/06/2018,40810854,2100,CHARTERED INSTITUTE OF HOUSING
Ealing Council,http://opendatacommunities.org/id/london-borough-council/ealing,REGENERATION AND HOUSING,2,HRA EXPENDITURE,TRAINING,80,,25/06/2018,40810857,2100,CHARTERED INSTITUTE OF HOUSING
Ealing Council,http://opendatacommunities.org/id/london-borough-council/ealing,REGENERATION AND HOUSING,2,HRA EXPENDITURE,POSTAGE,3800,,22/03/2018,40798877,6244.86,DUNDORE LTD T/A SECURITY DATA PRINT
Ealing Council,http://opendatacommunities.org/id/london-borough-council/ealing,REGENERATION AND HOUSING,2,HRA EXPENDITURE,REPAIR AND MAINTENANCE,1410,,19/04/2018,40811499,725,CENTRAL MOVES LIMITED
Ealing Council,http://opendatacommunities.org/id/london-borough-council/ealing,REGENERATION AND HOUSING,2,HRA EXPENDITURE,REPAIR AND MAINTENANCE,1410,,20/06/2018,40813014,585,CENTRAL MOVES LIMITED
Ealing Council,http://opendatacommunities.org/id/london-borough-council/ealing,REGENERATION AND HOUSING,2,HRA EXPENDITURE,REPAIR AND MAINTENANCE,1410,,25/06/2018,40813016,725,CENTRAL MOVES LIMITED
Ealing Council,http://opendatacommunities.org/id/london-borough-council/ealing,REGENERATION AND HOUSING,2,HRA MANAGEMENT,CLEANING CONTRACT,1300,,31/05/2018,40809377,520,DIRIYE CLEANING SERVICES
Ealing Council,http://opendatacommunities.org/id/london-borough-council/ealing,REGENERATION AND HOUSING,2,HRA MANAGEMENT,ELECTRICITY,1120,,25/04/2018,40810069,-304.42,E-ON ENERGY LIMITED
Ealing Council,http://opendatacommunities.org/id/london-borough-council/ealing,REGENERATION AND HOUSING,2,HRA MANAGEMENT,ELECTRICITY,1120,,24/04/2018,40810073,304.42,E-ON ENERGY LIMITED
Ealing Council,http://opendatacommunities.org/id/london-borough-council/ealing,REGENERATION AND HOUSING,2,HRA MANAGEMENT,ELECTRICITY,1120,,23/01/2018,40810067,310.52,E-ON ENERGY LIMITED
Ealing Council,http://opendatacommunities.org/id/london-borough-council/ealing,REGENERATION AND HOUSING,2,HRA MANAGEMENT,ELECTRICITY,1120,,25/04/2018,40810069,276.62,E-ON ENERGY LIMITED
Ealing Council,http://opendatacommunities.org/id/london-borough-council/ealing,REGENERATION AND HOUSING,2,HRA MANAGEMENT,CLEANING CONTRACT,1300,,30/06/2018,40810718,1948.5,MANDYS MAIDS LTD
Ealing Council,http://opendatacommunities.org/id/london-borough-council/ealing,ENVIRONMENT & CUSTOMER SERVICES,3,STREET SERVICES,PAYMENTS TO CONTRACTORS,4000,,30/06/2018,40810594,12121.76,MPM GRAFFITI SOLUTIONS
Ealing Council,http://opendatacommunities.org/id/london-borough-council/ealing,ENVIRONMENT & CUSTOMER SERVICES,3,STREET SERVICES,CONTRACT PAYMENTS -CLEAN & GREEN,4010,,13/07/2018,40812659,-169679.06,ENTERPRISE MANAGED SERVICES LTD (AMEY PLC)
Ealing Council,http://opendatacommunities.org/id/london-borough-council/ealing,ENVIRONMENT & CUSTOMER SERVICES,3,STREET SERVICES,CONTRACT PAYMENTS -CLEAN & GREEN,4010,,01/07/2018,40812047,169679.06,ENTERPRISE MANAGED SERVICES LTD (AMEY PLC)
Ealing Council,http://opendatacommunities.org/id/london-borough-council/ealing,ENVIRONMENT & CUSTOMER SERVICES,3,STREET SERVICES,CONTRACT PAYMENTS -CLEAN & GREEN,4010,,11/06/2018,40810862,169679.06,ENTERPRISE MANAGED SERVICES LTD (AMEY PLC)
Ealing Council,http://opendatacommunities.org/id/london-borough-council/ealing,ENVIRONMENT & CUSTOMER SERVICES,3,STREET SERVICES,CONTRACT PAYMENTS -CLEAN & GREEN,4010,,13/07/2018,40812659,-39301.65,ENTERPRISE MANAGED SERVICES LTD (AMEY PLC)
Ealing Council,http://opendatacommunities.org/id/london-borough-council/ealing,REGENERATION AND HOUSING,2,HOUSING  DEMAND,BED & BREAKFAST PAYMENTS,5330,,08/07/2018,40814814,1002,REDACTED SENSITIVE SUPPLIER
Ealing Council,http://opendatacommunities.org/id/london-borough-council/ealing,REGENERATION AND HOUSING,2,HOUSING  DEMAND,BED & BREAKFAST PAYMENTS,5330,,04/06/2018,40814815,630,REDACTED SENSITIVE SUPPLIER
Ealing Council,http://opendatacommunities.org/id/london-borough-council/ealing,REGENERATION AND HOUSING,2,HOUSING  DEMAND,BED & BREAKFAST PAYMENTS,5330,,11/06/2018,40814816,630,REDACTED SENSITIVE SUPPLIER
Ealing Council,http://opendatacommunities.org/id/london-borough-council/ealing,REGENERATION AND HOUSING,2,HOUSING  DEMAND,BED & BREAKFAST PAYMENTS,5330,,18/06/2018,40814817,630,REDACTED SENSITIVE SUPPLIER
Ealing Council,http://opendatacommunities.org/id/london-borough-council/ealing,REGENERATION AND HOUSING,2,HOUSING  DEMAND,BED & BREAKFAST PAYMENTS,5330,,03/06/2018,40814818,870,REDACTED SENSITIVE SUPPLIER
Ealing Council,http://opendatacommunities.org/id/london-borough-council/ealing,REGENERATION AND HOUSING,2,HOUSING  DEMAND,BED & BREAKFAST PAYMENTS,5330,,01/07/2018,40814780,798,REDACTED SENSITIVE SUPPLIER
Ealing Council,http://opendatacommunities.org/id/london-borough-council/ealing,REGENERATION AND HOUSING,2,HOUSING  DEMAND,BED & BREAKFAST PAYMENTS,5330,,17/06/2018,40814781,588,REDACTED SENSITIVE SUPPLIER
Ealing Council,http://opendatacommunities.org/id/london-borough-council/ealing,REGENERATION AND HOUSING,2,HOUSING  DEMAND,BED & BREAKFAST PAYMENTS,5330,,20/05/2018,40814783,498,REDACTED SENSITIVE SUPPLIER
Ealing Council,http://opendatacommunities.org/id/london-borough-council/ealing,REGENERATION AND HOUSING,2,HOUSING  DEMAND,BED & BREAKFAST PAYMENTS,5330,,01/07/2018,40814784,1386,REDACTED SENSITIVE SUPPLIER
Ealing Council,http://opendatacommunities.org/id/london-borough-council/ealing,REGENERATION AND HOUSING,2,HOUSING  DEMAND,BED & BREAKFAST PAYMENTS,5330,,24/06/2018,40814785,1386,REDACTED SENSITIVE SUPPLIER
Ealing Council,http://opendatacommunities.org/id/london-borough-council/ealing,REGENERATION AND HOUSING,2,HOUSING  DEMAND,BED & BREAKFAST PAYMENTS,5330,,24/06/2018,40814812,1092,REDACTED SENSITIVE SUPPLIER
Ealing Council,http://opendatacommunities.org/id/london-borough-council/ealing,REGENERATION AND HOUSING,2,HOUSING  DEMAND,BED & BREAKFAST PAYMENTS,5330,,01/07/2018,40814772,966,REDACTED SENSITIVE SUPPLIER
Ealing Council,http://opendatacommunities.org/id/london-borough-council/ealing,REGENERATION AND HOUSING,2,HOUSING  DEMAND,BED & BREAKFAST PAYMENTS,5330,,03/06/2018,40814774,1638,REDACTED SENSITIVE SUPPLIER
Ealing Council,http://opendatacommunities.org/id/london-borough-council/ealing,REGENERATION AND HOUSING,2,HOUSING  DEMAND,BED & BREAKFAST PAYMENTS,5330,,10/06/2018,40814775,1890,REDACTED SENSITIVE SUPPLIER
Ealing Council,http://opendatacommunities.org/id/london-borough-council/ealing,REGENERATION AND HOUSING,2,HOUSING  DEMAND,BED & BREAKFAST PAYMENTS,5330,,17/06/2018,40814777,1890,REDACTED SENSITIVE SUPPLIER
Ealing Council,http://opendatacommunities.org/id/london-borough-council/ealing,REGENERATION AND HOUSING,2,HOUSING  DEMAND,BED & BREAKFAST PAYMENTS,5330,,24/06/2018,40814778,2106,REDACTED SENSITIVE SUPPLIER
Ealing Council,http://opendatacommunities.org/id/london-borough-council/ealing,REGENERATION AND HOUSING,2,HOUSING  DEMAND,BED & BREAKFAST PAYMENTS,5330,,01/07/2018,40814779,2112,REDACTED SENSITIVE SUPPLIER
Ealing Council,http://opendatacommunities.org/id/london-borough-council/ealing,REGENERATION AND HOUSING,2,HOUSING  DEMAND,BED & BREAKFAST PAYMENTS,5330,,24/06/2018,40814764,966,REDACTED SENSITIVE SUPPLIER
Ealing Council,http://opendatacommunities.org/id/london-borough-council/ealing,REGENERATION AND HOUSING,2,HOUSING  DEMAND,BED & BREAKFAST PAYMENTS,5330,,01/07/2018,40814766,966,REDACTED SENSITIVE SUPPLIER
Ealing Council,http://opendatacommunities.org/id/london-borough-council/ealing,REGENERATION AND HOUSING,2,HOUSING  DEMAND,BED & BREAKFAST PAYMENTS,5330,,03/06/2018,40814767,924,REDACTED SENSITIVE SUPPLIER
Ealing Council,http://opendatacommunities.org/id/london-borough-council/ealing,REGENERATION AND HOUSING,2,HOUSING  DEMAND,BED & BREAKFAST PAYMENTS,5330,,10/06/2018,40814768,852,REDACTED SENSITIVE SUPPLIER
Ealing Council,http://opendatacommunities.org/id/london-borough-council/ealing,REGENERATION AND HOUSING,2,HOUSING  DEMAND,BED & BREAKFAST PAYMENTS,5330,,17/06/2018,40814769,756,REDACTED SENSITIVE SUPPLIER
Ealing Council,http://opendatacommunities.org/id/london-borough-council/ealing,REGENERATION AND HOUSING,2,HOUSING  DEMAND,BED & BREAKFAST PAYMENTS,5330,,24/06/2018,40814771,906,REDACTED SENSITIVE SUPPLIER
Ealing Council,http://opendatacommunities.org/id/london-borough-council/ealing,REGENERATION AND HOUSING,2,HOUSING  DEMAND,BED & BREAKFAST PAYMENTS,5330,,01/07/2018,40814758,672,REDACTED SENSITIVE SUPPLIER
Ealing Council,http://opendatacommunities.org/id/london-borough-council/ealing,REGENERATION AND HOUSING,2,HOUSING  DEMAND,BED & BREAKFAST PAYMENTS,5330,,17/06/2018,40814759,966,REDACTED SENSITIVE SUPPLIER
Ealing Council,http://opendatacommunities.org/id/london-borough-council/ealing,REGENERATION AND HOUSING,2,HOUSING  DEMAND,BED & BREAKFAST PAYMENTS,5330,,24/06/2018,40814760,714,REDACTED SENSITIVE SUPPLIER
Ealing Council,http://opendatacommunities.org/id/london-borough-council/ealing,REGENERATION AND HOUSING,2,HOUSING  DEMAND,BED & BREAKFAST PAYMENTS,5330,,10/06/2018,40814761,966,REDACTED SENSITIVE SUPPLIER
Ealing Council,http://opendatacommunities.org/id/london-borough-council/ealing,REGENERATION AND HOUSING,2,HOUSING  DEMAND,BED & BREAKFAST PAYMENTS,5330,,10/06/2018,40814762,966,REDACTED SENSITIVE SUPPLIER
Ealing Council,http://opendatacommunities.org/id/london-borough-council/ealing,REGENERATION AND HOUSING,2,HOUSING  DEMAND,BED & BREAKFAST PAYMENTS,5330,,17/06/2018,40814763,966,REDACTED SENSITIVE SUPPLIER
Ealing Council,http://opendatacommunities.org/id/london-borough-council/ealing,REGENERATION AND HOUSING,2,HOUSING  DEMAND,BED & BREAKFAST PAYMENTS,5330,,01/07/2018,40814514,1062,REDACTED SENSITIVE SUPPLIER
Ealing Council,http://opendatacommunities.org/id/london-borough-council/ealing,REGENERATION AND HOUSING,2,HOUSING  DEMAND,BED & BREAKFAST PAYMENTS,5330,,01/07/2018,40814752,1596,REDACTED SENSITIVE SUPPLIER
Ealing Council,http://opendatacommunities.org/id/london-borough-council/ealing,REGENERATION AND HOUSING,2,HOUSING  DEMAND,BED & BREAKFAST PAYMENTS,5330,,10/06/2018,40814754,798,REDACTED SENSITIVE SUPPLIER
Ealing Council,http://opendatacommunities.org/id/london-borough-council/ealing,REGENERATION AND HOUSING,2,HOUSING  DEMAND,BED & BREAKFAST PAYMENTS,5330,,17/06/2018,40814755,618,REDACTED SENSITIVE SUPPLIER
Ealing Council,http://opendatacommunities.org/id/london-borough-council/ealing,REGENERATION AND HOUSING,2,HOUSING  DEMAND,BED & BREAKFAST PAYMENTS,5330,,24/06/2018,40814756,588,REDACTED SENSITIVE SUPPLIER
Ealing Council,http://opendatacommunities.org/id/london-borough-council/ealing,REGENERATION AND HOUSING,2,HOUSING  DEMAND,BED & BREAKFAST PAYMENTS,5330,,01/07/2018,40814757,588,REDACTED SENSITIVE SUPPLIER
Ealing Council,http://opendatacommunities.org/id/london-borough-council/ealing,REGENERATION AND HOUSING,2,HOUSING  DEMAND,BED & BREAKFAST PAYMENTS,5330,,08/07/2018,40814505,420,REDACTED SENSITIVE SUPPLIER
Ealing Council,http://opendatacommunities.org/id/london-borough-council/ealing,REGENERATION AND HOUSING,2,HOUSING  DEMAND,BED & BREAKFAST PAYMENTS,5330,,10/06/2018,40814506,360,REDACTED SENSITIVE SUPPLIER
Ealing Council,http://opendatacommunities.org/id/london-borough-council/ealing,REGENERATION AND HOUSING,2,HOUSING  DEMAND,BED & BREAKFAST PAYMENTS,5330,,17/06/2018,40814509,708,REDACTED SENSITIVE SUPPLIER
Ealing Council,http://opendatacommunities.org/id/london-borough-council/ealing,REGENERATION AND HOUSING,2,HOUSING  DEMAND,BED & BREAKFAST PAYMENTS,5330,,24/06/2018,40814510,756,REDACTED SENSITIVE SUPPLIER
Ealing Council,http://opendatacommunities.org/id/london-borough-council/ealing,REGENERATION AND HOUSING,2,HOUSING  DEMAND,BED & BREAKFAST PAYMENTS,5330,,01/07/2018,40814512,756,REDACTED SENSITIVE SUPPLIER
Ealing Council,http://opendatacommunities.org/id/london-borough-council/ealing,REGENERATION AND HOUSING,2,HOUSING  DEMAND,BED & BREAKFAST PAYMENTS,5330,,08/07/2018,40814513,756,REDACTED SENSITIVE SUPPLIER
Ealing Council,http://opendatacommunities.org/id/london-borough-council/ealing,REGENERATION AND HOUSING,2,HOUSING  DEMAND,BED & BREAKFAST PAYMENTS,5330,,17/06/2018,40814406,714,REDACTED SENSITIVE SUPPLIER
Ealing Council,http://opendatacommunities.org/id/london-borough-council/ealing,REGENERATION AND HOUSING,2,HOUSING  DEMAND,BED & BREAKFAST PAYMENTS,5330,,24/06/2018,40814407,924,REDACTED SENSITIVE SUPPLIER
Ealing Council,http://opendatacommunities.org/id/london-borough-council/ealing,ENVIRONMENT & CUSTOMER SERVICES,3,PARKING- OFF STREET,REPAIR AND MAINTENANCE,1410,,12/07/2018,40812504,385,FISCOL ENGINEERING
Ealing Council,http://opendatacommunities.org/id/london-borough-council/ealing,ENVIRONMENT & CUSTOMER SERVICES,3,PARKING- OFF STREET,REPAIR AND MAINTENANCE,1410,,27/07/2018,40814899,868,THETFORD INTERNATNL COMPACTORS
Ealing Council,http://opendatacommunities.org/id/london-borough-council/ealing,ENVIRONMENT & CUSTOMER SERVICES,3,LEISURE & PARKS,VEHICLE HIRE,2010,,22/06/2018,40809712,1000,NEW BHARAT COACHES
Ealing Council,http://opendatacommunities.org/id/london-borough-council/ealing,ENVIRONMENT & CUSTOMER SERVICES,3,"ARTS, HERITAGE AND LIBRARIES",REPAIR AND MAINTENANCE,1410,,04/06/2018,40810887,300,Sundry Supplier - Environment & Customer Services
Ealing Council,http://opendatacommunities.org/id/london-borough-council/ealing,ENVIRONMENT & CUSTOMER SERVICES,3,"ARTS, HERITAGE AND LIBRARIES",WATER,1140,,23/06/2018,40810216,341.52,CASTLE WATER LIMITED
Ealing Council,http://opendatacommunities.org/id/london-borough-council/ealing,ENVIRONMENT & CUSTOMER SERVICES,3,"ARTS, HERITAGE AND LIBRARIES",WATER,1140,,23/06/2018,40810216,435.03,CASTLE WATER LIMITED
Ealing Council,http://opendatacommunities.org/id/london-borough-council/ealing,ENVIRONMENT & CUSTOMER SERVICES,3,"ARTS, HERITAGE AND LIBRARIES",SECURITY SERVICES,2760,,16/07/2018,40812816,664,Sundry Supplier - Environment & Customer Services
Ealing Council,http://opendatacommunities.org/id/london-borough-council/ealing,ENVIRONMENT & CUSTOMER SERVICES,3,"ARTS, HERITAGE AND LIBRARIES",WATER,1140,,12/06/2018,40807208,1554.38,CASTLE WATER LIMITED
Ealing Council,http://opendatacommunities.org/id/london-borough-council/ealing,ENVIRONMENT & CUSTOMER SERVICES,3,"ARTS, HERITAGE AND LIBRARIES",STORAGE,2530,,30/06/2018,40810829,564.16,RESTORE PLC
Ealing Council,http://opendatacommunities.org/id/london-borough-council/ealing,ENVIRONMENT & CUSTOMER SERVICES,3,"ARTS, HERITAGE AND LIBRARIES",WATER,1140,,13/07/2018,40812512,800.6,CASTLE WATER LIMITED
Ealing Council,http://opendatacommunities.org/id/london-borough-council/ealing,ENVIRONMENT & CUSTOMER SERVICES,3,CUSTOMER SERVICES SUPPORT,PAYMENTS TO CONTRACTORS,4000,,10/07/2018,40813968,6516.15,GENERAL DYNAMICS INFORMATION TECHNOLOGY LTD
Ealing Council,http://opendatacommunities.org/id/london-borough-council/ealing,ENVIRONMENT & CUSTOMER SERVICES,3,CUSTOMER SERVICES SUPPORT,PAYMENTS TO CONTRACTORS,4000,,21/06/2018,40810443,679.2,GENERAL DYNAMICS INFORMATION TECHNOLOGY LTD
Ealing Council,http://opendatacommunities.org/id/london-borough-council/ealing,ENVIRONMENT & CUSTOMER SERVICES,3,CUSTOMER SERVICES SUPPORT,PAYMENTS TO CONTRACTORS,4000,,24/04/2018,40813221,768,SOLACE IN BUSINESS LTD
Ealing Council,http://opendatacommunities.org/id/london-borough-council/ealing,ENVIRONMENT & CUSTOMER SERVICES,3,CUSTOMER SERVICES SUPPORT,PAYMENTS TO CONTRACTORS,4000,,20/07/2018,40813441,665.6,SOLACE IN BUSINESS LTD
Ealing Council,http://opendatacommunities.org/id/london-borough-council/ealing,ENVIRONMENT & CUSTOMER SERVICES,3,CUSTOMER SERVICES SUPPORT,PAYMENTS TO CONTRACTORS,4000,,25/06/2018,40809233,1024,SOLACE IN BUSINESS LTD
Ealing Council,http://opendatacommunities.org/id/london-borough-council/ealing,CAPITAL SCHEMES,K,E&CS EXECUTIVE DIRECTORATE,CTRL OR B/S INFRASTUCTURE ASSETS,6160,,22/06/2018,40808866,2123.26,DRAYTON FENCING COMPANY
Ealing Council,http://opendatacommunities.org/id/london-borough-council/ealing,CAPITAL SCHEMES,K,E&CS EXECUTIVE DIRECTORATE,CTRL OR B/S INFRASTUCTURE ASSETS,6160,,30/07/2018,40814865,2000,Sundry Supplier - Environment & Customer Services
Ealing Council,http://opendatacommunities.org/id/london-borough-council/ealing,CHILDREN & ADULTS,1,SCHOOLS EFFECTIVENESS,STORAGE,2530,,23/07/2018,40814270,7410,BIG YELLOW SELF STORAGE COMPANY LTD-(SOUTHALL)
Ealing Council,http://opendatacommunities.org/id/london-borough-council/ealing,CHILDREN & ADULTS,1,SCHOOLS EFFECTIVENESS,SUBSCRIPTIONS,3600,,31/03/2018,40814184,780,THE UK ASSOCIATION FOR MUSIC EDUCATION � MUSIC MARK
Ealing Council,http://opendatacommunities.org/id/london-borough-council/ealing,CHILDREN & ADULTS,1,SCHOOLS EFFECTIVENESS,SERVICES CONTRACTS AGENCY INTERIM CONSULTANTS,2970,,26/06/2018,40810748,450,BRADATA LTD
Ealing Council,http://opendatacommunities.org/id/london-borough-council/ealing,CHILDREN & ADULTS,1,EALING SERVICE FOR CHILDREN WITH ADDITIONAL NEEDS,CHILDRENS SERVICE -RESPITE CARE SCHEME,4661,,29/05/2018,40804873,354,REDACTED SENSITIVE SUPPLIER
Ealing Council,http://opendatacommunities.org/id/london-borough-council/ealing,CHILDREN & ADULTS,1,EALING SERVICE FOR CHILDREN WITH ADDITIONAL NEEDS,VEHICLE HIRE,2010,,30/07/2018,40814811,390,WHEEL GET YOU THERE LTD
Ealing Council,http://opendatacommunities.org/id/london-borough-council/ealing,CHILDREN & ADULTS,1,EALING SERVICE FOR CHILDREN WITH ADDITIONAL NEEDS,VEHICLE HIRE,2010,,23/07/2018,40813726,846,WHEEL GET YOU THERE LTD
Ealing Council,http://opendatacommunities.org/id/london-borough-council/ealing,CAPITAL SCHEMES,K,ENVIRONMENT & LEISURE,CAPITAL - CONTRACT PAYMENTS,7200,,19/07/2018,40813312,4400,MURRILL CONSTRUCTION LIMITED
Ealing Council,http://opendatacommunities.org/id/london-borough-council/ealing,CAPITAL SCHEMES,K,ENVIRONMENT & LEISURE,CAPITAL - CONTRACT PAYMENTS,7200,,19/07/2018,40813317,4000,MURRILL CONSTRUCTION LIMITED
Ealing Council,http://opendatacommunities.org/id/london-borough-council/ealing,CAPITAL SCHEMES,K,ENVIRONMENT & LEISURE,CAPITAL - CONTRACT PAYMENTS,7200,,19/07/2018,40813318,6000,MURRILL CONSTRUCTION LIMITED
Ealing Council,http://opendatacommunities.org/id/london-borough-council/ealing,CAPITAL SCHEMES,K,ENVIRONMENT & LEISURE,CAPITAL - CONTRACT PAYMENTS,7200,,19/07/2018,40813319,11200,MURRILL CONSTRUCTION LIMITED
Ealing Council,http://opendatacommunities.org/id/london-borough-council/ealing,CAPITAL SCHEMES,K,ENVIRONMENT & LEISURE,CAPITAL - CONTRACT PAYMENTS,7200,,30/06/2018,40810725,309.66,REACH PUBLISHING SERVICES LTD
Ealing Council,http://opendatacommunities.org/id/london-borough-council/ealing,CAPITAL SCHEMES,K,ENVIRONMENT & LEISURE,CAPITAL - CONTRACT PAYMENTS,7200,,30/06/2018,40810727,345.39,REACH PUBLISHING SERVICES LTD
Ealing Council,http://opendatacommunities.org/id/london-borough-council/ealing,CAPITAL SCHEMES,K,ENVIRONMENT & LEISURE,CAPITAL - CONTRACT PAYMENTS,7200,,20/07/2018,40813635,6924.22,AECOM LIMITED
Ealing Council,http://opendatacommunities.org/id/london-borough-council/ealing,CAPITAL SCHEMES,K,ENVIRONMENT & LEISURE,CAPITAL - CONTRACT PAYMENTS,7200,,20/07/2018,40813640,18416.21,AECOM LIMITED
Ealing Council,http://opendatacommunities.org/id/london-borough-council/ealing,CAPITAL SCHEMES,K,ENVIRONMENT & LEISURE,CAPITAL - CONTRACT PAYMENTS,7200,,28/06/2018,40810444,4264.6,SOUTHERN ELECTRIC CONTRACTING LTD
Ealing Council,http://opendatacommunities.org/id/london-borough-council/ealing,CHILDREN & ADULTS,1,SCHOOLS EFFECTIVENESS,HIRE OF HALLS,2810,,06/06/2018,40810359,1225,EALING CHRISTIAN CENTRE
Ealing Council,http://opendatacommunities.org/id/london-borough-council/ealing,CHILDREN & ADULTS,1,SCHOOLS EFFECTIVENESS,SERVICES CONTRACTS AGENCY INTERIM CONSULTANTS,2970,,02/07/2018,40810955,2793,ATHENE EDUCATION LTD
Ealing Council,http://opendatacommunities.org/id/london-borough-council/ealing,CHILDREN & ADULTS,1,CHILD PROTECTION & EDT,TRAINING,80,,29/06/2018,40810266,1800,JACKIE HARROP LTD
Ealing Council,http://opendatacommunities.org/id/london-borough-council/ealing,CHILDREN & ADULTS,1,EALING SERVICE FOR CHILDREN WITH ADDITIONAL NEEDS,HOME & SCHOOL,2130,,30/06/2018,40811589,19525.6,MR M ELSAHIB T/A AMAC EXPRESS SERVICES
Ealing Council,http://opendatacommunities.org/id/london-borough-council/ealing,CHILDREN & ADULTS,1,EALING SERVICE FOR CHILDREN WITH ADDITIONAL NEEDS,HOME & SCHOOL,2130,,30/06/2018,40811589,4881.4,MR M ELSAHIB T/A AMAC EXPRESS SERVICES
Ealing Council,http://opendatacommunities.org/id/london-borough-council/ealing,CHILDREN & ADULTS,1,EALING SERVICE FOR CHILDREN WITH ADDITIONAL NEEDS,HOME & SCHOOL,2130,,30/06/2018,40812079,17289.14,EALING COMMUNITY TRANSPORT
Ealing Council,http://opendatacommunities.org/id/london-borough-council/ealing,CHILDREN & ADULTS,1,EALING SERVICE FOR CHILDREN WITH ADDITIONAL NEEDS,HOME & SCHOOL,2130,,30/06/2018,40812080,32967.84,EALING COMMUNITY TRANSPORT
Ealing Council,http://opendatacommunities.org/id/london-borough-council/ealing,CHILDREN & ADULTS,1,EALING SERVICE FOR CHILDREN WITH ADDITIONAL NEEDS,HOME & SCHOOL,2130,,30/06/2018,40812078,28345,EALING COMMUNITY TRANSPORT
Ealing Council,http://opendatacommunities.org/id/london-borough-council/ealing,CHILDREN & ADULTS,1,EALING SERVICE FOR CHILDREN WITH ADDITIONAL NEEDS,HOME & SCHOOL,2130,,01/07/2018,40811356,12596,PACE TRANSPORT
Ealing Council,http://opendatacommunities.org/id/london-borough-council/ealing,CHILDREN & ADULTS,1,EALING SERVICE FOR CHILDREN WITH ADDITIONAL NEEDS,HOME & SCHOOL,2130,,24/07/2018,40814143,832,MR M ELSAHIB T/A AMAC EXPRESS SERVICES
Ealing Council,http://opendatacommunities.org/id/london-borough-council/ealing,CHILDREN & ADULTS,1,EALING SERVICE FOR CHILDREN WITH ADDITIONAL NEEDS,HOME & SCHOOL,2130,,29/06/2018,40812684,15244.5,MASONS COACH HIRE LTD
Ealing Council,http://opendatacommunities.org/id/london-borough-council/ealing,CHILDREN & ADULTS,1,EALING SERVICE FOR CHILDREN WITH ADDITIONAL NEEDS,DIRECT TRANSPORT COSTS,2000,,28/06/2018,40809993,3278.89,REDACTED SENSITIVE SUPPLIER
Ealing Council,http://opendatacommunities.org/id/london-borough-council/ealing,CHILDREN & ADULTS,1,EALING SERVICE FOR CHILDREN WITH ADDITIONAL NEEDS,HOME & SCHOOL,2130,,29/06/2018,40810303,6464,MASONS COACH HIRE LTD
Ealing Council,http://opendatacommunities.org/id/london-borough-council/ealing,CHILDREN & ADULTS,1,EALING SERVICE FOR CHILDREN WITH ADDITIONAL NEEDS,HOME & SCHOOL,2130,,01/05/2018,40800060,6328,WHEEL GET YOU THERE LTD
Ealing Council,http://opendatacommunities.org/id/london-borough-council/ealing,CHILDREN & ADULTS,1,EALING SERVICE FOR CHILDREN WITH ADDITIONAL NEEDS,HOME & SCHOOL,2130,,01/06/2018,40806268,10406,WHEEL GET YOU THERE LTD
Ealing Council,http://opendatacommunities.org/id/london-borough-council/ealing,CHILDREN & ADULTS,1,EALING SERVICE FOR CHILDREN WITH ADDITIONAL NEEDS,HOME & SCHOOL,2130,,01/07/2018,40811557,11580,WHEEL GET YOU THERE LTD
Ealing Council,http://opendatacommunities.org/id/london-borough-council/ealing,CHILDREN & ADULTS,1,EALING SERVICE FOR CHILDREN WITH ADDITIONAL NEEDS,HOME & SCHOOL,2130,,29/06/2018,40811483,22010.8,LONDON HIRE COMMUNITY SERVIES LIMITED
Ealing Council,http://opendatacommunities.org/id/london-borough-council/ealing,CHILDREN & ADULTS,1,EALING SERVICE FOR CHILDREN WITH ADDITIONAL NEEDS,HOME & SCHOOL,2130,,29/06/2018,40811484,16337,LONDON HIRE COMMUNITY SERVIES LIMITED
Ealing Council,http://opendatacommunities.org/id/london-borough-council/ealing,CHILDREN & ADULTS,1,EALING SERVICE FOR CHILDREN WITH ADDITIONAL NEEDS,HOME & SCHOOL,2130,,30/06/2018,40811587,1248,MR M ELSAHIB T/A AMAC EXPRESS SERVICES
